Workbook

Sheet INÍCIO
B1: SOBRE ESTE MODELO
B2: Use esta pasta de trabalho de Orçamento de despesas comerciais para acompanhar as despesas planejadas e reais e as variações.
B3: Preencha com o Nome da empresa e adicione o logotipo.
B4: Insira as informações nas tabelas das planilhas Despesas planejadas e Despesas reais.
B5: As tabelas são atualizadas automaticamente na planilha Variação de despesas e os gráficos na planilha Análise de despesas
B6: Observação:
B7: há instruções adicionais na coluna A de cada planilha. Este texto está oculto de propósito. Para removê-lo, selecione a coluna A e selecione Excluir. Para reexibir o texto, selecione a coluna A e altere a cor da fonte.
B8: Para saber mais sobre tabelas, pressione SHIFT e, em seguida, F10 dentro de uma tabela, selecione a opção TABELA e, em seguida, selecione TEXTO ALTERNATIVO

Sheet DESPESAS PLANEJADAS
B2: Nome da Empresa | K2: Estimativas detalhadas de despesas
K3: As células sombreadas são cálculos.
B4: DESPESAS PLANEJADAS | C4: JAN | D4: FEV | E4: MAR | F4: ABR | G4: MAIO | H4: JUN | I4: JUL | J4: AGO | K4: SET | L4: OUT | M4: NOV | N4: DEZ | O4: ANO
B5: Custos com funcionários | C5: Jan | D5: Fev | E5: Mar | F5: Abr | G5: Maio | H5: Jun | I5: Jul | J5: Ago | K5: Set | L5: Out | M5: Nov | N5: Dez | O5: ANO
B6: Salários | C6: R$ 85,000.00 | D6: R$ 85,000.00 | E6: R$ 85,000.00 | F6: R$ 87,500.00 | G6: R$ 87,500.00 | H6: R$ 87,500.00 | I6: R$ 87,500.00 | J6: R$ 92,400.00 | K6: R$ 92,400.00 | L6: R$ 92,400.00 | M6: R$ 92,400.00 | N6: R$ 92,400.00 | O6: =SUM(C6:N6) -> R$ 1,067,000.00
B7: Benefícios | C7: =C6*0.27 -> R$ 22,950.00 | D7: R$ 22,950.00 | E7: R$ 22,950.00 | F7: R$ 23,625.00 | G7: R$ 23,625.00 | H7: R$ 23,625.00 | I7: R$ 23,625.00 | J7: R$ 24,948.00 | K7: R$ 24,948.00 | L7: R$ 24,948.00 | M7: R$ 24,948.00 | N7: R$ 24,948.00 | O7: =SUM(C7:N7) -> R$ 288,090.00
B8: Subtotal | C8: =SUBTOTAL(109,PlanejamentoDeFuncionário[Jan]) -> R$ 107,950.00 | D8: =SUBTOTAL(109,PlanejamentoDeFuncionário[Fev]) -> R$ 107,950.00 | E8: =SUBTOTAL(109,PlanejamentoDeFuncionário[Mar]) -> R$ 107,950.00 | F8: =SUBTOTAL(109,PlanejamentoDeFuncionário[Abr]) -> R$ 111,125.00 | G8: =SUBTOTAL(109,PlanejamentoDeFuncionário[Maio]) -> R$ 111,125.00 | H8: =SUBTOTAL(109,PlanejamentoDeFuncionário[Jun]) -> R$ 111,125.00 | I8: =SUBTOTAL(109,PlanejamentoDeFuncionário[Jul]) -> R$ 111,125.00 | J8: =SUBTOTAL(109,PlanejamentoDeFuncionário[Ago]) -> R$ 117,348.00 | K8: =SUBTOTAL(109,PlanejamentoDeFuncionário[Set]) -> R$ 117,348.00 | L8: =SUBTOTAL(109,PlanejamentoDeFuncionário[Out]) -> R$ 117,348.00 | M8: =SUBTOTAL(109,PlanejamentoDeFuncionário[Nov]) -> R$ 117,348.00 | N8: =SUBTOTAL(109,PlanejamentoDeFuncionário[Dez]) -> R$ 117,348.00 | O8: =SUBTOTAL(109,PlanejamentoDeFuncionário[ANO]) -> R$ 1,355,090.00
B10: Custos do escritório | C10: Jan | D10: Fev | E10: Mar | F10: Abr | G10: Maio | H10: Jun | I10: Jul | J10: Ago | K10: Set | L10: Out | M10: Nov | N10: Dez | O10: ANO
B11: Aluguel do escritório | C11: R$ 9,800.00 | D11: R$ 9,800.00 | E11: R$ 9,800.00 | F11: R$ 9,800.00 | G11: R$ 9,800.00 | H11: R$ 9,800.00 | I11: R$ 9,800.00 | J11: R$ 9,800.00 | K11: R$ 9,800.00 | L11: R$ 9,800.00 | M11: R$ 9,800.00 | N11: R$ 9,800.00 | O11: =SUM(C11:N11) -> R$ 117,600.00
B12: Gás | D12: R$ 400.00 | E12: R$ 400.00 | F12: R$ 100.00 | G12: R$ 100.00 | H12: R$ 100.00 | I12: R$ 100.00 | J12: R$ 100.00 | K12: R$ 100.00 | L12: R$ 100.00 | M12: R$ 400.00 | N12: R$ 400.00 | O12: R$ 2,300.00
B13: Eletricidade | C13: R$ 300.00 | D13: R$ 300.00 | E13: R$ 300.00 | F13: R$ 300.00 | G13: R$ 300.00 | H13: R$ 300.00 | I13: R$ 300.00 | J13: R$ 300.00 | K13: R$ 300.00 | L13: R$ 300.00 | M13: R$ 300.00 | N13: R$ 300.00 | O13: R$ 3,600.00
B14: Água | C14: R$ 40.00 | D14: R$ 40.00 | E14: R$ 40.00 | F14: R$ 40.00 | G14: R$ 40.00 | H14: R$ 40.00 | I14: R$ 40.00 | J14: R$ 40.00 | K14: R$ 40.00 | L14: R$ 40.00 | M14: R$ 40.00 | N14: R$ 40.00 | O14: R$ 480.00
B15: Telefone | C15: R$ 250.00 | D15: R$ 250.00 | E15: R$ 250.00 | F15: R$ 250.00 | G15: R$ 250.00 | H15: R$ 250.00 | I15: R$ 250.00 | J15: R$ 250.00 | K15: R$ 250.00 | L15: R$ 250.00 | M15: R$ 250.00 | N15: R$ 250.00 | O15: R$ 3,000.00
B16: Acesso à Internet | C16: R$ 180.00 | D16: R$ 180.00 | E16: R$ 180.00 | F16: R$ 180.00 | G16: R$ 180.00 | H16: R$ 180.00 | I16: R$ 180.00 | J16: R$ 180.00 | K16: R$ 180.00 | L16: R$ 180.00 | M16: R$ 180.00 | N16: R$ 180.00 | O16: R$ 2,160.00
B17: Material de escritório | C17: R$ 200.00 | D17: R$ 200.00 | E17: R$ 200.00 | F17: R$ 200.00 | G17: R$ 200.00 | H17: R$ 200.00 | I17: R$ 200.00 | J17: R$ 200.00 | K17: R$ 200.00 | L17: R$ 200.00 | M17: R$ 200.00 | N17: R$ 200.00 | O17: R$ 2,400.00
B18: Segurança | C18: R$ 600.00 | D18: R$ 600.00 | E18: R$ 600.00 | F18: R$ 600.00 | G18: R$ 600.00 | H18: R$ 600.00 | I18: R$ 600.00 | J18: R$ 600.00 | K18: R$ 600.00 | L18: R$ 600.00 | M18: R$ 600.00 | N18: R$ 600.00 | O18: R$ 7,200.00
B19: Subtotal | C19: =SUBTOTAL(109,PlanejamentoDeEscritório[Jan]) -> R$ 11,370.00 | D19: =SUBTOTAL(109,PlanejamentoDeEscritório[Fev]) -> R$ 11,770.00 | E19: =SUBTOTAL(109,PlanejamentoDeEscritório[Mar]) -> R$ 11,770.00 | F19: =SUBTOTAL(109,PlanejamentoDeEscritório[Abr]) -> R$ 11,470.00 | G19: =SUBTOTAL(109,PlanejamentoDeEscritório[Maio]) -> R$ 11,470.00 | H19: =SUBTOTAL(109,PlanejamentoDeEscritório[Jun]) -> R$ 11,470.00 | I19: =SUBTOTAL(109,PlanejamentoDeEscritório[Jul]) -> R$ 11,470.00 | J19: =SUBTOTAL(109,PlanejamentoDeEscritório[Ago]) -> R$ 11,470.00 | K19: =SUBTOTAL(109,PlanejamentoDeEscritório[Set]) -> R$ 11,470.00 | L19: =SUBTOTAL(109,PlanejamentoDeEscritório[Out]) -> R$ 11,470.00 | M19: =SUBTOTAL(109,PlanejamentoDeEscritório[Nov]) -> R$ 11,770.00 | N19: =SUBTOTAL(109,PlanejamentoDeEscritório[Dez]) -> R$ 11,770.00 | O19: =SUBTOTAL(109,PlanejamentoDeEscritório[ANO]) -> R$ 138,740.00
B21: Custos de marketing | C21: Jan | D21: Fev | E21: Mar | F21: Abr | G21: Maio | H21: Jun | I21: Jul | J21: Ago | K21: Set | L21: Out | M21: Nov | N21: Dez | O21: ANO
B22: Hospedagem de site | C22: R$ 500.00 | D22: R$ 500.00 | E22: R$ 500.00 | F22: R$ 500.00 | G22: R$ 500.00 | H22: R$ 500.00 | I22: R$ 500.00 | J22: R$ 500.00 | K22: R$ 500.00 | L22: R$ 500.00 | M22: R$ 500.00 | N22: R$ 500.00 | O22: =SUM(C22:N22) -> R$ 6,000.00
B23: Atualizações do site | C23: R$ 200.00 | D23: R$ 200.00 | E23: R$ 200.00 | F23: R$ 200.00 | G23: R$ 200.00 | H23: R$ 1,000.00 | I23: R$ 200.00 | J23: R$ 200.00 | K23: R$ 200.00 | L23: R$ 200.00 | M23: R$ 200.00 | N23: R$ 1,000.00 | O23: R$ 4,000.00
B24: Preparação de materiais de referência | C24: R$ 5,000.00 | D24: R$ 0.00 | E24: R$ 0.00 | F24: R$ 5,000.00 | G24: R$ 0.00 | H24: R$ 0.00 | I24: R$ 5,000.00 | J24: R$ 0.00 | K24: R$ 0.00 | L24: R$ 5,000.00 | M24: R$ 0.00 | N24: R$ 0.00 | O24: R$ 20,000.00
B25: Impressão de materiais de referência | C25: R$ 200.00 | D25: R$ 200.00 | E25: R$ 200.00 | F25: R$ 200.00 | G25: R$ 200.00 | H25: R$ 200.00 | I25: R$ 200.00 | J25: R$ 200.00 | K25: R$ 200.00 | L25: R$ 200.00 | M25: R$ 200.00 | N25: R$ 200.00 | O25: R$ 2,400.00
B26: Eventos de marketing | C26: R$ 2,000.00 | D26: R$ 2,000.00 | E26: R$ 2,000.00 | F26: R$ 5,000.00 | G26: R$ 2,000.00 | H26: R$ 2,000.00 | I26: R$ 2,000.00 | J26: R$ 5,000.00 | K26: R$ 2,000.00 | L26: R$ 2,000.00 | M26: R$ 2,000.00 | N26: R$ 5,000.00 | O26: R$ 33,000.00
B27: Despesas diversas | C27: R$ 200.00 | D27: R$ 200.00 | E27: R$ 200.00 | F27: R$ 200.00 | G27: R$ 200.00 | H27: R$ 200.00 | I27: R$ 200.00 | J27: R$ 200.00 | K27: R$ 200.00 | L27: R$ 200.00 | M27: R$ 200.00 | N27: R$ 200.00 | O27: R$ 2,400.00
B28: Subtotal | C28: =SUBTOTAL(109,PlanejamentoDeMarketing[Jan]) -> R$ 8,100.00 | D28: =SUBTOTAL(109,PlanejamentoDeMarketing[Fev]) -> R$ 3,100.00 | E28: =SUBTOTAL(109,PlanejamentoDeMarketing[Mar]) -> R$ 3,100.00 | F28: =SUBTOTAL(109,PlanejamentoDeMarketing[Abr]) -> R$ 11,100.00 | G28: =SUBTOTAL(109,PlanejamentoDeMarketing[Maio]) -> R$ 3,100.00 | H28: =SUBTOTAL(109,PlanejamentoDeMarketing[Jun]) -> R$ 3,900.00 | I28: =SUBTOTAL(109,PlanejamentoDeMarketing[Jul]) -> R$ 8,100.00 | J28: =SUBTOTAL(109,PlanejamentoDeMarketing[Ago]) -> R$ 6,100.00 | K28: =SUBTOTAL(109,PlanejamentoDeMarketing[Set]) -> R$ 3,100.00 | L28: =SUBTOTAL(109,PlanejamentoDeMarketing[Out]) -> R$ 8,100.00 | M28: =SUBTOTAL(109,PlanejamentoDeMarketing[Nov]) -> R$ 3,100.00 | N28: =SUBTOTAL(109,PlanejamentoDeMarketing[Dez]) -> R$ 6,900.00 | O28: =SUBTOTAL(109,PlanejamentoDeMarketing[ANO]) -> R$ 67,800.00
B30: Viagem/Treinamento | C30: Jan | D30: Fev | E30: Mar | F30: Abr | G30: Maio | H30: Jun | I30: Jul | J30: Ago | K30: Set | L30: Out | M30: Nov | N30: Dez | O30: ANO
B31: Sessões de treinamento | C31: R$ 2,000.00 | D31: R$ 2,000.00 | E31: R$ 2,000.00 | F31: R$ 2,000.00 | G31: R$ 2,000.00 | H31: R$ 2,000.00 | I31: R$ 2,000.00 | J31: R$ 2,000.00 | K31: R$ 2,000.00 | L31: R$ 2,000.00 | M31: R$ 2,000.00 | N31: R$ 2,000.00 | O31: =SUM(C31:N31) -> R$ 24,000.00
B32: Custos com viagens para treinamento | C32: R$ 2,000.00 | D32: R$ 2,000.00 | E32: R$ 2,000.00 | F32: R$ 2,000.00 | G32: R$ 2,000.00 | H32: R$ 2,000.00 | I32: R$ 2,000.00 | J32: R$ 2,000.00 | K32: R$ 2,000.00 | L32: R$ 2,000.00 | M32: R$ 2,000.00 | N32: R$ 2,000.00 | O32: =SUM(C32:N32) -> R$ 24,000.00
B33: Subtotal | C33: =SUBTOTAL(109,PlanejamentoDeViagemETreinamento[Jan]) -> R$ 4,000.00 | D33: =SUBTOTAL(109,PlanejamentoDeViagemETreinamento[Fev]) -> R$ 4,000.00 | E33: =SUBTOTAL(109,PlanejamentoDeViagemETreinamento[Mar]) -> R$ 4,000.00 | F33: =SUBTOTAL(109,PlanejamentoDeViagemETreinamento[Abr]) -> R$ 4,000.00 | G33: =SUBTOTAL(109,PlanejamentoDeViagemETreinamento[Maio]) -> R$ 4,000.00 | H33: =SUBTOTAL(109,PlanejamentoDeViagemETreinamento[Jun]) -> R$ 4,000.00 | I33: =SUBTOTAL(109,PlanejamentoDeViagemETreinamento[Jul]) -> R$ 4,000.00 | J33: =SUBTOTAL(109,PlanejamentoDeViagemETreinamento[Ago]) -> R$ 4,000.00 | K33: =SUBTOTAL(109,PlanejamentoDeViagemETreinamento[Set]) -> R$ 4,000.00 | L33: =SUBTOTAL(109,PlanejamentoDeViagemETreinamento[Out]) -> R$ 4,000.00 | M33: =SUBTOTAL(109,PlanejamentoDeViagemETreinamento[Nov]) -> R$ 4,000.00 | N33: =SUBTOTAL(109,PlanejamentoDeViagemETreinamento[Dez]) -> R$ 4,000.00 | O33: =SUBTOTAL(109,PlanejamentoDeViagemETreinamento[ANO]) -> R$ 48,000.00
B35: TOTAIS | C35: Jan | D35: Fev | E35: Mar | F35: Abr | G35: Mai | H35: Jun | I35: Jul | J35: Ago | K35: Set | L35: Out | M35: Nov | N35: Dez | O35: Ano
B36: Despesas mensais planejadas | C36: =PlanejamentoDeViagemETreinamento[[#Totals],[Jan]]+PlanejamentoDeMarketing[[#Totals],[Jan]]+PlanejamentoDeEscritório[[#Totals],[Jan]]+PlanejamentoDeFuncionário[[#Totals],[Jan]] -> R$ 131,420.00 | D36: =PlanejamentoDeViagemETreinamento[[#Totals],[Fev]]+PlanejamentoDeMarketing[[#Totals],[Fev]]+PlanejamentoDeEscritório[[#Totals],[Fev]]+PlanejamentoDeFuncionário[[#Totals],[Fev]] -> R$ 126,820.00 | E36: =PlanejamentoDeViagemETreinamento[[#Totals],[Mar]]+PlanejamentoDeMarketing[[#Totals],[Mar]]+PlanejamentoDeEscritório[[#Totals],[Mar]]+PlanejamentoDeFuncionário[[#Totals],[Mar]] -> R$ 126,820.00 | F36: =PlanejamentoDeViagemETreinamento[[#Totals],[Abr]]+PlanejamentoDeMarketing[[#Totals],[Abr]]+PlanejamentoDeEscritório[[#Totals],[Abr]]+PlanejamentoDeFuncionário[[#Totals],[Abr]] -> R$ 137,695.00 | G36: =PlanejamentoDeViagemETreinamento[[#Totals],[Maio]]+PlanejamentoDeMarketing[[#Totals],[Maio]]+PlanejamentoDeEscritório[[#Totals],[Maio]]+PlanejamentoDeFuncionário[[#Totals],[Maio]] -> R$ 129,695.00 | H36: =PlanejamentoDeViagemETreinamento[[#Totals],[Jun]]+PlanejamentoDeMarketing[[#Totals],[Jun]]+PlanejamentoDeEscritório[[#Totals],[Jun]]+PlanejamentoDeFuncionário[[#Totals],[Jun]] -> R$ 130,495.00 | I36: =PlanejamentoDeViagemETreinamento[[#Totals],[Jul]]+PlanejamentoDeMarketing[[#Totals],[Jul]]+PlanejamentoDeEscritório[[#Totals],[Jul]]+PlanejamentoDeFuncionário[[#Totals],[Jul]] -> R$ 134,695.00 | J36: =PlanejamentoDeViagemETreinamento[[#Totals],[Ago]]+PlanejamentoDeMarketing[[#Totals],[Ago]]+PlanejamentoDeEscritório[[#Totals],[Ago]]+PlanejamentoDeFuncionário[[#Totals],[Ago]] -> R$ 138,918.00 | K36: =PlanejamentoDeViagemETreinamento[[#Totals],[Set]]+PlanejamentoDeMarketing[[#Totals],[Set]]+PlanejamentoDeEscritório[[#Totals],[Set]]+PlanejamentoDeFuncionário[[#Totals],[Set]] -> R$ 135,918.00 | L36: =PlanejamentoDeViagemETreinamento[[#Totals],[Out]]+PlanejamentoDeMarketing[[#Totals],[Out]]+PlanejamentoDeEscritório[[#Totals],[Out]]+PlanejamentoDeFuncionário[[#Totals],[Out]] -> R$ 140,918.00 | M36: =PlanejamentoDeViagemETreinamento[[#Totals],[Nov]]+PlanejamentoDeMarketing[[#Totals],[Nov]]+PlanejamentoDeEscritório[[#Totals],[Nov]]+PlanejamentoDeFuncionário[[#Totals],[Nov]] -> R$ 136,218.00 | N36: =PlanejamentoDeViagemETreinamento[[#Totals],[Dez]]+PlanejamentoDeMarketing[[#Totals],[Dez]]+PlanejamentoDeEscritório[[#Totals],[Dez]]+PlanejamentoDeFuncionário[[#Totals],[Dez]] -> R$ 140,018.00 | O36: =PlanejamentoDeViagemETreinamento[[#Totals],[ANO]]+PlanejamentoDeMarketing[[#Totals],[ANO]]+PlanejamentoDeEscritório[[#Totals],[ANO]]+PlanejamentoDeFuncionário[[#Totals],[ANO]] -> R$ 1,609,630.00
B37: TOTAL Despesas planejadas | C37: =SUM($C$36:C36) -> R$ 131,420.00 | D37: =SUM($C$36:D36) -> R$ 258,240.00 | E37: =SUM($C$36:E36) -> R$ 385,060.00 | F37: =SUM($C$36:F36) -> R$ 522,755.00 | G37: =SUM($C$36:G36) -> R$ 652,450.00 | H37: =SUM($C$36:H36) -> R$ 782,945.00 | I37: =SUM($C$36:I36) -> R$ 917,640.00 | J37: =SUM($C$36:J36) -> R$ 1,056,558.00 | K37: =SUM($C$36:K36) -> R$ 1,192,476.00 | L37: =SUM($C$36:L36) -> R$ 1,333,394.00 | M37: =SUM($C$36:M36) -> R$ 1,469,612.00 | N37: =SUM($C$36:N36) -> R$ 1,609,630.00

Sheet DESPESAS REAIS
B2: ='DESPESAS PLANEJADAS'!B2:D3 -> Nome da Empresa | K2: =título_da_planilha -> Estimativas detalhadas de despesas
K3: As células sombreadas são cálculos.
B4: DESPESAS REAIS | C4: JAN | D4: FEV | E4: MAR | F4: ABR | G4: MAIO | H4: JUN | I4: JUL | J4: AGO | K4: SET | L4: OUT | M4: NOV | N4: DEZ | O4: ANO
B5: Custos com funcionários | C5: Jan | D5: Fev | E5: Mar | F5: Abr | G5: Maio | H5: Jun | I5: Jul | J5: Ago | K5: Set | L5: Out | M5: Nov | N5: Dez | O5: ANO
B6: Salários | C6: R$ 85,000.00 | D6: R$ 85,000.00 | E6: R$ 85,000.00 | F6: R$ 88,000.00 | G6: R$ 88,000.00 | H6: R$ 88,000.00 | O6: =SUM(C6:N6) -> R$ 519,000.00
B7: Benefícios | C7: =C6*0.27 -> R$ 22,950.00 | D7: R$ 22,950.00 | E7: R$ 22,950.00 | F7: R$ 23,760.00 | G7: R$ 23,760.00 | H7: R$ 23,760.00 | I7: R$ 0.00 | J7: R$ 0.00 | K7: R$ 0.00 | L7: R$ 0.00 | M7: R$ 0.00 | N7: R$ 0.00 | O7: =SUM(C7:N7) -> R$ 140,130.00
B8: Subtotal | C8: =SUBTOTAL(109,FuncionárioReal[Jan]) -> R$ 107,950.00 | D8: =SUBTOTAL(109,FuncionárioReal[Fev]) -> R$ 107,950.00 | E8: =SUBTOTAL(109,FuncionárioReal[Mar]) -> R$ 107,950.00 | F8: =SUBTOTAL(109,FuncionárioReal[Abr]) -> R$ 111,760.00 | G8: =SUBTOTAL(109,FuncionárioReal[Maio]) -> R$ 111,760.00 | H8: =SUBTOTAL(109,FuncionárioReal[Jun]) -> R$ 111,760.00 | I8: =SUBTOTAL(109,FuncionárioReal[Jul]) -> R$ 0.00 | J8: =SUBTOTAL(109,FuncionárioReal[Ago]) -> R$ 0.00 | K8: =SUBTOTAL(109,FuncionárioReal[Set]) -> R$ 0.00 | L8: =SUBTOTAL(109,FuncionárioReal[Out]) -> R$ 0.00 | M8: =SUBTOTAL(109,FuncionárioReal[Nov]) -> R$ 0.00 | N8: =SUBTOTAL(109,FuncionárioReal[Dez]) -> R$ 0.00 | O8: =SUBTOTAL(109,FuncionárioReal[ANO]) -> R$ 659,130.00
B10: Custos do escritório | C10: Jan | D10: Fev | E10: Mar | F10: Abr | G10: Maio | H10: Jun | I10: Jul | J10: Ago | K10: Set | L10: Out | M10: Nov | N10: Dez | O10: ANO
B11: Aluguel do escritório | C11: R$ 9,800.00 | D11: R$ 9,800.00 | E11: R$ 9,800.00 | F11: R$ 9,800.00 | G11: R$ 9,800.00 | H11: R$ 9,800.00 | O11: =SUM(C11:N11) -> R$ 58,800.00
B12: Gás | C12: R$ 4.00 | D12: R$ 430.00 | E12: R$ 385.00 | F12: R$ 230.00 | G12: R$ 87.00 | H12: R$ 88.00 | O12: R$ 1,224.00
B13: Eletricidade | C13: R$ 288.00 | D13: R$ 278.00 | E13: R$ 268.00 | F13: R$ 299.00 | G13: R$ 306.00 | H13: R$ 290.00 | O13: R$ 1,729.00
B14: Água | C14: R$ 35.00 | D14: R$ 33.00 | E14: R$ 34.00 | F14: R$ 36.00 | G14: R$ 34.00 | H14: R$ 36.00 | O14: R$ 208.00
B15: Telefone | C15: R$ 224.00 | D15: R$ 235.00 | E15: R$ 265.00 | F15: R$ 245.00 | G15: R$ 245.00 | H15: R$ 220.00 | O15: R$ 1,434.00
B16: Acesso à Internet | C16: R$ 180.00 | D16: R$ 180.00 | E16: R$ 180.00 | F16: R$ 180.00 | G16: R$ 180.00 | H16: R$ 180.00 | O16: R$ 1,080.00
B17: Material de escritório | C17: R$ 256.00 | D17: R$ 142.00 | E17: R$ 160.00 | F17: R$ 221.00 | G17: R$ 256.00 | H17: R$ 240.00 | O17: R$ 1,275.00
B18: Segurança | C18: R$ 600.00 | D18: R$ 600.00 | E18: R$ 600.00 | F18: R$ 600.00 | G18: R$ 600.00 | H18: R$ 600.00 | O18: R$ 3,600.00
B19: Subtotal | C19: =SUBTOTAL(109,EscritórioReal[Jan]) -> R$ 11,387.00 | D19: =SUBTOTAL(109,EscritórioReal[Fev]) -> R$ 11,698.00 | E19: =SUBTOTAL(109,EscritórioReal[Mar]) -> R$ 11,692.00 | F19: =SUBTOTAL(109,EscritórioReal[Abr]) -> R$ 11,611.00 | G19: =SUBTOTAL(109,EscritórioReal[Maio]) -> R$ 11,508.00 | H19: =SUBTOTAL(109,EscritórioReal[Jun]) -> R$ 11,454.00 | I19: =SUBTOTAL(109,EscritórioReal[Jul]) -> R$ 0.00 | J19: =SUBTOTAL(109,EscritórioReal[Ago]) -> R$ 0.00 | K19: =SUBTOTAL(109,EscritórioReal[Set]) -> R$ 0.00 | L19: =SUBTOTAL(109,EscritórioReal[Out]) -> R$ 0.00 | M19: =SUBTOTAL(109,EscritórioReal[Nov]) -> R$ 0.00 | N19: =SUBTOTAL(109,EscritórioReal[Dez]) -> R$ 0.00 | O19: =SUBTOTAL(109,EscritórioReal[ANO]) -> R$ 69,350.00
B21: Custos de marketing | C21: Jan | D21: Fev | E21: Mar | F21: Abr | G21: Maio | H21: Jun | I21: Jul | J21: Ago | K21: Set | L21: Out | M21: Nov | N21: Dez | O21: ANO
B22: Hospedagem de site | C22: R$ 500.00 | D22: R$ 500.00 | E22: R$ 500.00 | F22: R$ 500.00 | G22: R$ 500.00 | H22: R$ 500.00 | O22: =SUM(C22:N22) -> R$ 3,000.00
B23: Atualizações do site | C23: R$ 200.00 | D23: R$ 200.00 | E23: R$ 200.00 | F23: R$ 200.00 | G23: R$ 200.00 | H23: R$ 1,500.00 | O23: R$ 2,500.00
B24: Preparação de materiais de referência | C24: R$ 4,800.00 | D24: R$ 0.00 | E24: R$ 0.00 | F24: R$ 5,500.00 | G24: R$ 0.00 | H24: R$ 0.00 | O24: R$ 10,300.00
B25: Impressão de materiais de referência | C25: R$ 100.00 | D25: R$ 500.00 | E25: R$ 100.00 | F25: R$ 100.00 | G25: R$ 600.00 | H25: R$ 180.00 | O25: R$ 1,580.00
B26: Eventos de marketing | C26: R$ 1,800.00 | D26: R$ 2,200.00 | E26: R$ 2,200.00 | F26: R$ 4,700.00 | G26: R$ 1,500.00 | H26: R$ 2,300.00 | O26: R$ 14,700.00
B27: Despesas diversas | C27: R$ 145.00 | D27: R$ 156.00 | E27: R$ 123.00 | F27: R$ 223.00 | G27: R$ 187.00 | H27: R$ 245.00 | O27: R$ 1,079.00
B28: Subtotal | C28: =SUBTOTAL(109,MarketingReal[Jan]) -> R$ 7,545.00 | D28: =SUBTOTAL(109,MarketingReal[Fev]) -> R$ 3,556.00 | E28: =SUBTOTAL(109,MarketingReal[Mar]) -> R$ 3,123.00 | F28: =SUBTOTAL(109,MarketingReal[Abr]) -> R$ 11,223.00 | G28: =SUBTOTAL(109,MarketingReal[Maio]) -> R$ 2,987.00 | H28: =SUBTOTAL(109,MarketingReal[Jun]) -> R$ 4,725.00 | I28: =SUBTOTAL(109,MarketingReal[Jul]) -> R$ 0.00 | J28: =SUBTOTAL(109,MarketingReal[Ago]) -> R$ 0.00 | K28: =SUBTOTAL(109,MarketingReal[Set]) -> R$ 0.00 | L28: =SUBTOTAL(109,MarketingReal[Out]) -> R$ 0.00 | M28: =SUBTOTAL(109,MarketingReal[Nov]) -> R$ 0.00 | N28: =SUBTOTAL(109,MarketingReal[Dez]) -> R$ 0.00 | O28: =SUBTOTAL(109,MarketingReal[ANO]) -> R$ 33,159.00
B30: Viagem/Treinamento | C30: Jan | D30: Fev | E30: Mar | F30: Abr | G30: Maio | H30: Jun | I30: Jul | J30: Ago | K30: Set | L30: Out | M30: Nov | N30: Dez | O30: ANO
B31: Sessões de treinamento | C31: R$ 1,600.00 | D31: R$ 2,400.00 | E31: R$ 1,400.00 | F31: R$ 1,600.00 | G31: R$ 1,200.00 | H31: R$ 2,800.00 | O31: =SUM(C31:N31) -> R$ 11,000.00
B32: Custos com viagens para treinamento | C32: R$ 1,200.00 | D32: R$ 2,200.00 | E32: R$ 1,400.00 | F32: R$ 1,200.00 | G32: R$ 800.00 | H32: R$ 3,500.00 | O32: =SUM(C32:N32) -> R$ 10,300.00
B33: Subtotal | C33: =SUBTOTAL(109,RealViagemETreinamento[Jan]) -> R$ 2,800.00 | D33: =SUBTOTAL(109,RealViagemETreinamento[Fev]) -> R$ 4,600.00 | E33: =SUBTOTAL(109,RealViagemETreinamento[Mar]) -> R$ 2,800.00 | F33: =SUBTOTAL(109,RealViagemETreinamento[Abr]) -> R$ 2,800.00 | G33: =SUBTOTAL(109,RealViagemETreinamento[Maio]) -> R$ 2,000.00 | H33: =SUBTOTAL(109,RealViagemETreinamento[Jun]) -> R$ 6,300.00 | I33: =SUBTOTAL(109,RealViagemETreinamento[Jul]) -> R$ 0.00 | J33: =SUBTOTAL(109,RealViagemETreinamento[Ago]) -> R$ 0.00 | K33: =SUBTOTAL(109,RealViagemETreinamento[Set]) -> R$ 0.00 | L33: =SUBTOTAL(109,RealViagemETreinamento[Out]) -> R$ 0.00 | M33: =SUBTOTAL(109,RealViagemETreinamento[Nov]) -> R$ 0.00 | N33: =SUBTOTAL(109,RealViagemETreinamento[Dez]) -> R$ 0.00 | O33: =SUBTOTAL(109,RealViagemETreinamento[ANO]) -> R$ 21,300.00
B35: TOTAL Despesas planejadas | C35: Jan | D35: Fev | E35: Mar | F35: Abr | G35: Mai | H35: Jun | I35: Jul | J35: Ago | K35: Set | L35: Out | M35: Nov | N35: Dez | O35: Ano
B36: Despesas mensais reais | C36: =RealViagemETreinamento[[#Totals],[Jan]]+MarketingReal[[#Totals],[Jan]]+EscritórioReal[[#Totals],[Jan]]+FuncionárioReal[[#Totals],[Jan]] -> R$ 129,682.00 | D36: =RealViagemETreinamento[[#Totals],[Fev]]+MarketingReal[[#Totals],[Fev]]+EscritórioReal[[#Totals],[Fev]]+FuncionárioReal[[#Totals],[Fev]] -> R$ 127,804.00 | E36: =RealViagemETreinamento[[#Totals],[Mar]]+MarketingReal[[#Totals],[Mar]]+EscritórioReal[[#Totals],[Mar]]+FuncionárioReal[[#Totals],[Mar]] -> R$ 125,565.00 | F36: =RealViagemETreinamento[[#Totals],[Abr]]+MarketingReal[[#Totals],[Abr]]+EscritórioReal[[#Totals],[Abr]]+FuncionárioReal[[#Totals],[Abr]] -> R$ 137,394.00 | G36: =RealViagemETreinamento[[#Totals],[Maio]]+MarketingReal[[#Totals],[Maio]]+EscritórioReal[[#Totals],[Maio]]+FuncionárioReal[[#Totals],[Maio]] -> R$ 128,255.00 | H36: =RealViagemETreinamento[[#Totals],[Jun]]+MarketingReal[[#Totals],[Jun]]+EscritórioReal[[#Totals],[Jun]]+FuncionárioReal[[#Totals],[Jun]] -> R$ 134,239.00 | I36: =RealViagemETreinamento[[#Totals],[Jul]]+MarketingReal[[#Totals],[Jul]]+EscritórioReal[[#Totals],[Jul]]+FuncionárioReal[[#Totals],[Jul]] -> R$ 0.00 | J36: =RealViagemETreinamento[[#Totals],[Ago]]+MarketingReal[[#Totals],[Ago]]+EscritórioReal[[#Totals],[Ago]]+FuncionárioReal[[#Totals],[Ago]] -> R$ 0.00 | K36: =RealViagemETreinamento[[#Totals],[Set]]+MarketingReal[[#Totals],[Set]]+EscritórioReal[[#Totals],[Set]]+FuncionárioReal[[#Totals],[Set]] -> R$ 0.00 | L36: =RealViagemETreinamento[[#Totals],[Out]]+MarketingReal[[#Totals],[Out]]+EscritórioReal[[#Totals],[Out]]+FuncionárioReal[[#Totals],[Out]] -> R$ 0.00 | M36: =RealViagemETreinamento[[#Totals],[Nov]]+MarketingReal[[#Totals],[Nov]]+EscritórioReal[[#Totals],[Nov]]+FuncionárioReal[[#Totals],[Nov]] -> R$ 0.00 | N36: =RealViagemETreinamento[[#Totals],[Dez]]+MarketingReal[[#Totals],[Dez]]+EscritórioReal[[#Totals],[Dez]]+FuncionárioReal[[#Totals],[Dez]] -> R$ 0.00 | O36: =RealViagemETreinamento[[#Totals],[ANO]]+MarketingReal[[#Totals],[ANO]]+EscritórioReal[[#Totals],[ANO]]+FuncionárioReal[[#Totals],[ANO]] -> R$ 782,939.00
B37: TOTAL Despesas reais | C37: =SUM($C$36:C36) -> R$ 129,682.00 | D37: =SUM($C$36:D36) -> R$ 257,486.00 | E37: =SUM($C$36:E36) -> R$ 383,051.00 | F37: =SUM($C$36:F36) -> R$ 520,445.00 | G37: =SUM($C$36:G36) -> R$ 648,700.00 | H37: =SUM($C$36:H36) -> R$ 782,939.00 | I37: =SUM($C$36:I36) -> R$ 782,939.00 | J37: =SUM($C$36:J36) -> R$ 782,939.00 | K37: =SUM($C$36:K36) -> R$ 782,939.00 | L37: =SUM($C$36:L36) -> R$ 782,939.00 | M37: =SUM($C$36:M36) -> R$ 782,939.00 | N37: =SUM($C$36:N36) -> R$ 782,939.00

Sheet VARIAÇÕES DE DESPESAS
B2: ='DESPESAS PLANEJADAS'!B2:D3 -> Nome da Empresa | K2: =título_da_planilha -> Estimativas detalhadas de despesas
K3: As células sombreadas são cálculos.
B4: VARIAÇÕES DE DESPESAS | C4: JAN | D4: FEV | E4: MAR | F4: ABR | G4: MAIO | H4: JUN | I4: JUL | J4: AGO | K4: SET | L4: OUT | M4: NOV | N4: DEZ | O4: ANO
B5: Custos com funcionários | C5: Jan | D5: Fev | E5: Mar | F5: Abr | G5: Maio | H5: Jun | I5: Jul | J5: Ago | K5: Set | L5: Out | M5: Nov | N5: Dez | O5: ANO
B6: Salários | C6: =INDEX(PlanejamentoDeFuncionário[],MATCH(INDEX(VariaçõesDeFuncionários[],ROW()-ROW(VariaçõesDeFuncionários[[#Headers],[Jan]]),1),INDEX(PlanejamentoDeFuncionário[],,1),0),MATCH(VariaçõesDeFuncionários[[#Headers],[Jan]],PlanejamentoDeFuncionário[#Headers],0))-INDEX(FuncionárioReal[],MATCH(INDEX(VariaçõesDeFuncionários[],ROW()-ROW(VariaçõesDeFuncionários[[#Headers],[Jan]]),1),INDEX(PlanejamentoDeFuncionário[],,1),0),MATCH(VariaçõesDeFuncionários[[#Headers],[Jan]],FuncionárioReal[#Headers],0)) -> R$ 0.00 | D6: =INDEX(PlanejamentoDeFuncionário[],MATCH(INDEX(VariaçõesDeFuncionários[],ROW()-ROW(VariaçõesDeFuncionários[[#Headers],[Fev]]),1),INDEX(PlanejamentoDeFuncionário[],,1),0),MATCH(VariaçõesDeFuncionários[[#Headers],[Fev]],PlanejamentoDeFuncionário[#Headers],0))-INDEX(FuncionárioReal[],MATCH(INDEX(VariaçõesDeFuncionários[],ROW()-ROW(VariaçõesDeFuncionários[[#Headers],[Fev]]),1),INDEX(PlanejamentoDeFuncionário[],,1),0),MATCH(VariaçõesDeFuncionários[[#Headers],[Fev]],FuncionárioReal[#Headers],0)) -> R$ 0.00 | E6: =INDEX(PlanejamentoDeFuncionário[],MATCH(INDEX(VariaçõesDeFuncionários[],ROW()-ROW(VariaçõesDeFuncionários[[#Headers],[Mar]]),1),INDEX(PlanejamentoDeFuncionário[],,1),0),MATCH(VariaçõesDeFuncionários[[#Headers],[Mar]],PlanejamentoDeFuncionário[#Headers],0))-INDEX(FuncionárioReal[],MATCH(INDEX(VariaçõesDeFuncionários[],ROW()-ROW(VariaçõesDeFuncionários[[#Headers],[Mar]]),1),INDEX(PlanejamentoDeFuncionário[],,1),0),MATCH(VariaçõesDeFuncionários[[#Headers],[Mar]],FuncionárioReal[#Headers],0)) -> R$ 0.00 | F6: =INDEX(PlanejamentoDeFuncionário[],MATCH(INDEX(VariaçõesDeFuncionários[],ROW()-ROW(VariaçõesDeFuncionários[[#Headers],[Abr]]),1),INDEX(PlanejamentoDeFuncionário[],,1),0),MATCH(VariaçõesDeFuncionários[[#Headers],[Abr]],PlanejamentoDeFuncionário[#Headers],0))-INDEX(FuncionárioReal[],MATCH(INDEX(VariaçõesDeFuncionários[],ROW()-ROW(VariaçõesDeFuncionários[[#Headers],[Abr]]),1),INDEX(PlanejamentoDeFuncionário[],,1),0),MATCH(VariaçõesDeFuncionários[[#Headers],[Abr]],FuncionárioReal[#Headers],0)) -> -R$ 500.00 | G6: =INDEX(PlanejamentoDeFuncionário[],MATCH(INDEX(VariaçõesDeFuncionários[],ROW()-ROW(VariaçõesDeFuncionários[[#Headers],[Maio]]),1),INDEX(PlanejamentoDeFuncionário[],,1),0),MATCH(VariaçõesDeFuncionários[[#Headers],[Maio]],PlanejamentoDeFuncionário[#Headers],0))-INDEX(FuncionárioReal[],MATCH(INDEX(VariaçõesDeFuncionários[],ROW()-ROW(VariaçõesDeFuncionários[[#Headers],[Maio]]),1),INDEX(PlanejamentoDeFuncionário[],,1),0),MATCH(VariaçõesDeFuncionários[[#Headers],[Maio]],FuncionárioReal[#Headers],0)) -> -R$ 500.00 | H6: =INDEX(PlanejamentoDeFuncionário[],MATCH(INDEX(VariaçõesDeFuncionários[],ROW()-ROW(VariaçõesDeFuncionários[[#Headers],[Jun]]),1),INDEX(PlanejamentoDeFuncionário[],,1),0),MATCH(VariaçõesDeFuncionários[[#Headers],[Jun]],PlanejamentoDeFuncionário[#Headers],0))-INDEX(FuncionárioReal[],MATCH(INDEX(VariaçõesDeFuncionários[],ROW()-ROW(VariaçõesDeFuncionários[[#Headers],[Jun]]),1),INDEX(PlanejamentoDeFuncionário[],,1),0),MATCH(VariaçõesDeFuncionários[[#Headers],[Jun]],FuncionárioReal[#Headers],0)) -> -R$ 500.00 | I6: =INDEX(PlanejamentoDeFuncionário[],MATCH(INDEX(VariaçõesDeFuncionários[],ROW()-ROW(VariaçõesDeFuncionários[[#Headers],[Jul]]),1),INDEX(PlanejamentoDeFuncionário[],,1),0),MATCH(VariaçõesDeFuncionários[[#Headers],[Jul]],PlanejamentoDeFuncionário[#Headers],0))-INDEX(FuncionárioReal[],MATCH(INDEX(VariaçõesDeFuncionários[],ROW()-ROW(VariaçõesDeFuncionários[[#Headers],[Jul]]),1),INDEX(PlanejamentoDeFuncionário[],,1),0),MATCH(VariaçõesDeFuncionários[[#Headers],[Jul]],FuncionárioReal[#Headers],0)) -> R$ 87,500.00 | J6: =INDEX(PlanejamentoDeFuncionário[],MATCH(INDEX(VariaçõesDeFuncionários[],ROW()-ROW(VariaçõesDeFuncionários[[#Headers],[Ago]]),1),INDEX(PlanejamentoDeFuncionário[],,1),0),MATCH(VariaçõesDeFuncionários[[#Headers],[Ago]],PlanejamentoDeFuncionário[#Headers],0))-INDEX(FuncionárioReal[],MATCH(INDEX(VariaçõesDeFuncionários[],ROW()-ROW(VariaçõesDeFuncionários[[#Headers],[Ago]]),1),INDEX(PlanejamentoDeFuncionário[],,1),0),MATCH(VariaçõesDeFuncionários[[#Headers],[Ago]],FuncionárioReal[#Headers],0)) -> R$ 92,400.00 | K6: =INDEX(PlanejamentoDeFuncionário[],MATCH(INDEX(VariaçõesDeFuncionários[],ROW()-ROW(VariaçõesDeFuncionários[[#Headers],[Set]]),1),INDEX(PlanejamentoDeFuncionário[],,1),0),MATCH(VariaçõesDeFuncionários[[#Headers],[Set]],PlanejamentoDeFuncionário[#Headers],0))-INDEX(FuncionárioReal[],MATCH(INDEX(VariaçõesDeFuncionários[],ROW()-ROW(VariaçõesDeFuncionários[[#Headers],[Set]]),1),INDEX(PlanejamentoDeFuncionário[],,1),0),MATCH(VariaçõesDeFuncionários[[#Headers],[Set]],FuncionárioReal[#Headers],0)) -> R$ 92,400.00 | L6: =INDEX(PlanejamentoDeFuncionário[],MATCH(INDEX(VariaçõesDeFuncionários[],ROW()-ROW(VariaçõesDeFuncionários[[#Headers],[Out]]),1),INDEX(PlanejamentoDeFuncionário[],,1),0),MATCH(VariaçõesDeFuncionários[[#Headers],[Out]],PlanejamentoDeFuncionário[#Headers],0))-INDEX(FuncionárioReal[],MATCH(INDEX(VariaçõesDeFuncionários[],ROW()-ROW(VariaçõesDeFuncionários[[#Headers],[Out]]),1),INDEX(PlanejamentoDeFuncionário[],,1),0),MATCH(VariaçõesDeFuncionários[[#Headers],[Out]],FuncionárioReal[#Headers],0)) -> R$ 92,400.00 | M6: =INDEX(PlanejamentoDeFuncionário[],MATCH(INDEX(VariaçõesDeFuncionários[],ROW()-ROW(VariaçõesDeFuncionários[[#Headers],[Nov]]),1),INDEX(PlanejamentoDeFuncionário[],,1),0),MATCH(VariaçõesDeFuncionários[[#Headers],[Nov]],PlanejamentoDeFuncionário[#Headers],0))-INDEX(FuncionárioReal[],MATCH(INDEX(VariaçõesDeFuncionários[],ROW()-ROW(VariaçõesDeFuncionários[[#Headers],[Nov]]),1),INDEX(PlanejamentoDeFuncionário[],,1),0),MATCH(VariaçõesDeFuncionários[[#Headers],[Nov]],FuncionárioReal[#Headers],0)) -> R$ 92,400.00 | N6: =INDEX(PlanejamentoDeFuncionário[],MATCH(INDEX(VariaçõesDeFuncionários[],ROW()-ROW(VariaçõesDeFuncionários[[#Headers],[Dez]]),1),INDEX(PlanejamentoDeFuncionário[],,1),0),MATCH(VariaçõesDeFuncionários[[#Headers],[Dez]],PlanejamentoDeFuncionário[#Headers],0))-INDEX(FuncionárioReal[],MATCH(INDEX(VariaçõesDeFuncionários[],ROW()-ROW(VariaçõesDeFuncionários[[#Headers],[Dez]]),1),INDEX(PlanejamentoDeFuncionário[],,1),0),MATCH(VariaçõesDeFuncionários[[#Headers],[Dez]],FuncionárioReal[#Headers],0)) -> R$ 92,400.00 | O6: =SUM(VariaçõesDeFuncionários[[#This Row],[Jan]:[Dez]]) -> R$ 548,000.00
B7: Benefícios | C7: =INDEX(PlanejamentoDeFuncionário[],MATCH(INDEX(VariaçõesDeFuncionários[],ROW()-ROW(VariaçõesDeFuncionários[[#Headers],[Jan]]),1),INDEX(PlanejamentoDeFuncionário[],,1),0),MATCH(VariaçõesDeFuncionários[[#Headers],[Jan]],PlanejamentoDeFuncionário[#Headers],0))-INDEX(FuncionárioReal[],MATCH(INDEX(VariaçõesDeFuncionários[],ROW()-ROW(VariaçõesDeFuncionários[[#Headers],[Jan]]),1),INDEX(PlanejamentoDeFuncionário[],,1),0),MATCH(VariaçõesDeFuncionários[[#Headers],[Jan]],FuncionárioReal[#Headers],0)) -> R$ 0.00 | D7: =INDEX(PlanejamentoDeFuncionário[],MATCH(INDEX(VariaçõesDeFuncionários[],ROW()-ROW(VariaçõesDeFuncionários[[#Headers],[Fev]]),1),INDEX(PlanejamentoDeFuncionário[],,1),0),MATCH(VariaçõesDeFuncionários[[#Headers],[Fev]],PlanejamentoDeFuncionário[#Headers],0))-INDEX(FuncionárioReal[],MATCH(INDEX(VariaçõesDeFuncionários[],ROW()-ROW(VariaçõesDeFuncionários[[#Headers],[Fev]]),1),INDEX(PlanejamentoDeFuncionário[],,1),0),MATCH(VariaçõesDeFuncionários[[#Headers],[Fev]],FuncionárioReal[#Headers],0)) -> R$ 0.00 | E7: =INDEX(PlanejamentoDeFuncionário[],MATCH(INDEX(VariaçõesDeFuncionários[],ROW()-ROW(VariaçõesDeFuncionários[[#Headers],[Mar]]),1),INDEX(PlanejamentoDeFuncionário[],,1),0),MATCH(VariaçõesDeFuncionários[[#Headers],[Mar]],PlanejamentoDeFuncionário[#Headers],0))-INDEX(FuncionárioReal[],MATCH(INDEX(VariaçõesDeFuncionários[],ROW()-ROW(VariaçõesDeFuncionários[[#Headers],[Mar]]),1),INDEX(PlanejamentoDeFuncionário[],,1),0),MATCH(VariaçõesDeFuncionários[[#Headers],[Mar]],FuncionárioReal[#Headers],0)) -> R$ 0.00 | F7: =INDEX(PlanejamentoDeFuncionário[],MATCH(INDEX(VariaçõesDeFuncionários[],ROW()-ROW(VariaçõesDeFuncionários[[#Headers],[Abr]]),1),INDEX(PlanejamentoDeFuncionário[],,1),0),MATCH(VariaçõesDeFuncionários[[#Headers],[Abr]],PlanejamentoDeFuncionário[#Headers],0))-INDEX(FuncionárioReal[],MATCH(INDEX(VariaçõesDeFuncionários[],ROW()-ROW(VariaçõesDeFuncionários[[#Headers],[Abr]]),1),INDEX(PlanejamentoDeFuncionário[],,1),0),MATCH(VariaçõesDeFuncionários[[#Headers],[Abr]],FuncionárioReal[#Headers],0)) -> -R$ 135.00 | G7: =INDEX(PlanejamentoDeFuncionário[],MATCH(INDEX(VariaçõesDeFuncionários[],ROW()-ROW(VariaçõesDeFuncionários[[#Headers],[Maio]]),1),INDEX(PlanejamentoDeFuncionário[],,1),0),MATCH(VariaçõesDeFuncionários[[#Headers],[Maio]],PlanejamentoDeFuncionário[#Headers],0))-INDEX(FuncionárioReal[],MATCH(INDEX(VariaçõesDeFuncionários[],ROW()-ROW(VariaçõesDeFuncionários[[#Headers],[Maio]]),1),INDEX(PlanejamentoDeFuncionário[],,1),0),MATCH(VariaçõesDeFuncionários[[#Headers],[Maio]],FuncionárioReal[#Headers],0)) -> -R$ 135.00 | H7: =INDEX(PlanejamentoDeFuncionário[],MATCH(INDEX(VariaçõesDeFuncionários[],ROW()-ROW(VariaçõesDeFuncionários[[#Headers],[Jun]]),1),INDEX(PlanejamentoDeFuncionário[],,1),0),MATCH(VariaçõesDeFuncionários[[#Headers],[Jun]],PlanejamentoDeFuncionário[#Headers],0))-INDEX(FuncionárioReal[],MATCH(INDEX(VariaçõesDeFuncionários[],ROW()-ROW(VariaçõesDeFuncionários[[#Headers],[Jun]]),1),INDEX(PlanejamentoDeFuncionário[],,1),0),MATCH(VariaçõesDeFuncionários[[#Headers],[Jun]],FuncionárioReal[#Headers],0)) -> -R$ 135.00 | I7: =INDEX(PlanejamentoDeFuncionário[],MATCH(INDEX(VariaçõesDeFuncionários[],ROW()-ROW(VariaçõesDeFuncionários[[#Headers],[Jul]]),1),INDEX(PlanejamentoDeFuncionário[],,1),0),MATCH(VariaçõesDeFuncionários[[#Headers],[Jul]],PlanejamentoDeFuncionário[#Headers],0))-INDEX(FuncionárioReal[],MATCH(INDEX(VariaçõesDeFuncionários[],ROW()-ROW(VariaçõesDeFuncionários[[#Headers],[Jul]]),1),INDEX(PlanejamentoDeFuncionário[],,1),0),MATCH(VariaçõesDeFuncionários[[#Headers],[Jul]],FuncionárioReal[#Headers],0)) -> R$ 23,625.00 | J7: =INDEX(PlanejamentoDeFuncionário[],MATCH(INDEX(VariaçõesDeFuncionários[],ROW()-ROW(VariaçõesDeFuncionários[[#Headers],[Ago]]),1),INDEX(PlanejamentoDeFuncionário[],,1),0),MATCH(VariaçõesDeFuncionários[[#Headers],[Ago]],PlanejamentoDeFuncionário[#Headers],0))-INDEX(FuncionárioReal[],MATCH(INDEX(VariaçõesDeFuncionários[],ROW()-ROW(VariaçõesDeFuncionários[[#Headers],[Ago]]),1),INDEX(PlanejamentoDeFuncionário[],,1),0),MATCH(VariaçõesDeFuncionários[[#Headers],[Ago]],FuncionárioReal[#Headers],0)) -> R$ 24,948.00 | K7: =INDEX(PlanejamentoDeFuncionário[],MATCH(INDEX(VariaçõesDeFuncionários[],ROW()-ROW(VariaçõesDeFuncionários[[#Headers],[Set]]),1),INDEX(PlanejamentoDeFuncionário[],,1),0),MATCH(VariaçõesDeFuncionários[[#Headers],[Set]],PlanejamentoDeFuncionário[#Headers],0))-INDEX(FuncionárioReal[],MATCH(INDEX(VariaçõesDeFuncionários[],ROW()-ROW(VariaçõesDeFuncionários[[#Headers],[Set]]),1),INDEX(PlanejamentoDeFuncionário[],,1),0),MATCH(VariaçõesDeFuncionários[[#Headers],[Set]],FuncionárioReal[#Headers],0)) -> R$ 24,948.00 | L7: =INDEX(PlanejamentoDeFuncionário[],MATCH(INDEX(VariaçõesDeFuncionários[],ROW()-ROW(VariaçõesDeFuncionários[[#Headers],[Out]]),1),INDEX(PlanejamentoDeFuncionário[],,1),0),MATCH(VariaçõesDeFuncionários[[#Headers],[Out]],PlanejamentoDeFuncionário[#Headers],0))-INDEX(FuncionárioReal[],MATCH(INDEX(VariaçõesDeFuncionários[],ROW()-ROW(VariaçõesDeFuncionários[[#Headers],[Out]]),1),INDEX(PlanejamentoDeFuncionário[],,1),0),MATCH(VariaçõesDeFuncionários[[#Headers],[Out]],FuncionárioReal[#Headers],0)) -> R$ 24,948.00 | M7: =INDEX(PlanejamentoDeFuncionário[],MATCH(INDEX(VariaçõesDeFuncionários[],ROW()-ROW(VariaçõesDeFuncionários[[#Headers],[Nov]]),1),INDEX(PlanejamentoDeFuncionário[],,1),0),MATCH(VariaçõesDeFuncionários[[#Headers],[Nov]],PlanejamentoDeFuncionário[#Headers],0))-INDEX(FuncionárioReal[],MATCH(INDEX(VariaçõesDeFuncionários[],ROW()-ROW(VariaçõesDeFuncionários[[#Headers],[Nov]]),1),INDEX(PlanejamentoDeFuncionário[],,1),0),MATCH(VariaçõesDeFuncionários[[#Headers],[Nov]],FuncionárioReal[#Headers],0)) -> R$ 24,948.00 | N7: =INDEX(PlanejamentoDeFuncionário[],MATCH(INDEX(VariaçõesDeFuncionários[],ROW()-ROW(VariaçõesDeFuncionários[[#Headers],[Dez]]),1),INDEX(PlanejamentoDeFuncionário[],,1),0),MATCH(VariaçõesDeFuncionários[[#Headers],[Dez]],PlanejamentoDeFuncionário[#Headers],0))-INDEX(FuncionárioReal[],MATCH(INDEX(VariaçõesDeFuncionários[],ROW()-ROW(VariaçõesDeFuncionários[[#Headers],[Dez]]),1),INDEX(PlanejamentoDeFuncionário[],,1),0),MATCH(VariaçõesDeFuncionários[[#Headers],[Dez]],FuncionárioReal[#Headers],0)) -> R$ 24,948.00 | O7: =SUM(VariaçõesDeFuncionários[[#This Row],[Jan]:[Dez]]) -> R$ 147,960.00
B8: Subtotal | C8: =SUBTOTAL(109,VariaçõesDeFuncionários[Jan]) -> R$ 0.00 | D8: =SUBTOTAL(109,VariaçõesDeFuncionários[Fev]) -> R$ 0.00 | E8: =SUBTOTAL(109,VariaçõesDeFuncionários[Mar]) -> R$ 0.00 | F8: =SUBTOTAL(109,VariaçõesDeFuncionários[Abr]) -> -R$ 635.00 | G8: =SUBTOTAL(109,VariaçõesDeFuncionários[Maio]) -> -R$ 635.00 | H8: =SUBTOTAL(109,VariaçõesDeFuncionários[Jun]) -> -R$ 635.00 | I8: =SUBTOTAL(109,VariaçõesDeFuncionários[Jul]) -> R$ 111,125.00 | J8: =SUBTOTAL(109,VariaçõesDeFuncionários[Ago]) -> R$ 117,348.00 | K8: =SUBTOTAL(109,VariaçõesDeFuncionários[Set]) -> R$ 117,348.00 | L8: =SUBTOTAL(109,VariaçõesDeFuncionários[Out]) -> R$ 117,348.00 | M8: =SUBTOTAL(109,VariaçõesDeFuncionários[Nov]) -> R$ 117,348.00 | N8: =SUBTOTAL(109,VariaçõesDeFuncionários[Dez]) -> R$ 117,348.00 | O8: =SUBTOTAL(109,VariaçõesDeFuncionários[ANO]) -> R$ 695,960.00
B10: Custos do escritório | C10: Jan | D10: Fev | E10: Mar | F10: Abr | G10: Maio | H10: Jun | I10: Jul | J10: Ago | K10: Set | L10: Out | M10: Nov | N10: Dez | O10: ANO
B11: Aluguel do escritório | C11: =INDEX(PlanejamentoDeEscritório[],MATCH(INDEX(VariaçõesDoEscritório[],ROW()-ROW(VariaçõesDoEscritório[[#Headers],[Jan]]),1),INDEX(PlanejamentoDeEscritório[],,1),0),MATCH(VariaçõesDoEscritório[[#Headers],[Jan]],PlanejamentoDeEscritório[#Headers],0))-INDEX(EscritórioReal[],MATCH(INDEX(VariaçõesDoEscritório[],ROW()-ROW(VariaçõesDoEscritório[[#Headers],[Jan]]),1),INDEX(EscritórioReal[],,1),0),MATCH(VariaçõesDoEscritório[[#Headers],[Jan]],EscritórioReal[#Headers],0)) -> R$ 0.00 | D11: =INDEX(PlanejamentoDeEscritório[],MATCH(INDEX(VariaçõesDoEscritório[],ROW()-ROW(VariaçõesDoEscritório[[#Headers],[Fev]]),1),INDEX(PlanejamentoDeEscritório[],,1),0),MATCH(VariaçõesDoEscritório[[#Headers],[Fev]],PlanejamentoDeEscritório[#Headers],0))-INDEX(EscritórioReal[],MATCH(INDEX(VariaçõesDoEscritório[],ROW()-ROW(VariaçõesDoEscritório[[#Headers],[Fev]]),1),INDEX(EscritórioReal[],,1),0),MATCH(VariaçõesDoEscritório[[#Headers],[Fev]],EscritórioReal[#Headers],0)) -> R$ 0.00 | E11: =INDEX(PlanejamentoDeEscritório[],MATCH(INDEX(VariaçõesDoEscritório[],ROW()-ROW(VariaçõesDoEscritório[[#Headers],[Mar]]),1),INDEX(PlanejamentoDeEscritório[],,1),0),MATCH(VariaçõesDoEscritório[[#Headers],[Mar]],PlanejamentoDeEscritório[#Headers],0))-INDEX(EscritórioReal[],MATCH(INDEX(VariaçõesDoEscritório[],ROW()-ROW(VariaçõesDoEscritório[[#Headers],[Mar]]),1),INDEX(EscritórioReal[],,1),0),MATCH(VariaçõesDoEscritório[[#Headers],[Mar]],EscritórioReal[#Headers],0)) -> R$ 0.00 | F11: =INDEX(PlanejamentoDeEscritório[],MATCH(INDEX(VariaçõesDoEscritório[],ROW()-ROW(VariaçõesDoEscritório[[#Headers],[Abr]]),1),INDEX(PlanejamentoDeEscritório[],,1),0),MATCH(VariaçõesDoEscritório[[#Headers],[Abr]],PlanejamentoDeEscritório[#Headers],0))-INDEX(EscritórioReal[],MATCH(INDEX(VariaçõesDoEscritório[],ROW()-ROW(VariaçõesDoEscritório[[#Headers],[Abr]]),1),INDEX(EscritórioReal[],,1),0),MATCH(VariaçõesDoEscritório[[#Headers],[Abr]],EscritórioReal[#Headers],0)) -> R$ 0.00 | G11: =INDEX(PlanejamentoDeEscritório[],MATCH(INDEX(VariaçõesDoEscritório[],ROW()-ROW(VariaçõesDoEscritório[[#Headers],[Maio]]),1),INDEX(PlanejamentoDeEscritório[],,1),0),MATCH(VariaçõesDoEscritório[[#Headers],[Maio]],PlanejamentoDeEscritório[#Headers],0))-INDEX(EscritórioReal[],MATCH(INDEX(VariaçõesDoEscritório[],ROW()-ROW(VariaçõesDoEscritório[[#Headers],[Maio]]),1),INDEX(EscritórioReal[],,1),0),MATCH(VariaçõesDoEscritório[[#Headers],[Maio]],EscritórioReal[#Headers],0)) -> R$ 0.00 | H11: =INDEX(PlanejamentoDeEscritório[],MATCH(INDEX(VariaçõesDoEscritório[],ROW()-ROW(VariaçõesDoEscritório[[#Headers],[Jun]]),1),INDEX(PlanejamentoDeEscritório[],,1),0),MATCH(VariaçõesDoEscritório[[#Headers],[Jun]],PlanejamentoDeEscritório[#Headers],0))-INDEX(EscritórioReal[],MATCH(INDEX(VariaçõesDoEscritório[],ROW()-ROW(VariaçõesDoEscritório[[#Headers],[Jun]]),1),INDEX(EscritórioReal[],,1),0),MATCH(VariaçõesDoEscritório[[#Headers],[Jun]],EscritórioReal[#Headers],0)) -> R$ 0.00 | I11: =INDEX(PlanejamentoDeEscritório[],MATCH(INDEX(VariaçõesDoEscritório[],ROW()-ROW(VariaçõesDoEscritório[[#Headers],[Jul]]),1),INDEX(PlanejamentoDeEscritório[],,1),0),MATCH(VariaçõesDoEscritório[[#Headers],[Jul]],PlanejamentoDeEscritório[#Headers],0))-INDEX(EscritórioReal[],MATCH(INDEX(VariaçõesDoEscritório[],ROW()-ROW(VariaçõesDoEscritório[[#Headers],[Jul]]),1),INDEX(EscritórioReal[],,1),0),MATCH(VariaçõesDoEscritório[[#Headers],[Jul]],EscritórioReal[#Headers],0)) -> R$ 9,800.00 | J11: =INDEX(PlanejamentoDeEscritório[],MATCH(INDEX(VariaçõesDoEscritório[],ROW()-ROW(VariaçõesDoEscritório[[#Headers],[Ago]]),1),INDEX(PlanejamentoDeEscritório[],,1),0),MATCH(VariaçõesDoEscritório[[#Headers],[Ago]],PlanejamentoDeEscritório[#Headers],0))-INDEX(EscritórioReal[],MATCH(INDEX(VariaçõesDoEscritório[],ROW()-ROW(VariaçõesDoEscritório[[#Headers],[Ago]]),1),INDEX(EscritórioReal[],,1),0),MATCH(VariaçõesDoEscritório[[#Headers],[Ago]],EscritórioReal[#Headers],0)) -> R$ 9,800.00 | K11: =INDEX(PlanejamentoDeEscritório[],MATCH(INDEX(VariaçõesDoEscritório[],ROW()-ROW(VariaçõesDoEscritório[[#Headers],[Set]]),1),INDEX(PlanejamentoDeEscritório[],,1),0),MATCH(VariaçõesDoEscritório[[#Headers],[Set]],PlanejamentoDeEscritório[#Headers],0))-INDEX(EscritórioReal[],MATCH(INDEX(VariaçõesDoEscritório[],ROW()-ROW(VariaçõesDoEscritório[[#Headers],[Set]]),1),INDEX(EscritórioReal[],,1),0),MATCH(VariaçõesDoEscritório[[#Headers],[Set]],EscritórioReal[#Headers],0)) -> R$ 9,800.00 | L11: =INDEX(PlanejamentoDeEscritório[],MATCH(INDEX(VariaçõesDoEscritório[],ROW()-ROW(VariaçõesDoEscritório[[#Headers],[Out]]),1),INDEX(PlanejamentoDeEscritório[],,1),0),MATCH(VariaçõesDoEscritório[[#Headers],[Out]],PlanejamentoDeEscritório[#Headers],0))-INDEX(EscritórioReal[],MATCH(INDEX(VariaçõesDoEscritório[],ROW()-ROW(VariaçõesDoEscritório[[#Headers],[Out]]),1),INDEX(EscritórioReal[],,1),0),MATCH(VariaçõesDoEscritório[[#Headers],[Out]],EscritórioReal[#Headers],0)) -> R$ 9,800.00 | M11: =INDEX(PlanejamentoDeEscritório[],MATCH(INDEX(VariaçõesDoEscritório[],ROW()-ROW(VariaçõesDoEscritório[[#Headers],[Nov]]),1),INDEX(PlanejamentoDeEscritório[],,1),0),MATCH(VariaçõesDoEscritório[[#Headers],[Nov]],PlanejamentoDeEscritório[#Headers],0))-INDEX(EscritórioReal[],MATCH(INDEX(VariaçõesDoEscritório[],ROW()-ROW(VariaçõesDoEscritório[[#Headers],[Nov]]),1),INDEX(EscritórioReal[],,1),0),MATCH(VariaçõesDoEscritório[[#Headers],[Nov]],EscritórioReal[#Headers],0)) -> R$ 9,800.00 | N11: =INDEX(PlanejamentoDeEscritório[],MATCH(INDEX(VariaçõesDoEscritório[],ROW()-ROW(VariaçõesDoEscritório[[#Headers],[Dez]]),1),INDEX(PlanejamentoDeEscritório[],,1),0),MATCH(VariaçõesDoEscritório[[#Headers],[Dez]],PlanejamentoDeEscritório[#Headers],0))-INDEX(EscritórioReal[],MATCH(INDEX(VariaçõesDoEscritório[],ROW()-ROW(VariaçõesDoEscritório[[#Headers],[Dez]]),1),INDEX(EscritórioReal[],,1),0),MATCH(VariaçõesDoEscritório[[#Headers],[Dez]],EscritórioReal[#Headers],0)) -> R$ 9,800.00 | O11: =SUM(VariaçõesDoEscritório[[#This Row],[Jan]:[Dez]]) -> R$ 58,800.00
B12: Gás | C12: =INDEX(PlanejamentoDeEscritório[],MATCH(INDEX(VariaçõesDoEscritório[],ROW()-ROW(VariaçõesDoEscritório[[#Headers],[Jan]]),1),INDEX(PlanejamentoDeEscritório[],,1),0),MATCH(VariaçõesDoEscritório[[#Headers],[Jan]],PlanejamentoDeEscritório[#Headers],0))-INDEX(EscritórioReal[],MATCH(INDEX(VariaçõesDoEscritório[],ROW()-ROW(VariaçõesDoEscritório[[#Headers],[Jan]]),1),INDEX(EscritórioReal[],,1),0),MATCH(VariaçõesDoEscritório[[#Headers],[Jan]],EscritórioReal[#Headers],0)) -> -R$ 4.00 | D12: =INDEX(PlanejamentoDeEscritório[],MATCH(INDEX(VariaçõesDoEscritório[],ROW()-ROW(VariaçõesDoEscritório[[#Headers],[Fev]]),1),INDEX(PlanejamentoDeEscritório[],,1),0),MATCH(VariaçõesDoEscritório[[#Headers],[Fev]],PlanejamentoDeEscritório[#Headers],0))-INDEX(EscritórioReal[],MATCH(INDEX(VariaçõesDoEscritório[],ROW()-ROW(VariaçõesDoEscritório[[#Headers],[Fev]]),1),INDEX(EscritórioReal[],,1),0),MATCH(VariaçõesDoEscritório[[#Headers],[Fev]],EscritórioReal[#Headers],0)) -> -R$ 30.00 | E12: =INDEX(PlanejamentoDeEscritório[],MATCH(INDEX(VariaçõesDoEscritório[],ROW()-ROW(VariaçõesDoEscritório[[#Headers],[Mar]]),1),INDEX(PlanejamentoDeEscritório[],,1),0),MATCH(VariaçõesDoEscritório[[#Headers],[Mar]],PlanejamentoDeEscritório[#Headers],0))-INDEX(EscritórioReal[],MATCH(INDEX(VariaçõesDoEscritório[],ROW()-ROW(VariaçõesDoEscritório[[#Headers],[Mar]]),1),INDEX(EscritórioReal[],,1),0),MATCH(VariaçõesDoEscritório[[#Headers],[Mar]],EscritórioReal[#Headers],0)) -> R$ 15.00 | F12: =INDEX(PlanejamentoDeEscritório[],MATCH(INDEX(VariaçõesDoEscritório[],ROW()-ROW(VariaçõesDoEscritório[[#Headers],[Abr]]),1),INDEX(PlanejamentoDeEscritório[],,1),0),MATCH(VariaçõesDoEscritório[[#Headers],[Abr]],PlanejamentoDeEscritório[#Headers],0))-INDEX(EscritórioReal[],MATCH(INDEX(VariaçõesDoEscritório[],ROW()-ROW(VariaçõesDoEscritório[[#Headers],[Abr]]),1),INDEX(EscritórioReal[],,1),0),MATCH(VariaçõesDoEscritório[[#Headers],[Abr]],EscritórioReal[#Headers],0)) -> -R$ 130.00 | G12: =INDEX(PlanejamentoDeEscritório[],MATCH(INDEX(VariaçõesDoEscritório[],ROW()-ROW(VariaçõesDoEscritório[[#Headers],[Maio]]),1),INDEX(PlanejamentoDeEscritório[],,1),0),MATCH(VariaçõesDoEscritório[[#Headers],[Maio]],PlanejamentoDeEscritório[#Headers],0))-INDEX(EscritórioReal[],MATCH(INDEX(VariaçõesDoEscritório[],ROW()-ROW(VariaçõesDoEscritório[[#Headers],[Maio]]),1),INDEX(EscritórioReal[],,1),0),MATCH(VariaçõesDoEscritório[[#Headers],[Maio]],EscritórioReal[#Headers],0)) -> R$ 13.00 | H12: =INDEX(PlanejamentoDeEscritório[],MATCH(INDEX(VariaçõesDoEscritório[],ROW()-ROW(VariaçõesDoEscritório[[#Headers],[Jun]]),1),INDEX(PlanejamentoDeEscritório[],,1),0),MATCH(VariaçõesDoEscritório[[#Headers],[Jun]],PlanejamentoDeEscritório[#Headers],0))-INDEX(EscritórioReal[],MATCH(INDEX(VariaçõesDoEscritório[],ROW()-ROW(VariaçõesDoEscritório[[#Headers],[Jun]]),1),INDEX(EscritórioReal[],,1),0),MATCH(VariaçõesDoEscritório[[#Headers],[Jun]],EscritórioReal[#Headers],0)) -> R$ 12.00 | I12: =INDEX(PlanejamentoDeEscritório[],MATCH(INDEX(VariaçõesDoEscritório[],ROW()-ROW(VariaçõesDoEscritório[[#Headers],[Jul]]),1),INDEX(PlanejamentoDeEscritório[],,1),0),MATCH(VariaçõesDoEscritório[[#Headers],[Jul]],PlanejamentoDeEscritório[#Headers],0))-INDEX(EscritórioReal[],MATCH(INDEX(VariaçõesDoEscritório[],ROW()-ROW(VariaçõesDoEscritório[[#Headers],[Jul]]),1),INDEX(EscritórioReal[],,1),0),MATCH(VariaçõesDoEscritório[[#Headers],[Jul]],EscritórioReal[#Headers],0)) -> R$ 100.00 | J12: =INDEX(PlanejamentoDeEscritório[],MATCH(INDEX(VariaçõesDoEscritório[],ROW()-ROW(VariaçõesDoEscritório[[#Headers],[Ago]]),1),INDEX(PlanejamentoDeEscritório[],,1),0),MATCH(VariaçõesDoEscritório[[#Headers],[Ago]],PlanejamentoDeEscritório[#Headers],0))-INDEX(EscritórioReal[],MATCH(INDEX(VariaçõesDoEscritório[],ROW()-ROW(VariaçõesDoEscritório[[#Headers],[Ago]]),1),INDEX(EscritórioReal[],,1),0),MATCH(VariaçõesDoEscritório[[#Headers],[Ago]],EscritórioReal[#Headers],0)) -> R$ 100.00 | K12: =INDEX(PlanejamentoDeEscritório[],MATCH(INDEX(VariaçõesDoEscritório[],ROW()-ROW(VariaçõesDoEscritório[[#Headers],[Set]]),1),INDEX(PlanejamentoDeEscritório[],,1),0),MATCH(VariaçõesDoEscritório[[#Headers],[Set]],PlanejamentoDeEscritório[#Headers],0))-INDEX(EscritórioReal[],MATCH(INDEX(VariaçõesDoEscritório[],ROW()-ROW(VariaçõesDoEscritório[[#Headers],[Set]]),1),INDEX(EscritórioReal[],,1),0),MATCH(VariaçõesDoEscritório[[#Headers],[Set]],EscritórioReal[#Headers],0)) -> R$ 100.00 | L12: =INDEX(PlanejamentoDeEscritório[],MATCH(INDEX(VariaçõesDoEscritório[],ROW()-ROW(VariaçõesDoEscritório[[#Headers],[Out]]),1),INDEX(PlanejamentoDeEscritório[],,1),0),MATCH(VariaçõesDoEscritório[[#Headers],[Out]],PlanejamentoDeEscritório[#Headers],0))-INDEX(EscritórioReal[],MATCH(INDEX(VariaçõesDoEscritório[],ROW()-ROW(VariaçõesDoEscritório[[#Headers],[Out]]),1),INDEX(EscritórioReal[],,1),0),MATCH(VariaçõesDoEscritório[[#Headers],[Out]],EscritórioReal[#Headers],0)) -> R$ 100.00 | M12: =INDEX(PlanejamentoDeEscritório[],MATCH(INDEX(VariaçõesDoEscritório[],ROW()-ROW(VariaçõesDoEscritório[[#Headers],[Nov]]),1),INDEX(PlanejamentoDeEscritório[],,1),0),MATCH(VariaçõesDoEscritório[[#Headers],[Nov]],PlanejamentoDeEscritório[#Headers],0))-INDEX(EscritórioReal[],MATCH(INDEX(VariaçõesDoEscritório[],ROW()-ROW(VariaçõesDoEscritório[[#Headers],[Nov]]),1),INDEX(EscritórioReal[],,1),0),MATCH(VariaçõesDoEscritório[[#Headers],[Nov]],EscritórioReal[#Headers],0)) -> R$ 400.00 | N12: =INDEX(PlanejamentoDeEscritório[],MATCH(INDEX(VariaçõesDoEscritório[],ROW()-ROW(VariaçõesDoEscritório[[#Headers],[Dez]]),1),INDEX(PlanejamentoDeEscritório[],,1),0),MATCH(VariaçõesDoEscritório[[#Headers],[Dez]],PlanejamentoDeEscritório[#Headers],0))-INDEX(EscritórioReal[],MATCH(INDEX(VariaçõesDoEscritório[],ROW()-ROW(VariaçõesDoEscritório[[#Headers],[Dez]]),1),INDEX(EscritórioReal[],,1),0),MATCH(VariaçõesDoEscritório[[#Headers],[Dez]],EscritórioReal[#Headers],0)) -> R$ 400.00 | O12: =SUM(VariaçõesDoEscritório[[#This Row],[Jan]:[Dez]]) -> R$ 1,076.00
B13: Eletricidade | C13: =INDEX(PlanejamentoDeEscritório[],MATCH(INDEX(VariaçõesDoEscritório[],ROW()-ROW(VariaçõesDoEscritório[[#Headers],[Jan]]),1),INDEX(PlanejamentoDeEscritório[],,1),0),MATCH(VariaçõesDoEscritório[[#Headers],[Jan]],PlanejamentoDeEscritório[#Headers],0))-INDEX(EscritórioReal[],MATCH(INDEX(VariaçõesDoEscritório[],ROW()-ROW(VariaçõesDoEscritório[[#Headers],[Jan]]),1),INDEX(EscritórioReal[],,1),0),MATCH(VariaçõesDoEscritório[[#Headers],[Jan]],EscritórioReal[#Headers],0)) -> R$ 12.00 | D13: =INDEX(PlanejamentoDeEscritório[],MATCH(INDEX(VariaçõesDoEscritório[],ROW()-ROW(VariaçõesDoEscritório[[#Headers],[Fev]]),1),INDEX(PlanejamentoDeEscritório[],,1),0),MATCH(VariaçõesDoEscritório[[#Headers],[Fev]],PlanejamentoDeEscritório[#Headers],0))-INDEX(EscritórioReal[],MATCH(INDEX(VariaçõesDoEscritório[],ROW()-ROW(VariaçõesDoEscritório[[#Headers],[Fev]]),1),INDEX(EscritórioReal[],,1),0),MATCH(VariaçõesDoEscritório[[#Headers],[Fev]],EscritórioReal[#Headers],0)) -> R$ 22.00 | E13: =INDEX(PlanejamentoDeEscritório[],MATCH(INDEX(VariaçõesDoEscritório[],ROW()-ROW(VariaçõesDoEscritório[[#Headers],[Mar]]),1),INDEX(PlanejamentoDeEscritório[],,1),0),MATCH(VariaçõesDoEscritório[[#Headers],[Mar]],PlanejamentoDeEscritório[#Headers],0))-INDEX(EscritórioReal[],MATCH(INDEX(VariaçõesDoEscritório[],ROW()-ROW(VariaçõesDoEscritório[[#Headers],[Mar]]),1),INDEX(EscritórioReal[],,1),0),MATCH(VariaçõesDoEscritório[[#Headers],[Mar]],EscritórioReal[#Headers],0)) -> R$ 32.00 | F13: =INDEX(PlanejamentoDeEscritório[],MATCH(INDEX(VariaçõesDoEscritório[],ROW()-ROW(VariaçõesDoEscritório[[#Headers],[Abr]]),1),INDEX(PlanejamentoDeEscritório[],,1),0),MATCH(VariaçõesDoEscritório[[#Headers],[Abr]],PlanejamentoDeEscritório[#Headers],0))-INDEX(EscritórioReal[],MATCH(INDEX(VariaçõesDoEscritório[],ROW()-ROW(VariaçõesDoEscritório[[#Headers],[Abr]]),1),INDEX(EscritórioReal[],,1),0),MATCH(VariaçõesDoEscritório[[#Headers],[Abr]],EscritórioReal[#Headers],0)) -> R$ 1.00 | G13: =INDEX(PlanejamentoDeEscritório[],MATCH(INDEX(VariaçõesDoEscritório[],ROW()-ROW(VariaçõesDoEscritório[[#Headers],[Maio]]),1),INDEX(PlanejamentoDeEscritório[],,1),0),MATCH(VariaçõesDoEscritório[[#Headers],[Maio]],PlanejamentoDeEscritório[#Headers],0))-INDEX(EscritórioReal[],MATCH(INDEX(VariaçõesDoEscritório[],ROW()-ROW(VariaçõesDoEscritório[[#Headers],[Maio]]),1),INDEX(EscritórioReal[],,1),0),MATCH(VariaçõesDoEscritório[[#Headers],[Maio]],EscritórioReal[#Headers],0)) -> -R$ 6.00 | H13: =INDEX(PlanejamentoDeEscritório[],MATCH(INDEX(VariaçõesDoEscritório[],ROW()-ROW(VariaçõesDoEscritório[[#Headers],[Jun]]),1),INDEX(PlanejamentoDeEscritório[],,1),0),MATCH(VariaçõesDoEscritório[[#Headers],[Jun]],PlanejamentoDeEscritório[#Headers],0))-INDEX(EscritórioReal[],MATCH(INDEX(VariaçõesDoEscritório[],ROW()-ROW(VariaçõesDoEscritório[[#Headers],[Jun]]),1),INDEX(EscritórioReal[],,1),0),MATCH(VariaçõesDoEscritório[[#Headers],[Jun]],EscritórioReal[#Headers],0)) -> R$ 10.00 | I13: =INDEX(PlanejamentoDeEscritório[],MATCH(INDEX(VariaçõesDoEscritório[],ROW()-ROW(VariaçõesDoEscritório[[#Headers],[Jul]]),1),INDEX(PlanejamentoDeEscritório[],,1),0),MATCH(VariaçõesDoEscritório[[#Headers],[Jul]],PlanejamentoDeEscritório[#Headers],0))-INDEX(EscritórioReal[],MATCH(INDEX(VariaçõesDoEscritório[],ROW()-ROW(VariaçõesDoEscritório[[#Headers],[Jul]]),1),INDEX(EscritórioReal[],,1),0),MATCH(VariaçõesDoEscritório[[#Headers],[Jul]],EscritórioReal[#Headers],0)) -> R$ 300.00 | J13: =INDEX(PlanejamentoDeEscritório[],MATCH(INDEX(VariaçõesDoEscritório[],ROW()-ROW(VariaçõesDoEscritório[[#Headers],[Ago]]),1),INDEX(PlanejamentoDeEscritório[],,1),0),MATCH(VariaçõesDoEscritório[[#Headers],[Ago]],PlanejamentoDeEscritório[#Headers],0))-INDEX(EscritórioReal[],MATCH(INDEX(VariaçõesDoEscritório[],ROW()-ROW(VariaçõesDoEscritório[[#Headers],[Ago]]),1),INDEX(EscritórioReal[],,1),0),MATCH(VariaçõesDoEscritório[[#Headers],[Ago]],EscritórioReal[#Headers],0)) -> R$ 300.00 | K13: =INDEX(PlanejamentoDeEscritório[],MATCH(INDEX(VariaçõesDoEscritório[],ROW()-ROW(VariaçõesDoEscritório[[#Headers],[Set]]),1),INDEX(PlanejamentoDeEscritório[],,1),0),MATCH(VariaçõesDoEscritório[[#Headers],[Set]],PlanejamentoDeEscritório[#Headers],0))-INDEX(EscritórioReal[],MATCH(INDEX(VariaçõesDoEscritório[],ROW()-ROW(VariaçõesDoEscritório[[#Headers],[Set]]),1),INDEX(EscritórioReal[],,1),0),MATCH(VariaçõesDoEscritório[[#Headers],[Set]],EscritórioReal[#Headers],0)) -> R$ 300.00 | L13: =INDEX(PlanejamentoDeEscritório[],MATCH(INDEX(VariaçõesDoEscritório[],ROW()-ROW(VariaçõesDoEscritório[[#Headers],[Out]]),1),INDEX(PlanejamentoDeEscritório[],,1),0),MATCH(VariaçõesDoEscritório[[#Headers],[Out]],PlanejamentoDeEscritório[#Headers],0))-INDEX(EscritórioReal[],MATCH(INDEX(VariaçõesDoEscritório[],ROW()-ROW(VariaçõesDoEscritório[[#Headers],[Out]]),1),INDEX(EscritórioReal[],,1),0),MATCH(VariaçõesDoEscritório[[#Headers],[Out]],EscritórioReal[#Headers],0)) -> R$ 300.00 | M13: =INDEX(PlanejamentoDeEscritório[],MATCH(INDEX(VariaçõesDoEscritório[],ROW()-ROW(VariaçõesDoEscritório[[#Headers],[Nov]]),1),INDEX(PlanejamentoDeEscritório[],,1),0),MATCH(VariaçõesDoEscritório[[#Headers],[Nov]],PlanejamentoDeEscritório[#Headers],0))-INDEX(EscritórioReal[],MATCH(INDEX(VariaçõesDoEscritório[],ROW()-ROW(VariaçõesDoEscritório[[#Headers],[Nov]]),1),INDEX(EscritórioReal[],,1),0),MATCH(VariaçõesDoEscritório[[#Headers],[Nov]],EscritórioReal[#Headers],0)) -> R$ 300.00 | N13: =INDEX(PlanejamentoDeEscritório[],MATCH(INDEX(VariaçõesDoEscritório[],ROW()-ROW(VariaçõesDoEscritório[[#Headers],[Dez]]),1),INDEX(PlanejamentoDeEscritório[],,1),0),MATCH(VariaçõesDoEscritório[[#Headers],[Dez]],PlanejamentoDeEscritório[#Headers],0))-INDEX(EscritórioReal[],MATCH(INDEX(VariaçõesDoEscritório[],ROW()-ROW(VariaçõesDoEscritório[[#Headers],[Dez]]),1),INDEX(EscritórioReal[],,1),0),MATCH(VariaçõesDoEscritório[[#Headers],[Dez]],EscritórioReal[#Headers],0)) -> R$ 300.00 | O13: =SUM(VariaçõesDoEscritório[[#This Row],[Jan]:[Dez]]) -> R$ 1,871.00
B14: Água | C14: =INDEX(PlanejamentoDeEscritório[],MATCH(INDEX(VariaçõesDoEscritório[],ROW()-ROW(VariaçõesDoEscritório[[#Headers],[Jan]]),1),INDEX(PlanejamentoDeEscritório[],,1),0),MATCH(VariaçõesDoEscritório[[#Headers],[Jan]],PlanejamentoDeEscritório[#Headers],0))-INDEX(EscritórioReal[],MATCH(INDEX(VariaçõesDoEscritório[],ROW()-ROW(VariaçõesDoEscritório[[#Headers],[Jan]]),1),INDEX(EscritórioReal[],,1),0),MATCH(VariaçõesDoEscritório[[#Headers],[Jan]],EscritórioReal[#Headers],0)) -> R$ 5.00 | D14: =INDEX(PlanejamentoDeEscritório[],MATCH(INDEX(VariaçõesDoEscritório[],ROW()-ROW(VariaçõesDoEscritório[[#Headers],[Fev]]),1),INDEX(PlanejamentoDeEscritório[],,1),0),MATCH(VariaçõesDoEscritório[[#Headers],[Fev]],PlanejamentoDeEscritório[#Headers],0))-INDEX(EscritórioReal[],MATCH(INDEX(VariaçõesDoEscritório[],ROW()-ROW(VariaçõesDoEscritório[[#Headers],[Fev]]),1),INDEX(EscritórioReal[],,1),0),MATCH(VariaçõesDoEscritório[[#Headers],[Fev]],EscritórioReal[#Headers],0)) -> R$ 7.00 | E14: =INDEX(PlanejamentoDeEscritório[],MATCH(INDEX(VariaçõesDoEscritório[],ROW()-ROW(VariaçõesDoEscritório[[#Headers],[Mar]]),1),INDEX(PlanejamentoDeEscritório[],,1),0),MATCH(VariaçõesDoEscritório[[#Headers],[Mar]],PlanejamentoDeEscritório[#Headers],0))-INDEX(EscritórioReal[],MATCH(INDEX(VariaçõesDoEscritório[],ROW()-ROW(VariaçõesDoEscritório[[#Headers],[Mar]]),1),INDEX(EscritórioReal[],,1),0),MATCH(VariaçõesDoEscritório[[#Headers],[Mar]],EscritórioReal[#Headers],0)) -> R$ 6.00 | F14: =INDEX(PlanejamentoDeEscritório[],MATCH(INDEX(VariaçõesDoEscritório[],ROW()-ROW(VariaçõesDoEscritório[[#Headers],[Abr]]),1),INDEX(PlanejamentoDeEscritório[],,1),0),MATCH(VariaçõesDoEscritório[[#Headers],[Abr]],PlanejamentoDeEscritório[#Headers],0))-INDEX(EscritórioReal[],MATCH(INDEX(VariaçõesDoEscritório[],ROW()-ROW(VariaçõesDoEscritório[[#Headers],[Abr]]),1),INDEX(EscritórioReal[],,1),0),MATCH(VariaçõesDoEscritório[[#Headers],[Abr]],EscritórioReal[#Headers],0)) -> R$ 4.00 | G14: =INDEX(PlanejamentoDeEscritório[],MATCH(INDEX(VariaçõesDoEscritório[],ROW()-ROW(VariaçõesDoEscritório[[#Headers],[Maio]]),1),INDEX(PlanejamentoDeEscritório[],,1),0),MATCH(VariaçõesDoEscritório[[#Headers],[Maio]],PlanejamentoDeEscritório[#Headers],0))-INDEX(EscritórioReal[],MATCH(INDEX(VariaçõesDoEscritório[],ROW()-ROW(VariaçõesDoEscritório[[#Headers],[Maio]]),1),INDEX(EscritórioReal[],,1),0),MATCH(VariaçõesDoEscritório[[#Headers],[Maio]],EscritórioReal[#Headers],0)) -> R$ 6.00 | H14: =INDEX(PlanejamentoDeEscritório[],MATCH(INDEX(VariaçõesDoEscritório[],ROW()-ROW(VariaçõesDoEscritório[[#Headers],[Jun]]),1),INDEX(PlanejamentoDeEscritório[],,1),0),MATCH(VariaçõesDoEscritório[[#Headers],[Jun]],PlanejamentoDeEscritório[#Headers],0))-INDEX(EscritórioReal[],MATCH(INDEX(VariaçõesDoEscritório[],ROW()-ROW(VariaçõesDoEscritório[[#Headers],[Jun]]),1),INDEX(EscritórioReal[],,1),0),MATCH(VariaçõesDoEscritório[[#Headers],[Jun]],EscritórioReal[#Headers],0)) -> R$ 4.00 | I14: =INDEX(PlanejamentoDeEscritório[],MATCH(INDEX(VariaçõesDoEscritório[],ROW()-ROW(VariaçõesDoEscritório[[#Headers],[Jul]]),1),INDEX(PlanejamentoDeEscritório[],,1),0),MATCH(VariaçõesDoEscritório[[#Headers],[Jul]],PlanejamentoDeEscritório[#Headers],0))-INDEX(EscritórioReal[],MATCH(INDEX(VariaçõesDoEscritório[],ROW()-ROW(VariaçõesDoEscritório[[#Headers],[Jul]]),1),INDEX(EscritórioReal[],,1),0),MATCH(VariaçõesDoEscritório[[#Headers],[Jul]],EscritórioReal[#Headers],0)) -> R$ 40.00 | J14: =INDEX(PlanejamentoDeEscritório[],MATCH(INDEX(VariaçõesDoEscritório[],ROW()-ROW(VariaçõesDoEscritório[[#Headers],[Ago]]),1),INDEX(PlanejamentoDeEscritório[],,1),0),MATCH(VariaçõesDoEscritório[[#Headers],[Ago]],PlanejamentoDeEscritório[#Headers],0))-INDEX(EscritórioReal[],MATCH(INDEX(VariaçõesDoEscritório[],ROW()-ROW(VariaçõesDoEscritório[[#Headers],[Ago]]),1),INDEX(EscritórioReal[],,1),0),MATCH(VariaçõesDoEscritório[[#Headers],[Ago]],EscritórioReal[#Headers],0)) -> R$ 40.00 | K14: =INDEX(PlanejamentoDeEscritório[],MATCH(INDEX(VariaçõesDoEscritório[],ROW()-ROW(VariaçõesDoEscritório[[#Headers],[Set]]),1),INDEX(PlanejamentoDeEscritório[],,1),0),MATCH(VariaçõesDoEscritório[[#Headers],[Set]],PlanejamentoDeEscritório[#Headers],0))-INDEX(EscritórioReal[],MATCH(INDEX(VariaçõesDoEscritório[],ROW()-ROW(VariaçõesDoEscritório[[#Headers],[Set]]),1),INDEX(EscritórioReal[],,1),0),MATCH(VariaçõesDoEscritório[[#Headers],[Set]],EscritórioReal[#Headers],0)) -> R$ 40.00 | L14: =INDEX(PlanejamentoDeEscritório[],MATCH(INDEX(VariaçõesDoEscritório[],ROW()-ROW(VariaçõesDoEscritório[[#Headers],[Out]]),1),INDEX(PlanejamentoDeEscritório[],,1),0),MATCH(VariaçõesDoEscritório[[#Headers],[Out]],PlanejamentoDeEscritório[#Headers],0))-INDEX(EscritórioReal[],MATCH(INDEX(VariaçõesDoEscritório[],ROW()-ROW(VariaçõesDoEscritório[[#Headers],[Out]]),1),INDEX(EscritórioReal[],,1),0),MATCH(VariaçõesDoEscritório[[#Headers],[Out]],EscritórioReal[#Headers],0)) -> R$ 40.00 | M14: =INDEX(PlanejamentoDeEscritório[],MATCH(INDEX(VariaçõesDoEscritório[],ROW()-ROW(VariaçõesDoEscritório[[#Headers],[Nov]]),1),INDEX(PlanejamentoDeEscritório[],,1),0),MATCH(VariaçõesDoEscritório[[#Headers],[Nov]],PlanejamentoDeEscritório[#Headers],0))-INDEX(EscritórioReal[],MATCH(INDEX(VariaçõesDoEscritório[],ROW()-ROW(VariaçõesDoEscritório[[#Headers],[Nov]]),1),INDEX(EscritórioReal[],,1),0),MATCH(VariaçõesDoEscritório[[#Headers],[Nov]],EscritórioReal[#Headers],0)) -> R$ 40.00 | N14: =INDEX(PlanejamentoDeEscritório[],MATCH(INDEX(VariaçõesDoEscritório[],ROW()-ROW(VariaçõesDoEscritório[[#Headers],[Dez]]),1),INDEX(PlanejamentoDeEscritório[],,1),0),MATCH(VariaçõesDoEscritório[[#Headers],[Dez]],PlanejamentoDeEscritório[#Headers],0))-INDEX(EscritórioReal[],MATCH(INDEX(VariaçõesDoEscritório[],ROW()-ROW(VariaçõesDoEscritório[[#Headers],[Dez]]),1),INDEX(EscritórioReal[],,1),0),MATCH(VariaçõesDoEscritório[[#Headers],[Dez]],EscritórioReal[#Headers],0)) -> R$ 40.00 | O14: =SUM(VariaçõesDoEscritório[[#This Row],[Jan]:[Dez]]) -> R$ 272.00
B15: Telefone | C15: =INDEX(PlanejamentoDeEscritório[],MATCH(INDEX(VariaçõesDoEscritório[],ROW()-ROW(VariaçõesDoEscritório[[#Headers],[Jan]]),1),INDEX(PlanejamentoDeEscritório[],,1),0),MATCH(VariaçõesDoEscritório[[#Headers],[Jan]],PlanejamentoDeEscritório[#Headers],0))-INDEX(EscritórioReal[],MATCH(INDEX(VariaçõesDoEscritório[],ROW()-ROW(VariaçõesDoEscritório[[#Headers],[Jan]]),1),INDEX(EscritórioReal[],,1),0),MATCH(VariaçõesDoEscritório[[#Headers],[Jan]],EscritórioReal[#Headers],0)) -> R$ 26.00 | D15: =INDEX(PlanejamentoDeEscritório[],MATCH(INDEX(VariaçõesDoEscritório[],ROW()-ROW(VariaçõesDoEscritório[[#Headers],[Fev]]),1),INDEX(PlanejamentoDeEscritório[],,1),0),MATCH(VariaçõesDoEscritório[[#Headers],[Fev]],PlanejamentoDeEscritório[#Headers],0))-INDEX(EscritórioReal[],MATCH(INDEX(VariaçõesDoEscritório[],ROW()-ROW(VariaçõesDoEscritório[[#Headers],[Fev]]),1),INDEX(EscritórioReal[],,1),0),MATCH(VariaçõesDoEscritório[[#Headers],[Fev]],EscritórioReal[#Headers],0)) -> R$ 15.00 | E15: =INDEX(PlanejamentoDeEscritório[],MATCH(INDEX(VariaçõesDoEscritório[],ROW()-ROW(VariaçõesDoEscritório[[#Headers],[Mar]]),1),INDEX(PlanejamentoDeEscritório[],,1),0),MATCH(VariaçõesDoEscritório[[#Headers],[Mar]],PlanejamentoDeEscritório[#Headers],0))-INDEX(EscritórioReal[],MATCH(INDEX(VariaçõesDoEscritório[],ROW()-ROW(VariaçõesDoEscritório[[#Headers],[Mar]]),1),INDEX(EscritórioReal[],,1),0),MATCH(VariaçõesDoEscritório[[#Headers],[Mar]],EscritórioReal[#Headers],0)) -> -R$ 15.00 | F15: =INDEX(PlanejamentoDeEscritório[],MATCH(INDEX(VariaçõesDoEscritório[],ROW()-ROW(VariaçõesDoEscritório[[#Headers],[Abr]]),1),INDEX(PlanejamentoDeEscritório[],,1),0),MATCH(VariaçõesDoEscritório[[#Headers],[Abr]],PlanejamentoDeEscritório[#Headers],0))-INDEX(EscritórioReal[],MATCH(INDEX(VariaçõesDoEscritório[],ROW()-ROW(VariaçõesDoEscritório[[#Headers],[Abr]]),1),INDEX(EscritórioReal[],,1),0),MATCH(VariaçõesDoEscritório[[#Headers],[Abr]],EscritórioReal[#Headers],0)) -> R$ 5.00 | G15: =INDEX(PlanejamentoDeEscritório[],MATCH(INDEX(VariaçõesDoEscritório[],ROW()-ROW(VariaçõesDoEscritório[[#Headers],[Maio]]),1),INDEX(PlanejamentoDeEscritório[],,1),0),MATCH(VariaçõesDoEscritório[[#Headers],[Maio]],PlanejamentoDeEscritório[#Headers],0))-INDEX(EscritórioReal[],MATCH(INDEX(VariaçõesDoEscritório[],ROW()-ROW(VariaçõesDoEscritório[[#Headers],[Maio]]),1),INDEX(EscritórioReal[],,1),0),MATCH(VariaçõesDoEscritório[[#Headers],[Maio]],EscritórioReal[#Headers],0)) -> R$ 5.00 | H15: =INDEX(PlanejamentoDeEscritório[],MATCH(INDEX(VariaçõesDoEscritório[],ROW()-ROW(VariaçõesDoEscritório[[#Headers],[Jun]]),1),INDEX(PlanejamentoDeEscritório[],,1),0),MATCH(VariaçõesDoEscritório[[#Headers],[Jun]],PlanejamentoDeEscritório[#Headers],0))-INDEX(EscritórioReal[],MATCH(INDEX(VariaçõesDoEscritório[],ROW()-ROW(VariaçõesDoEscritório[[#Headers],[Jun]]),1),INDEX(EscritórioReal[],,1),0),MATCH(VariaçõesDoEscritório[[#Headers],[Jun]],EscritórioReal[#Headers],0)) -> R$ 30.00 | I15: =INDEX(PlanejamentoDeEscritório[],MATCH(INDEX(VariaçõesDoEscritório[],ROW()-ROW(VariaçõesDoEscritório[[#Headers],[Jul]]),1),INDEX(PlanejamentoDeEscritório[],,1),0),MATCH(VariaçõesDoEscritório[[#Headers],[Jul]],PlanejamentoDeEscritório[#Headers],0))-INDEX(EscritórioReal[],MATCH(INDEX(VariaçõesDoEscritório[],ROW()-ROW(VariaçõesDoEscritório[[#Headers],[Jul]]),1),INDEX(EscritórioReal[],,1),0),MATCH(VariaçõesDoEscritório[[#Headers],[Jul]],EscritórioReal[#Headers],0)) -> R$ 250.00 | J15: =INDEX(PlanejamentoDeEscritório[],MATCH(INDEX(VariaçõesDoEscritório[],ROW()-ROW(VariaçõesDoEscritório[[#Headers],[Ago]]),1),INDEX(PlanejamentoDeEscritório[],,1),0),MATCH(VariaçõesDoEscritório[[#Headers],[Ago]],PlanejamentoDeEscritório[#Headers],0))-INDEX(EscritórioReal[],MATCH(INDEX(VariaçõesDoEscritório[],ROW()-ROW(VariaçõesDoEscritório[[#Headers],[Ago]]),1),INDEX(EscritórioReal[],,1),0),MATCH(VariaçõesDoEscritório[[#Headers],[Ago]],EscritórioReal[#Headers],0)) -> R$ 250.00 | K15: =INDEX(PlanejamentoDeEscritório[],MATCH(INDEX(VariaçõesDoEscritório[],ROW()-ROW(VariaçõesDoEscritório[[#Headers],[Set]]),1),INDEX(PlanejamentoDeEscritório[],,1),0),MATCH(VariaçõesDoEscritório[[#Headers],[Set]],PlanejamentoDeEscritório[#Headers],0))-INDEX(EscritórioReal[],MATCH(INDEX(VariaçõesDoEscritório[],ROW()-ROW(VariaçõesDoEscritório[[#Headers],[Set]]),1),INDEX(EscritórioReal[],,1),0),MATCH(VariaçõesDoEscritório[[#Headers],[Set]],EscritórioReal[#Headers],0)) -> R$ 250.00 | L15: =INDEX(PlanejamentoDeEscritório[],MATCH(INDEX(VariaçõesDoEscritório[],ROW()-ROW(VariaçõesDoEscritório[[#Headers],[Out]]),1),INDEX(PlanejamentoDeEscritório[],,1),0),MATCH(VariaçõesDoEscritório[[#Headers],[Out]],PlanejamentoDeEscritório[#Headers],0))-INDEX(EscritórioReal[],MATCH(INDEX(VariaçõesDoEscritório[],ROW()-ROW(VariaçõesDoEscritório[[#Headers],[Out]]),1),INDEX(EscritórioReal[],,1),0),MATCH(VariaçõesDoEscritório[[#Headers],[Out]],EscritórioReal[#Headers],0)) -> R$ 250.00 | M15: =INDEX(PlanejamentoDeEscritório[],MATCH(INDEX(VariaçõesDoEscritório[],ROW()-ROW(VariaçõesDoEscritório[[#Headers],[Nov]]),1),INDEX(PlanejamentoDeEscritório[],,1),0),MATCH(VariaçõesDoEscritório[[#Headers],[Nov]],PlanejamentoDeEscritório[#Headers],0))-INDEX(EscritórioReal[],MATCH(INDEX(VariaçõesDoEscritório[],ROW()-ROW(VariaçõesDoEscritório[[#Headers],[Nov]]),1),INDEX(EscritórioReal[],,1),0),MATCH(VariaçõesDoEscritório[[#Headers],[Nov]],EscritórioReal[#Headers],0)) -> R$ 250.00 | N15: =INDEX(PlanejamentoDeEscritório[],MATCH(INDEX(VariaçõesDoEscritório[],ROW()-ROW(VariaçõesDoEscritório[[#Headers],[Dez]]),1),INDEX(PlanejamentoDeEscritório[],,1),0),MATCH(VariaçõesDoEscritório[[#Headers],[Dez]],PlanejamentoDeEscritório[#Headers],0))-INDEX(EscritórioReal[],MATCH(INDEX(VariaçõesDoEscritório[],ROW()-ROW(VariaçõesDoEscritório[[#Headers],[Dez]]),1),INDEX(EscritórioReal[],,1),0),MATCH(VariaçõesDoEscritório[[#Headers],[Dez]],EscritórioReal[#Headers],0)) -> R$ 250.00 | O15: =SUM(VariaçõesDoEscritório[[#This Row],[Jan]:[Dez]]) -> R$ 1,566.00
B16: Acesso à Internet | C16: =INDEX(PlanejamentoDeEscritório[],MATCH(INDEX(VariaçõesDoEscritório[],ROW()-ROW(VariaçõesDoEscritório[[#Headers],[Jan]]),1),INDEX(PlanejamentoDeEscritório[],,1),0),MATCH(VariaçõesDoEscritório[[#Headers],[Jan]],PlanejamentoDeEscritório[#Headers],0))-INDEX(EscritórioReal[],MATCH(INDEX(VariaçõesDoEscritório[],ROW()-ROW(VariaçõesDoEscritório[[#Headers],[Jan]]),1),INDEX(EscritórioReal[],,1),0),MATCH(VariaçõesDoEscritório[[#Headers],[Jan]],EscritórioReal[#Headers],0)) -> R$ 0.00 | D16: =INDEX(PlanejamentoDeEscritório[],MATCH(INDEX(VariaçõesDoEscritório[],ROW()-ROW(VariaçõesDoEscritório[[#Headers],[Fev]]),1),INDEX(PlanejamentoDeEscritório[],,1),0),MATCH(VariaçõesDoEscritório[[#Headers],[Fev]],PlanejamentoDeEscritório[#Headers],0))-INDEX(EscritórioReal[],MATCH(INDEX(VariaçõesDoEscritório[],ROW()-ROW(VariaçõesDoEscritório[[#Headers],[Fev]]),1),INDEX(EscritórioReal[],,1),0),MATCH(VariaçõesDoEscritório[[#Headers],[Fev]],EscritórioReal[#Headers],0)) -> R$ 0.00 | E16: =INDEX(PlanejamentoDeEscritório[],MATCH(INDEX(VariaçõesDoEscritório[],ROW()-ROW(VariaçõesDoEscritório[[#Headers],[Mar]]),1),INDEX(PlanejamentoDeEscritório[],,1),0),MATCH(VariaçõesDoEscritório[[#Headers],[Mar]],PlanejamentoDeEscritório[#Headers],0))-INDEX(EscritórioReal[],MATCH(INDEX(VariaçõesDoEscritório[],ROW()-ROW(VariaçõesDoEscritório[[#Headers],[Mar]]),1),INDEX(EscritórioReal[],,1),0),MATCH(VariaçõesDoEscritório[[#Headers],[Mar]],EscritórioReal[#Headers],0)) -> R$ 0.00 | F16: =INDEX(PlanejamentoDeEscritório[],MATCH(INDEX(VariaçõesDoEscritório[],ROW()-ROW(VariaçõesDoEscritório[[#Headers],[Abr]]),1),INDEX(PlanejamentoDeEscritório[],,1),0),MATCH(VariaçõesDoEscritório[[#Headers],[Abr]],PlanejamentoDeEscritório[#Headers],0))-INDEX(EscritórioReal[],MATCH(INDEX(VariaçõesDoEscritório[],ROW()-ROW(VariaçõesDoEscritório[[#Headers],[Abr]]),1),INDEX(EscritórioReal[],,1),0),MATCH(VariaçõesDoEscritório[[#Headers],[Abr]],EscritórioReal[#Headers],0)) -> R$ 0.00 | G16: =INDEX(PlanejamentoDeEscritório[],MATCH(INDEX(VariaçõesDoEscritório[],ROW()-ROW(VariaçõesDoEscritório[[#Headers],[Maio]]),1),INDEX(PlanejamentoDeEscritório[],,1),0),MATCH(VariaçõesDoEscritório[[#Headers],[Maio]],PlanejamentoDeEscritório[#Headers],0))-INDEX(EscritórioReal[],MATCH(INDEX(VariaçõesDoEscritório[],ROW()-ROW(VariaçõesDoEscritório[[#Headers],[Maio]]),1),INDEX(EscritórioReal[],,1),0),MATCH(VariaçõesDoEscritório[[#Headers],[Maio]],EscritórioReal[#Headers],0)) -> R$ 0.00 | H16: =INDEX(PlanejamentoDeEscritório[],MATCH(INDEX(VariaçõesDoEscritório[],ROW()-ROW(VariaçõesDoEscritório[[#Headers],[Jun]]),1),INDEX(PlanejamentoDeEscritório[],,1),0),MATCH(VariaçõesDoEscritório[[#Headers],[Jun]],PlanejamentoDeEscritório[#Headers],0))-INDEX(EscritórioReal[],MATCH(INDEX(VariaçõesDoEscritório[],ROW()-ROW(VariaçõesDoEscritório[[#Headers],[Jun]]),1),INDEX(EscritórioReal[],,1),0),MATCH(VariaçõesDoEscritório[[#Headers],[Jun]],EscritórioReal[#Headers],0)) -> R$ 0.00 | I16: =INDEX(PlanejamentoDeEscritório[],MATCH(INDEX(VariaçõesDoEscritório[],ROW()-ROW(VariaçõesDoEscritório[[#Headers],[Jul]]),1),INDEX(PlanejamentoDeEscritório[],,1),0),MATCH(VariaçõesDoEscritório[[#Headers],[Jul]],PlanejamentoDeEscritório[#Headers],0))-INDEX(EscritórioReal[],MATCH(INDEX(VariaçõesDoEscritório[],ROW()-ROW(VariaçõesDoEscritório[[#Headers],[Jul]]),1),INDEX(EscritórioReal[],,1),0),MATCH(VariaçõesDoEscritório[[#Headers],[Jul]],EscritórioReal[#Headers],0)) -> R$ 180.00 | J16: =INDEX(PlanejamentoDeEscritório[],MATCH(INDEX(VariaçõesDoEscritório[],ROW()-ROW(VariaçõesDoEscritório[[#Headers],[Ago]]),1),INDEX(PlanejamentoDeEscritório[],,1),0),MATCH(VariaçõesDoEscritório[[#Headers],[Ago]],PlanejamentoDeEscritório[#Headers],0))-INDEX(EscritórioReal[],MATCH(INDEX(VariaçõesDoEscritório[],ROW()-ROW(VariaçõesDoEscritório[[#Headers],[Ago]]),1),INDEX(EscritórioReal[],,1),0),MATCH(VariaçõesDoEscritório[[#Headers],[Ago]],EscritórioReal[#Headers],0)) -> R$ 180.00 | K16: =INDEX(PlanejamentoDeEscritório[],MATCH(INDEX(VariaçõesDoEscritório[],ROW()-ROW(VariaçõesDoEscritório[[#Headers],[Set]]),1),INDEX(PlanejamentoDeEscritório[],,1),0),MATCH(VariaçõesDoEscritório[[#Headers],[Set]],PlanejamentoDeEscritório[#Headers],0))-INDEX(EscritórioReal[],MATCH(INDEX(VariaçõesDoEscritório[],ROW()-ROW(VariaçõesDoEscritório[[#Headers],[Set]]),1),INDEX(EscritórioReal[],,1),0),MATCH(VariaçõesDoEscritório[[#Headers],[Set]],EscritórioReal[#Headers],0)) -> R$ 180.00 | L16: =INDEX(PlanejamentoDeEscritório[],MATCH(INDEX(VariaçõesDoEscritório[],ROW()-ROW(VariaçõesDoEscritório[[#Headers],[Out]]),1),INDEX(PlanejamentoDeEscritório[],,1),0),MATCH(VariaçõesDoEscritório[[#Headers],[Out]],PlanejamentoDeEscritório[#Headers],0))-INDEX(EscritórioReal[],MATCH(INDEX(VariaçõesDoEscritório[],ROW()-ROW(VariaçõesDoEscritório[[#Headers],[Out]]),1),INDEX(EscritórioReal[],,1),0),MATCH(VariaçõesDoEscritório[[#Headers],[Out]],EscritórioReal[#Headers],0)) -> R$ 180.00 | M16: =INDEX(PlanejamentoDeEscritório[],MATCH(INDEX(VariaçõesDoEscritório[],ROW()-ROW(VariaçõesDoEscritório[[#Headers],[Nov]]),1),INDEX(PlanejamentoDeEscritório[],,1),0),MATCH(VariaçõesDoEscritório[[#Headers],[Nov]],PlanejamentoDeEscritório[#Headers],0))-INDEX(EscritórioReal[],MATCH(INDEX(VariaçõesDoEscritório[],ROW()-ROW(VariaçõesDoEscritório[[#Headers],[Nov]]),1),INDEX(EscritórioReal[],,1),0),MATCH(VariaçõesDoEscritório[[#Headers],[Nov]],EscritórioReal[#Headers],0)) -> R$ 180.00 | N16: =INDEX(PlanejamentoDeEscritório[],MATCH(INDEX(VariaçõesDoEscritório[],ROW()-ROW(VariaçõesDoEscritório[[#Headers],[Dez]]),1),INDEX(PlanejamentoDeEscritório[],,1),0),MATCH(VariaçõesDoEscritório[[#Headers],[Dez]],PlanejamentoDeEscritório[#Headers],0))-INDEX(EscritórioReal[],MATCH(INDEX(VariaçõesDoEscritório[],ROW()-ROW(VariaçõesDoEscritório[[#Headers],[Dez]]),1),INDEX(EscritórioReal[],,1),0),MATCH(VariaçõesDoEscritório[[#Headers],[Dez]],EscritórioReal[#Headers],0)) -> R$ 180.00 | O16: =SUM(VariaçõesDoEscritório[[#This Row],[Jan]:[Dez]]) -> R$ 1,080.00
B17: Material de escritório | C17: =INDEX(PlanejamentoDeEscritório[],MATCH(INDEX(VariaçõesDoEscritório[],ROW()-ROW(VariaçõesDoEscritório[[#Headers],[Jan]]),1),INDEX(PlanejamentoDeEscritório[],,1),0),MATCH(VariaçõesDoEscritório[[#Headers],[Jan]],PlanejamentoDeEscritório[#Headers],0))-INDEX(EscritórioReal[],MATCH(INDEX(VariaçõesDoEscritório[],ROW()-ROW(VariaçõesDoEscritório[[#Headers],[Jan]]),1),INDEX(EscritórioReal[],,1),0),MATCH(VariaçõesDoEscritório[[#Headers],[Jan]],EscritórioReal[#Headers],0)) -> -R$ 56.00 | D17: =INDEX(PlanejamentoDeEscritório[],MATCH(INDEX(VariaçõesDoEscritório[],ROW()-ROW(VariaçõesDoEscritório[[#Headers],[Fev]]),1),INDEX(PlanejamentoDeEscritório[],,1),0),MATCH(VariaçõesDoEscritório[[#Headers],[Fev]],PlanejamentoDeEscritório[#Headers],0))-INDEX(EscritórioReal[],MATCH(INDEX(VariaçõesDoEscritório[],ROW()-ROW(VariaçõesDoEscritório[[#Headers],[Fev]]),1),INDEX(EscritórioReal[],,1),0),MATCH(VariaçõesDoEscritório[[#Headers],[Fev]],EscritórioReal[#Headers],0)) -> R$ 58.00 | E17: =INDEX(PlanejamentoDeEscritório[],MATCH(INDEX(VariaçõesDoEscritório[],ROW()-ROW(VariaçõesDoEscritório[[#Headers],[Mar]]),1),INDEX(PlanejamentoDeEscritório[],,1),0),MATCH(VariaçõesDoEscritório[[#Headers],[Mar]],PlanejamentoDeEscritório[#Headers],0))-INDEX(EscritórioReal[],MATCH(INDEX(VariaçõesDoEscritório[],ROW()-ROW(VariaçõesDoEscritório[[#Headers],[Mar]]),1),INDEX(EscritórioReal[],,1),0),MATCH(VariaçõesDoEscritório[[#Headers],[Mar]],EscritórioReal[#Headers],0)) -> R$ 40.00 | F17: =INDEX(PlanejamentoDeEscritório[],MATCH(INDEX(VariaçõesDoEscritório[],ROW()-ROW(VariaçõesDoEscritório[[#Headers],[Abr]]),1),INDEX(PlanejamentoDeEscritório[],,1),0),MATCH(VariaçõesDoEscritório[[#Headers],[Abr]],PlanejamentoDeEscritório[#Headers],0))-INDEX(EscritórioReal[],MATCH(INDEX(VariaçõesDoEscritório[],ROW()-ROW(VariaçõesDoEscritório[[#Headers],[Abr]]),1),INDEX(EscritórioReal[],,1),0),MATCH(VariaçõesDoEscritório[[#Headers],[Abr]],EscritórioReal[#Headers],0)) -> -R$ 21.00 | G17: =INDEX(PlanejamentoDeEscritório[],MATCH(INDEX(VariaçõesDoEscritório[],ROW()-ROW(VariaçõesDoEscritório[[#Headers],[Maio]]),1),INDEX(PlanejamentoDeEscritório[],,1),0),MATCH(VariaçõesDoEscritório[[#Headers],[Maio]],PlanejamentoDeEscritório[#Headers],0))-INDEX(EscritórioReal[],MATCH(INDEX(VariaçõesDoEscritório[],ROW()-ROW(VariaçõesDoEscritório[[#Headers],[Maio]]),1),INDEX(EscritórioReal[],,1),0),MATCH(VariaçõesDoEscritório[[#Headers],[Maio]],EscritórioReal[#Headers],0)) -> -R$ 56.00 | H17: =INDEX(PlanejamentoDeEscritório[],MATCH(INDEX(VariaçõesDoEscritório[],ROW()-ROW(VariaçõesDoEscritório[[#Headers],[Jun]]),1),INDEX(PlanejamentoDeEscritório[],,1),0),MATCH(VariaçõesDoEscritório[[#Headers],[Jun]],PlanejamentoDeEscritório[#Headers],0))-INDEX(EscritórioReal[],MATCH(INDEX(VariaçõesDoEscritório[],ROW()-ROW(VariaçõesDoEscritório[[#Headers],[Jun]]),1),INDEX(EscritórioReal[],,1),0),MATCH(VariaçõesDoEscritório[[#Headers],[Jun]],EscritórioReal[#Headers],0)) -> -R$ 40.00 | I17: =INDEX(PlanejamentoDeEscritório[],MATCH(INDEX(VariaçõesDoEscritório[],ROW()-ROW(VariaçõesDoEscritório[[#Headers],[Jul]]),1),INDEX(PlanejamentoDeEscritório[],,1),0),MATCH(VariaçõesDoEscritório[[#Headers],[Jul]],PlanejamentoDeEscritório[#Headers],0))-INDEX(EscritórioReal[],MATCH(INDEX(VariaçõesDoEscritório[],ROW()-ROW(VariaçõesDoEscritório[[#Headers],[Jul]]),1),INDEX(EscritórioReal[],,1),0),MATCH(VariaçõesDoEscritório[[#Headers],[Jul]],EscritórioReal[#Headers],0)) -> R$ 200.00 | J17: =INDEX(PlanejamentoDeEscritório[],MATCH(INDEX(VariaçõesDoEscritório[],ROW()-ROW(VariaçõesDoEscritório[[#Headers],[Ago]]),1),INDEX(PlanejamentoDeEscritório[],,1),0),MATCH(VariaçõesDoEscritório[[#Headers],[Ago]],PlanejamentoDeEscritório[#Headers],0))-INDEX(EscritórioReal[],MATCH(INDEX(VariaçõesDoEscritório[],ROW()-ROW(VariaçõesDoEscritório[[#Headers],[Ago]]),1),INDEX(EscritórioReal[],,1),0),MATCH(VariaçõesDoEscritório[[#Headers],[Ago]],EscritórioReal[#Headers],0)) -> R$ 200.00 | K17: =INDEX(PlanejamentoDeEscritório[],MATCH(INDEX(VariaçõesDoEscritório[],ROW()-ROW(VariaçõesDoEscritório[[#Headers],[Set]]),1),INDEX(PlanejamentoDeEscritório[],,1),0),MATCH(VariaçõesDoEscritório[[#Headers],[Set]],PlanejamentoDeEscritório[#Headers],0))-INDEX(EscritórioReal[],MATCH(INDEX(VariaçõesDoEscritório[],ROW()-ROW(VariaçõesDoEscritório[[#Headers],[Set]]),1),INDEX(EscritórioReal[],,1),0),MATCH(VariaçõesDoEscritório[[#Headers],[Set]],EscritórioReal[#Headers],0)) -> R$ 200.00 | L17: =INDEX(PlanejamentoDeEscritório[],MATCH(INDEX(VariaçõesDoEscritório[],ROW()-ROW(VariaçõesDoEscritório[[#Headers],[Out]]),1),INDEX(PlanejamentoDeEscritório[],,1),0),MATCH(VariaçõesDoEscritório[[#Headers],[Out]],PlanejamentoDeEscritório[#Headers],0))-INDEX(EscritórioReal[],MATCH(INDEX(VariaçõesDoEscritório[],ROW()-ROW(VariaçõesDoEscritório[[#Headers],[Out]]),1),INDEX(EscritórioReal[],,1),0),MATCH(VariaçõesDoEscritório[[#Headers],[Out]],EscritórioReal[#Headers],0)) -> R$ 200.00 | M17: =INDEX(PlanejamentoDeEscritório[],MATCH(INDEX(VariaçõesDoEscritório[],ROW()-ROW(VariaçõesDoEscritório[[#Headers],[Nov]]),1),INDEX(PlanejamentoDeEscritório[],,1),0),MATCH(VariaçõesDoEscritório[[#Headers],[Nov]],PlanejamentoDeEscritório[#Headers],0))-INDEX(EscritórioReal[],MATCH(INDEX(VariaçõesDoEscritório[],ROW()-ROW(VariaçõesDoEscritório[[#Headers],[Nov]]),1),INDEX(EscritórioReal[],,1),0),MATCH(VariaçõesDoEscritório[[#Headers],[Nov]],EscritórioReal[#Headers],0)) -> R$ 200.00 | N17: =INDEX(PlanejamentoDeEscritório[],MATCH(INDEX(VariaçõesDoEscritório[],ROW()-ROW(VariaçõesDoEscritório[[#Headers],[Dez]]),1),INDEX(PlanejamentoDeEscritório[],,1),0),MATCH(VariaçõesDoEscritório[[#Headers],[Dez]],PlanejamentoDeEscritório[#Headers],0))-INDEX(EscritórioReal[],MATCH(INDEX(VariaçõesDoEscritório[],ROW()-ROW(VariaçõesDoEscritório[[#Headers],[Dez]]),1),INDEX(EscritórioReal[],,1),0),MATCH(VariaçõesDoEscritório[[#Headers],[Dez]],EscritórioReal[#Headers],0)) -> R$ 200.00 | O17: =SUM(VariaçõesDoEscritório[[#This Row],[Jan]:[Dez]]) -> R$ 1,125.00
B18: Segurança | C18: =INDEX(PlanejamentoDeEscritório[],MATCH(INDEX(VariaçõesDoEscritório[],ROW()-ROW(VariaçõesDoEscritório[[#Headers],[Jan]]),1),INDEX(PlanejamentoDeEscritório[],,1),0),MATCH(VariaçõesDoEscritório[[#Headers],[Jan]],PlanejamentoDeEscritório[#Headers],0))-INDEX(EscritórioReal[],MATCH(INDEX(VariaçõesDoEscritório[],ROW()-ROW(VariaçõesDoEscritório[[#Headers],[Jan]]),1),INDEX(EscritórioReal[],,1),0),MATCH(VariaçõesDoEscritório[[#Headers],[Jan]],EscritórioReal[#Headers],0)) -> R$ 0.00 | D18: =INDEX(PlanejamentoDeEscritório[],MATCH(INDEX(VariaçõesDoEscritório[],ROW()-ROW(VariaçõesDoEscritório[[#Headers],[Fev]]),1),INDEX(PlanejamentoDeEscritório[],,1),0),MATCH(VariaçõesDoEscritório[[#Headers],[Fev]],PlanejamentoDeEscritório[#Headers],0))-INDEX(EscritórioReal[],MATCH(INDEX(VariaçõesDoEscritório[],ROW()-ROW(VariaçõesDoEscritório[[#Headers],[Fev]]),1),INDEX(EscritórioReal[],,1),0),MATCH(VariaçõesDoEscritório[[#Headers],[Fev]],EscritórioReal[#Headers],0)) -> R$ 0.00 | E18: =INDEX(PlanejamentoDeEscritório[],MATCH(INDEX(VariaçõesDoEscritório[],ROW()-ROW(VariaçõesDoEscritório[[#Headers],[Mar]]),1),INDEX(PlanejamentoDeEscritório[],,1),0),MATCH(VariaçõesDoEscritório[[#Headers],[Mar]],PlanejamentoDeEscritório[#Headers],0))-INDEX(EscritórioReal[],MATCH(INDEX(VariaçõesDoEscritório[],ROW()-ROW(VariaçõesDoEscritório[[#Headers],[Mar]]),1),INDEX(EscritórioReal[],,1),0),MATCH(VariaçõesDoEscritório[[#Headers],[Mar]],EscritórioReal[#Headers],0)) -> R$ 0.00 | F18: =INDEX(PlanejamentoDeEscritório[],MATCH(INDEX(VariaçõesDoEscritório[],ROW()-ROW(VariaçõesDoEscritório[[#Headers],[Abr]]),1),INDEX(PlanejamentoDeEscritório[],,1),0),MATCH(VariaçõesDoEscritório[[#Headers],[Abr]],PlanejamentoDeEscritório[#Headers],0))-INDEX(EscritórioReal[],MATCH(INDEX(VariaçõesDoEscritório[],ROW()-ROW(VariaçõesDoEscritório[[#Headers],[Abr]]),1),INDEX(EscritórioReal[],,1),0),MATCH(VariaçõesDoEscritório[[#Headers],[Abr]],EscritórioReal[#Headers],0)) -> R$ 0.00 | G18: =INDEX(PlanejamentoDeEscritório[],MATCH(INDEX(VariaçõesDoEscritório[],ROW()-ROW(VariaçõesDoEscritório[[#Headers],[Maio]]),1),INDEX(PlanejamentoDeEscritório[],,1),0),MATCH(VariaçõesDoEscritório[[#Headers],[Maio]],PlanejamentoDeEscritório[#Headers],0))-INDEX(EscritórioReal[],MATCH(INDEX(VariaçõesDoEscritório[],ROW()-ROW(VariaçõesDoEscritório[[#Headers],[Maio]]),1),INDEX(EscritórioReal[],,1),0),MATCH(VariaçõesDoEscritório[[#Headers],[Maio]],EscritórioReal[#Headers],0)) -> R$ 0.00 | H18: =INDEX(PlanejamentoDeEscritório[],MATCH(INDEX(VariaçõesDoEscritório[],ROW()-ROW(VariaçõesDoEscritório[[#Headers],[Jun]]),1),INDEX(PlanejamentoDeEscritório[],,1),0),MATCH(VariaçõesDoEscritório[[#Headers],[Jun]],PlanejamentoDeEscritório[#Headers],0))-INDEX(EscritórioReal[],MATCH(INDEX(VariaçõesDoEscritório[],ROW()-ROW(VariaçõesDoEscritório[[#Headers],[Jun]]),1),INDEX(EscritórioReal[],,1),0),MATCH(VariaçõesDoEscritório[[#Headers],[Jun]],EscritórioReal[#Headers],0)) -> R$ 0.00 | I18: =INDEX(PlanejamentoDeEscritório[],MATCH(INDEX(VariaçõesDoEscritório[],ROW()-ROW(VariaçõesDoEscritório[[#Headers],[Jul]]),1),INDEX(PlanejamentoDeEscritório[],,1),0),MATCH(VariaçõesDoEscritório[[#Headers],[Jul]],PlanejamentoDeEscritório[#Headers],0))-INDEX(EscritórioReal[],MATCH(INDEX(VariaçõesDoEscritório[],ROW()-ROW(VariaçõesDoEscritório[[#Headers],[Jul]]),1),INDEX(EscritórioReal[],,1),0),MATCH(VariaçõesDoEscritório[[#Headers],[Jul]],EscritórioReal[#Headers],0)) -> R$ 600.00 | J18: =INDEX(PlanejamentoDeEscritório[],MATCH(INDEX(VariaçõesDoEscritório[],ROW()-ROW(VariaçõesDoEscritório[[#Headers],[Ago]]),1),INDEX(PlanejamentoDeEscritório[],,1),0),MATCH(VariaçõesDoEscritório[[#Headers],[Ago]],PlanejamentoDeEscritório[#Headers],0))-INDEX(EscritórioReal[],MATCH(INDEX(VariaçõesDoEscritório[],ROW()-ROW(VariaçõesDoEscritório[[#Headers],[Ago]]),1),INDEX(EscritórioReal[],,1),0),MATCH(VariaçõesDoEscritório[[#Headers],[Ago]],EscritórioReal[#Headers],0)) -> R$ 600.00 | K18: =INDEX(PlanejamentoDeEscritório[],MATCH(INDEX(VariaçõesDoEscritório[],ROW()-ROW(VariaçõesDoEscritório[[#Headers],[Set]]),1),INDEX(PlanejamentoDeEscritório[],,1),0),MATCH(VariaçõesDoEscritório[[#Headers],[Set]],PlanejamentoDeEscritório[#Headers],0))-INDEX(EscritórioReal[],MATCH(INDEX(VariaçõesDoEscritório[],ROW()-ROW(VariaçõesDoEscritório[[#Headers],[Set]]),1),INDEX(EscritórioReal[],,1),0),MATCH(VariaçõesDoEscritório[[#Headers],[Set]],EscritórioReal[#Headers],0)) -> R$ 600.00 | L18: =INDEX(PlanejamentoDeEscritório[],MATCH(INDEX(VariaçõesDoEscritório[],ROW()-ROW(VariaçõesDoEscritório[[#Headers],[Out]]),1),INDEX(PlanejamentoDeEscritório[],,1),0),MATCH(VariaçõesDoEscritório[[#Headers],[Out]],PlanejamentoDeEscritório[#Headers],0))-INDEX(EscritórioReal[],MATCH(INDEX(VariaçõesDoEscritório[],ROW()-ROW(VariaçõesDoEscritório[[#Headers],[Out]]),1),INDEX(EscritórioReal[],,1),0),MATCH(VariaçõesDoEscritório[[#Headers],[Out]],EscritórioReal[#Headers],0)) -> R$ 600.00 | M18: =INDEX(PlanejamentoDeEscritório[],MATCH(INDEX(VariaçõesDoEscritório[],ROW()-ROW(VariaçõesDoEscritório[[#Headers],[Nov]]),1),INDEX(PlanejamentoDeEscritório[],,1),0),MATCH(VariaçõesDoEscritório[[#Headers],[Nov]],PlanejamentoDeEscritório[#Headers],0))-INDEX(EscritórioReal[],MATCH(INDEX(VariaçõesDoEscritório[],ROW()-ROW(VariaçõesDoEscritório[[#Headers],[Nov]]),1),INDEX(EscritórioReal[],,1),0),MATCH(VariaçõesDoEscritório[[#Headers],[Nov]],EscritórioReal[#Headers],0)) -> R$ 600.00 | N18: =INDEX(PlanejamentoDeEscritório[],MATCH(INDEX(VariaçõesDoEscritório[],ROW()-ROW(VariaçõesDoEscritório[[#Headers],[Dez]]),1),INDEX(PlanejamentoDeEscritório[],,1),0),MATCH(VariaçõesDoEscritório[[#Headers],[Dez]],PlanejamentoDeEscritório[#Headers],0))-INDEX(EscritórioReal[],MATCH(INDEX(VariaçõesDoEscritório[],ROW()-ROW(VariaçõesDoEscritório[[#Headers],[Dez]]),1),INDEX(EscritórioReal[],,1),0),MATCH(VariaçõesDoEscritório[[#Headers],[Dez]],EscritórioReal[#Headers],0)) -> R$ 600.00 | O18: =SUM(VariaçõesDoEscritório[[#This Row],[Jan]:[Dez]]) -> R$ 3,600.00
B19: Subtotal | C19: =SUBTOTAL(109,VariaçõesDoEscritório[Jan]) -> -R$ 17.00 | D19: =SUBTOTAL(109,VariaçõesDoEscritório[Fev]) -> R$ 72.00 | E19: =SUBTOTAL(109,VariaçõesDoEscritório[Mar]) -> R$ 78.00 | F19: =SUBTOTAL(109,VariaçõesDoEscritório[Abr]) -> -R$ 141.00 | G19: =SUBTOTAL(109,VariaçõesDoEscritório[Maio]) -> -R$ 38.00 | H19: =SUBTOTAL(109,VariaçõesDoEscritório[Jun]) -> R$ 16.00 | I19: =SUBTOTAL(109,VariaçõesDoEscritório[Jul]) -> R$ 11,470.00 | J19: =SUBTOTAL(109,VariaçõesDoEscritório[Ago]) -> R$ 11,470.00 | K19: =SUBTOTAL(109,VariaçõesDoEscritório[Set]) -> R$ 11,470.00 | L19: =SUBTOTAL(109,VariaçõesDoEscritório[Out]) -> R$ 11,470.00 | M19: =SUBTOTAL(109,VariaçõesDoEscritório[Nov]) -> R$ 11,770.00 | N19: =SUBTOTAL(109,VariaçõesDoEscritório[Dez]) -> R$ 11,770.00 | O19: =SUBTOTAL(109,VariaçõesDoEscritório[ANO]) -> R$ 69,390.00
B21: Custos de marketing | C21: Jan | D21: Fev | E21: Mar | F21: Abr | G21: Maio | H21: Jun | I21: Jul | J21: Ago | K21: Set | L21: Out | M21: Nov | N21: Dez | O21: ANO
B22: Hospedagem de site | C22: =INDEX(PlanejamentoDeMarketing[],MATCH(INDEX(VariaçõesDeMarketing[],ROW()-ROW(VariaçõesDeMarketing[[#Headers],[Jan]]),1),INDEX(PlanejamentoDeMarketing[],,1),0),MATCH(VariaçõesDeMarketing[[#Headers],[Jan]],PlanejamentoDeMarketing[#Headers],0))-INDEX(MarketingReal[],MATCH(INDEX(VariaçõesDeMarketing[],ROW()-ROW(VariaçõesDeMarketing[[#Headers],[Jan]]),1),INDEX(PlanejamentoDeMarketing[],,1),0),MATCH(VariaçõesDeMarketing[[#Headers],[Jan]],MarketingReal[#Headers],0)) -> R$ 0.00 | D22: =INDEX(PlanejamentoDeMarketing[],MATCH(INDEX(VariaçõesDeMarketing[],ROW()-ROW(VariaçõesDeMarketing[[#Headers],[Fev]]),1),INDEX(PlanejamentoDeMarketing[],,1),0),MATCH(VariaçõesDeMarketing[[#Headers],[Fev]],PlanejamentoDeMarketing[#Headers],0))-INDEX(MarketingReal[],MATCH(INDEX(VariaçõesDeMarketing[],ROW()-ROW(VariaçõesDeMarketing[[#Headers],[Fev]]),1),INDEX(PlanejamentoDeMarketing[],,1),0),MATCH(VariaçõesDeMarketing[[#Headers],[Fev]],MarketingReal[#Headers],0)) -> R$ 0.00 | E22: =INDEX(PlanejamentoDeMarketing[],MATCH(INDEX(VariaçõesDeMarketing[],ROW()-ROW(VariaçõesDeMarketing[[#Headers],[Mar]]),1),INDEX(PlanejamentoDeMarketing[],,1),0),MATCH(VariaçõesDeMarketing[[#Headers],[Mar]],PlanejamentoDeMarketing[#Headers],0))-INDEX(MarketingReal[],MATCH(INDEX(VariaçõesDeMarketing[],ROW()-ROW(VariaçõesDeMarketing[[#Headers],[Mar]]),1),INDEX(PlanejamentoDeMarketing[],,1),0),MATCH(VariaçõesDeMarketing[[#Headers],[Mar]],MarketingReal[#Headers],0)) -> R$ 0.00 | F22: =INDEX(PlanejamentoDeMarketing[],MATCH(INDEX(VariaçõesDeMarketing[],ROW()-ROW(VariaçõesDeMarketing[[#Headers],[Abr]]),1),INDEX(PlanejamentoDeMarketing[],,1),0),MATCH(VariaçõesDeMarketing[[#Headers],[Abr]],PlanejamentoDeMarketing[#Headers],0))-INDEX(MarketingReal[],MATCH(INDEX(VariaçõesDeMarketing[],ROW()-ROW(VariaçõesDeMarketing[[#Headers],[Abr]]),1),INDEX(PlanejamentoDeMarketing[],,1),0),MATCH(VariaçõesDeMarketing[[#Headers],[Abr]],MarketingReal[#Headers],0)) -> R$ 0.00 | G22: =INDEX(PlanejamentoDeMarketing[],MATCH(INDEX(VariaçõesDeMarketing[],ROW()-ROW(VariaçõesDeMarketing[[#Headers],[Maio]]),1),INDEX(PlanejamentoDeMarketing[],,1),0),MATCH(VariaçõesDeMarketing[[#Headers],[Maio]],PlanejamentoDeMarketing[#Headers],0))-INDEX(MarketingReal[],MATCH(INDEX(VariaçõesDeMarketing[],ROW()-ROW(VariaçõesDeMarketing[[#Headers],[Maio]]),1),INDEX(PlanejamentoDeMarketing[],,1),0),MATCH(VariaçõesDeMarketing[[#Headers],[Maio]],MarketingReal[#Headers],0)) -> R$ 0.00 | H22: =INDEX(PlanejamentoDeMarketing[],MATCH(INDEX(VariaçõesDeMarketing[],ROW()-ROW(VariaçõesDeMarketing[[#Headers],[Jun]]),1),INDEX(PlanejamentoDeMarketing[],,1),0),MATCH(VariaçõesDeMarketing[[#Headers],[Jun]],PlanejamentoDeMarketing[#Headers],0))-INDEX(MarketingReal[],MATCH(INDEX(VariaçõesDeMarketing[],ROW()-ROW(VariaçõesDeMarketing[[#Headers],[Jun]]),1),INDEX(PlanejamentoDeMarketing[],,1),0),MATCH(VariaçõesDeMarketing[[#Headers],[Jun]],MarketingReal[#Headers],0)) -> R$ 0.00 | I22: =INDEX(PlanejamentoDeMarketing[],MATCH(INDEX(VariaçõesDeMarketing[],ROW()-ROW(VariaçõesDeMarketing[[#Headers],[Jul]]),1),INDEX(PlanejamentoDeMarketing[],,1),0),MATCH(VariaçõesDeMarketing[[#Headers],[Jul]],PlanejamentoDeMarketing[#Headers],0))-INDEX(MarketingReal[],MATCH(INDEX(VariaçõesDeMarketing[],ROW()-ROW(VariaçõesDeMarketing[[#Headers],[Jul]]),1),INDEX(PlanejamentoDeMarketing[],,1),0),MATCH(VariaçõesDeMarketing[[#Headers],[Jul]],MarketingReal[#Headers],0)) -> R$ 500.00 | J22: =INDEX(PlanejamentoDeMarketing[],MATCH(INDEX(VariaçõesDeMarketing[],ROW()-ROW(VariaçõesDeMarketing[[#Headers],[Ago]]),1),INDEX(PlanejamentoDeMarketing[],,1),0),MATCH(VariaçõesDeMarketing[[#Headers],[Ago]],PlanejamentoDeMarketing[#Headers],0))-INDEX(MarketingReal[],MATCH(INDEX(VariaçõesDeMarketing[],ROW()-ROW(VariaçõesDeMarketing[[#Headers],[Ago]]),1),INDEX(PlanejamentoDeMarketing[],,1),0),MATCH(VariaçõesDeMarketing[[#Headers],[Ago]],MarketingReal[#Headers],0)) -> R$ 500.00 | K22: =INDEX(PlanejamentoDeMarketing[],MATCH(INDEX(VariaçõesDeMarketing[],ROW()-ROW(VariaçõesDeMarketing[[#Headers],[Set]]),1),INDEX(PlanejamentoDeMarketing[],,1),0),MATCH(VariaçõesDeMarketing[[#Headers],[Set]],PlanejamentoDeMarketing[#Headers],0))-INDEX(MarketingReal[],MATCH(INDEX(VariaçõesDeMarketing[],ROW()-ROW(VariaçõesDeMarketing[[#Headers],[Set]]),1),INDEX(PlanejamentoDeMarketing[],,1),0),MATCH(VariaçõesDeMarketing[[#Headers],[Set]],MarketingReal[#Headers],0)) -> R$ 500.00 | L22: =INDEX(PlanejamentoDeMarketing[],MATCH(INDEX(VariaçõesDeMarketing[],ROW()-ROW(VariaçõesDeMarketing[[#Headers],[Out]]),1),INDEX(PlanejamentoDeMarketing[],,1),0),MATCH(VariaçõesDeMarketing[[#Headers],[Out]],PlanejamentoDeMarketing[#Headers],0))-INDEX(MarketingReal[],MATCH(INDEX(VariaçõesDeMarketing[],ROW()-ROW(VariaçõesDeMarketing[[#Headers],[Out]]),1),INDEX(PlanejamentoDeMarketing[],,1),0),MATCH(VariaçõesDeMarketing[[#Headers],[Out]],MarketingReal[#Headers],0)) -> R$ 500.00 | M22: =INDEX(PlanejamentoDeMarketing[],MATCH(INDEX(VariaçõesDeMarketing[],ROW()-ROW(VariaçõesDeMarketing[[#Headers],[Nov]]),1),INDEX(PlanejamentoDeMarketing[],,1),0),MATCH(VariaçõesDeMarketing[[#Headers],[Nov]],PlanejamentoDeMarketing[#Headers],0))-INDEX(MarketingReal[],MATCH(INDEX(VariaçõesDeMarketing[],ROW()-ROW(VariaçõesDeMarketing[[#Headers],[Nov]]),1),INDEX(PlanejamentoDeMarketing[],,1),0),MATCH(VariaçõesDeMarketing[[#Headers],[Nov]],MarketingReal[#Headers],0)) -> R$ 500.00 | N22: =INDEX(PlanejamentoDeMarketing[],MATCH(INDEX(VariaçõesDeMarketing[],ROW()-ROW(VariaçõesDeMarketing[[#Headers],[Dez]]),1),INDEX(PlanejamentoDeMarketing[],,1),0),MATCH(VariaçõesDeMarketing[[#Headers],[Dez]],PlanejamentoDeMarketing[#Headers],0))-INDEX(MarketingReal[],MATCH(INDEX(VariaçõesDeMarketing[],ROW()-ROW(VariaçõesDeMarketing[[#Headers],[Dez]]),1),INDEX(PlanejamentoDeMarketing[],,1),0),MATCH(VariaçõesDeMarketing[[#Headers],[Dez]],MarketingReal[#Headers],0)) -> R$ 500.00 | O22: =SUM(VariaçõesDeMarketing[[#This Row],[Jan]:[Dez]]) -> R$ 3,000.00
B23: Atualizações do site | C23: =INDEX(PlanejamentoDeMarketing[],MATCH(INDEX(VariaçõesDeMarketing[],ROW()-ROW(VariaçõesDeMarketing[[#Headers],[Jan]]),1),INDEX(PlanejamentoDeMarketing[],,1),0),MATCH(VariaçõesDeMarketing[[#Headers],[Jan]],PlanejamentoDeMarketing[#Headers],0))-INDEX(MarketingReal[],MATCH(INDEX(VariaçõesDeMarketing[],ROW()-ROW(VariaçõesDeMarketing[[#Headers],[Jan]]),1),INDEX(PlanejamentoDeMarketing[],,1),0),MATCH(VariaçõesDeMarketing[[#Headers],[Jan]],MarketingReal[#Headers],0)) -> R$ 0.00 | D23: =INDEX(PlanejamentoDeMarketing[],MATCH(INDEX(VariaçõesDeMarketing[],ROW()-ROW(VariaçõesDeMarketing[[#Headers],[Fev]]),1),INDEX(PlanejamentoDeMarketing[],,1),0),MATCH(VariaçõesDeMarketing[[#Headers],[Fev]],PlanejamentoDeMarketing[#Headers],0))-INDEX(MarketingReal[],MATCH(INDEX(VariaçõesDeMarketing[],ROW()-ROW(VariaçõesDeMarketing[[#Headers],[Fev]]),1),INDEX(PlanejamentoDeMarketing[],,1),0),MATCH(VariaçõesDeMarketing[[#Headers],[Fev]],MarketingReal[#Headers],0)) -> R$ 0.00 | E23: =INDEX(PlanejamentoDeMarketing[],MATCH(INDEX(VariaçõesDeMarketing[],ROW()-ROW(VariaçõesDeMarketing[[#Headers],[Mar]]),1),INDEX(PlanejamentoDeMarketing[],,1),0),MATCH(VariaçõesDeMarketing[[#Headers],[Mar]],PlanejamentoDeMarketing[#Headers],0))-INDEX(MarketingReal[],MATCH(INDEX(VariaçõesDeMarketing[],ROW()-ROW(VariaçõesDeMarketing[[#Headers],[Mar]]),1),INDEX(PlanejamentoDeMarketing[],,1),0),MATCH(VariaçõesDeMarketing[[#Headers],[Mar]],MarketingReal[#Headers],0)) -> R$ 0.00 | F23: =INDEX(PlanejamentoDeMarketing[],MATCH(INDEX(VariaçõesDeMarketing[],ROW()-ROW(VariaçõesDeMarketing[[#Headers],[Abr]]),1),INDEX(PlanejamentoDeMarketing[],,1),0),MATCH(VariaçõesDeMarketing[[#Headers],[Abr]],PlanejamentoDeMarketing[#Headers],0))-INDEX(MarketingReal[],MATCH(INDEX(VariaçõesDeMarketing[],ROW()-ROW(VariaçõesDeMarketing[[#Headers],[Abr]]),1),INDEX(PlanejamentoDeMarketing[],,1),0),MATCH(VariaçõesDeMarketing[[#Headers],[Abr]],MarketingReal[#Headers],0)) -> R$ 0.00 | G23: =INDEX(PlanejamentoDeMarketing[],MATCH(INDEX(VariaçõesDeMarketing[],ROW()-ROW(VariaçõesDeMarketing[[#Headers],[Maio]]),1),INDEX(PlanejamentoDeMarketing[],,1),0),MATCH(VariaçõesDeMarketing[[#Headers],[Maio]],PlanejamentoDeMarketing[#Headers],0))-INDEX(MarketingReal[],MATCH(INDEX(VariaçõesDeMarketing[],ROW()-ROW(VariaçõesDeMarketing[[#Headers],[Maio]]),1),INDEX(PlanejamentoDeMarketing[],,1),0),MATCH(VariaçõesDeMarketing[[#Headers],[Maio]],MarketingReal[#Headers],0)) -> R$ 0.00 | H23: =INDEX(PlanejamentoDeMarketing[],MATCH(INDEX(VariaçõesDeMarketing[],ROW()-ROW(VariaçõesDeMarketing[[#Headers],[Jun]]),1),INDEX(PlanejamentoDeMarketing[],,1),0),MATCH(VariaçõesDeMarketing[[#Headers],[Jun]],PlanejamentoDeMarketing[#Headers],0))-INDEX(MarketingReal[],MATCH(INDEX(VariaçõesDeMarketing[],ROW()-ROW(VariaçõesDeMarketing[[#Headers],[Jun]]),1),INDEX(PlanejamentoDeMarketing[],,1),0),MATCH(VariaçõesDeMarketing[[#Headers],[Jun]],MarketingReal[#Headers],0)) -> -R$ 500.00 | I23: =INDEX(PlanejamentoDeMarketing[],MATCH(INDEX(VariaçõesDeMarketing[],ROW()-ROW(VariaçõesDeMarketing[[#Headers],[Jul]]),1),INDEX(PlanejamentoDeMarketing[],,1),0),MATCH(VariaçõesDeMarketing[[#Headers],[Jul]],PlanejamentoDeMarketing[#Headers],0))-INDEX(MarketingReal[],MATCH(INDEX(VariaçõesDeMarketing[],ROW()-ROW(VariaçõesDeMarketing[[#Headers],[Jul]]),1),INDEX(PlanejamentoDeMarketing[],,1),0),MATCH(VariaçõesDeMarketing[[#Headers],[Jul]],MarketingReal[#Headers],0)) -> R$ 200.00 | J23: =INDEX(PlanejamentoDeMarketing[],MATCH(INDEX(VariaçõesDeMarketing[],ROW()-ROW(VariaçõesDeMarketing[[#Headers],[Ago]]),1),INDEX(PlanejamentoDeMarketing[],,1),0),MATCH(VariaçõesDeMarketing[[#Headers],[Ago]],PlanejamentoDeMarketing[#Headers],0))-INDEX(MarketingReal[],MATCH(INDEX(VariaçõesDeMarketing[],ROW()-ROW(VariaçõesDeMarketing[[#Headers],[Ago]]),1),INDEX(PlanejamentoDeMarketing[],,1),0),MATCH(VariaçõesDeMarketing[[#Headers],[Ago]],MarketingReal[#Headers],0)) -> R$ 200.00 | K23: =INDEX(PlanejamentoDeMarketing[],MATCH(INDEX(VariaçõesDeMarketing[],ROW()-ROW(VariaçõesDeMarketing[[#Headers],[Set]]),1),INDEX(PlanejamentoDeMarketing[],,1),0),MATCH(VariaçõesDeMarketing[[#Headers],[Set]],PlanejamentoDeMarketing[#Headers],0))-INDEX(MarketingReal[],MATCH(INDEX(VariaçõesDeMarketing[],ROW()-ROW(VariaçõesDeMarketing[[#Headers],[Set]]),1),INDEX(PlanejamentoDeMarketing[],,1),0),MATCH(VariaçõesDeMarketing[[#Headers],[Set]],MarketingReal[#Headers],0)) -> R$ 200.00 | L23: =INDEX(PlanejamentoDeMarketing[],MATCH(INDEX(VariaçõesDeMarketing[],ROW()-ROW(VariaçõesDeMarketing[[#Headers],[Out]]),1),INDEX(PlanejamentoDeMarketing[],,1),0),MATCH(VariaçõesDeMarketing[[#Headers],[Out]],PlanejamentoDeMarketing[#Headers],0))-INDEX(MarketingReal[],MATCH(INDEX(VariaçõesDeMarketing[],ROW()-ROW(VariaçõesDeMarketing[[#Headers],[Out]]),1),INDEX(PlanejamentoDeMarketing[],,1),0),MATCH(VariaçõesDeMarketing[[#Headers],[Out]],MarketingReal[#Headers],0)) -> R$ 200.00 | M23: =INDEX(PlanejamentoDeMarketing[],MATCH(INDEX(VariaçõesDeMarketing[],ROW()-ROW(VariaçõesDeMarketing[[#Headers],[Nov]]),1),INDEX(PlanejamentoDeMarketing[],,1),0),MATCH(VariaçõesDeMarketing[[#Headers],[Nov]],PlanejamentoDeMarketing[#Headers],0))-INDEX(MarketingReal[],MATCH(INDEX(VariaçõesDeMarketing[],ROW()-ROW(VariaçõesDeMarketing[[#Headers],[Nov]]),1),INDEX(PlanejamentoDeMarketing[],,1),0),MATCH(VariaçõesDeMarketing[[#Headers],[Nov]],MarketingReal[#Headers],0)) -> R$ 200.00 | N23: =INDEX(PlanejamentoDeMarketing[],MATCH(INDEX(VariaçõesDeMarketing[],ROW()-ROW(VariaçõesDeMarketing[[#Headers],[Dez]]),1),INDEX(PlanejamentoDeMarketing[],,1),0),MATCH(VariaçõesDeMarketing[[#Headers],[Dez]],PlanejamentoDeMarketing[#Headers],0))-INDEX(MarketingReal[],MATCH(INDEX(VariaçõesDeMarketing[],ROW()-ROW(VariaçõesDeMarketing[[#Headers],[Dez]]),1),INDEX(PlanejamentoDeMarketing[],,1),0),MATCH(VariaçõesDeMarketing[[#Headers],[Dez]],MarketingReal[#Headers],0)) -> R$ 1,000.00 | O23: =SUM(VariaçõesDeMarketing[[#This Row],[Jan]:[Dez]]) -> R$ 1,500.00
B24: Preparação de materiais de referência | C24: =INDEX(PlanejamentoDeMarketing[],MATCH(INDEX(VariaçõesDeMarketing[],ROW()-ROW(VariaçõesDeMarketing[[#Headers],[Jan]]),1),INDEX(PlanejamentoDeMarketing[],,1),0),MATCH(VariaçõesDeMarketing[[#Headers],[Jan]],PlanejamentoDeMarketing[#Headers],0))-INDEX(MarketingReal[],MATCH(INDEX(VariaçõesDeMarketing[],ROW()-ROW(VariaçõesDeMarketing[[#Headers],[Jan]]),1),INDEX(PlanejamentoDeMarketing[],,1),0),MATCH(VariaçõesDeMarketing[[#Headers],[Jan]],MarketingReal[#Headers],0)) -> R$ 200.00 | D24: =INDEX(PlanejamentoDeMarketing[],MATCH(INDEX(VariaçõesDeMarketing[],ROW()-ROW(VariaçõesDeMarketing[[#Headers],[Fev]]),1),INDEX(PlanejamentoDeMarketing[],,1),0),MATCH(VariaçõesDeMarketing[[#Headers],[Fev]],PlanejamentoDeMarketing[#Headers],0))-INDEX(MarketingReal[],MATCH(INDEX(VariaçõesDeMarketing[],ROW()-ROW(VariaçõesDeMarketing[[#Headers],[Fev]]),1),INDEX(PlanejamentoDeMarketing[],,1),0),MATCH(VariaçõesDeMarketing[[#Headers],[Fev]],MarketingReal[#Headers],0)) -> R$ 0.00 | E24: =INDEX(PlanejamentoDeMarketing[],MATCH(INDEX(VariaçõesDeMarketing[],ROW()-ROW(VariaçõesDeMarketing[[#Headers],[Mar]]),1),INDEX(PlanejamentoDeMarketing[],,1),0),MATCH(VariaçõesDeMarketing[[#Headers],[Mar]],PlanejamentoDeMarketing[#Headers],0))-INDEX(MarketingReal[],MATCH(INDEX(VariaçõesDeMarketing[],ROW()-ROW(VariaçõesDeMarketing[[#Headers],[Mar]]),1),INDEX(PlanejamentoDeMarketing[],,1),0),MATCH(VariaçõesDeMarketing[[#Headers],[Mar]],MarketingReal[#Headers],0)) -> R$ 0.00 | F24: =INDEX(PlanejamentoDeMarketing[],MATCH(INDEX(VariaçõesDeMarketing[],ROW()-ROW(VariaçõesDeMarketing[[#Headers],[Abr]]),1),INDEX(PlanejamentoDeMarketing[],,1),0),MATCH(VariaçõesDeMarketing[[#Headers],[Abr]],PlanejamentoDeMarketing[#Headers],0))-INDEX(MarketingReal[],MATCH(INDEX(VariaçõesDeMarketing[],ROW()-ROW(VariaçõesDeMarketing[[#Headers],[Abr]]),1),INDEX(PlanejamentoDeMarketing[],,1),0),MATCH(VariaçõesDeMarketing[[#Headers],[Abr]],MarketingReal[#Headers],0)) -> -R$ 500.00 | G24: =INDEX(PlanejamentoDeMarketing[],MATCH(INDEX(VariaçõesDeMarketing[],ROW()-ROW(VariaçõesDeMarketing[[#Headers],[Maio]]),1),INDEX(PlanejamentoDeMarketing[],,1),0),MATCH(VariaçõesDeMarketing[[#Headers],[Maio]],PlanejamentoDeMarketing[#Headers],0))-INDEX(MarketingReal[],MATCH(INDEX(VariaçõesDeMarketing[],ROW()-ROW(VariaçõesDeMarketing[[#Headers],[Maio]]),1),INDEX(PlanejamentoDeMarketing[],,1),0),MATCH(VariaçõesDeMarketing[[#Headers],[Maio]],MarketingReal[#Headers],0)) -> R$ 0.00 | H24: =INDEX(PlanejamentoDeMarketing[],MATCH(INDEX(VariaçõesDeMarketing[],ROW()-ROW(VariaçõesDeMarketing[[#Headers],[Jun]]),1),INDEX(PlanejamentoDeMarketing[],,1),0),MATCH(VariaçõesDeMarketing[[#Headers],[Jun]],PlanejamentoDeMarketing[#Headers],0))-INDEX(MarketingReal[],MATCH(INDEX(VariaçõesDeMarketing[],ROW()-ROW(VariaçõesDeMarketing[[#Headers],[Jun]]),1),INDEX(PlanejamentoDeMarketing[],,1),0),MATCH(VariaçõesDeMarketing[[#Headers],[Jun]],MarketingReal[#Headers],0)) -> R$ 0.00 | I24: =INDEX(PlanejamentoDeMarketing[],MATCH(INDEX(VariaçõesDeMarketing[],ROW()-ROW(VariaçõesDeMarketing[[#Headers],[Jul]]),1),INDEX(PlanejamentoDeMarketing[],,1),0),MATCH(VariaçõesDeMarketing[[#Headers],[Jul]],PlanejamentoDeMarketing[#Headers],0))-INDEX(MarketingReal[],MATCH(INDEX(VariaçõesDeMarketing[],ROW()-ROW(VariaçõesDeMarketing[[#Headers],[Jul]]),1),INDEX(PlanejamentoDeMarketing[],,1),0),MATCH(VariaçõesDeMarketing[[#Headers],[Jul]],MarketingReal[#Headers],0)) -> R$ 5,000.00 | J24: =INDEX(PlanejamentoDeMarketing[],MATCH(INDEX(VariaçõesDeMarketing[],ROW()-ROW(VariaçõesDeMarketing[[#Headers],[Ago]]),1),INDEX(PlanejamentoDeMarketing[],,1),0),MATCH(VariaçõesDeMarketing[[#Headers],[Ago]],PlanejamentoDeMarketing[#Headers],0))-INDEX(MarketingReal[],MATCH(INDEX(VariaçõesDeMarketing[],ROW()-ROW(VariaçõesDeMarketing[[#Headers],[Ago]]),1),INDEX(PlanejamentoDeMarketing[],,1),0),MATCH(VariaçõesDeMarketing[[#Headers],[Ago]],MarketingReal[#Headers],0)) -> R$ 0.00 | K24: =INDEX(PlanejamentoDeMarketing[],MATCH(INDEX(VariaçõesDeMarketing[],ROW()-ROW(VariaçõesDeMarketing[[#Headers],[Set]]),1),INDEX(PlanejamentoDeMarketing[],,1),0),MATCH(VariaçõesDeMarketing[[#Headers],[Set]],PlanejamentoDeMarketing[#Headers],0))-INDEX(MarketingReal[],MATCH(INDEX(VariaçõesDeMarketing[],ROW()-ROW(VariaçõesDeMarketing[[#Headers],[Set]]),1),INDEX(PlanejamentoDeMarketing[],,1),0),MATCH(VariaçõesDeMarketing[[#Headers],[Set]],MarketingReal[#Headers],0)) -> R$ 0.00 | L24: =INDEX(PlanejamentoDeMarketing[],MATCH(INDEX(VariaçõesDeMarketing[],ROW()-ROW(VariaçõesDeMarketing[[#Headers],[Out]]),1),INDEX(PlanejamentoDeMarketing[],,1),0),MATCH(VariaçõesDeMarketing[[#Headers],[Out]],PlanejamentoDeMarketing[#Headers],0))-INDEX(MarketingReal[],MATCH(INDEX(VariaçõesDeMarketing[],ROW()-ROW(VariaçõesDeMarketing[[#Headers],[Out]]),1),INDEX(PlanejamentoDeMarketing[],,1),0),MATCH(VariaçõesDeMarketing[[#Headers],[Out]],MarketingReal[#Headers],0)) -> R$ 5,000.00 | M24: =INDEX(PlanejamentoDeMarketing[],MATCH(INDEX(VariaçõesDeMarketing[],ROW()-ROW(VariaçõesDeMarketing[[#Headers],[Nov]]),1),INDEX(PlanejamentoDeMarketing[],,1),0),MATCH(VariaçõesDeMarketing[[#Headers],[Nov]],PlanejamentoDeMarketing[#Headers],0))-INDEX(MarketingReal[],MATCH(INDEX(VariaçõesDeMarketing[],ROW()-ROW(VariaçõesDeMarketing[[#Headers],[Nov]]),1),INDEX(PlanejamentoDeMarketing[],,1),0),MATCH(VariaçõesDeMarketing[[#Headers],[Nov]],MarketingReal[#Headers],0)) -> R$ 0.00 | N24: =INDEX(PlanejamentoDeMarketing[],MATCH(INDEX(VariaçõesDeMarketing[],ROW()-ROW(VariaçõesDeMarketing[[#Headers],[Dez]]),1),INDEX(PlanejamentoDeMarketing[],,1),0),MATCH(VariaçõesDeMarketing[[#Headers],[Dez]],PlanejamentoDeMarketing[#Headers],0))-INDEX(MarketingReal[],MATCH(INDEX(VariaçõesDeMarketing[],ROW()-ROW(VariaçõesDeMarketing[[#Headers],[Dez]]),1),INDEX(PlanejamentoDeMarketing[],,1),0),MATCH(VariaçõesDeMarketing[[#Headers],[Dez]],MarketingReal[#Headers],0)) -> R$ 0.00 | O24: =SUM(VariaçõesDeMarketing[[#This Row],[Jan]:[Dez]]) -> R$ 9,700.00
B25: Impressão de materiais de referência | C25: =INDEX(PlanejamentoDeMarketing[],MATCH(INDEX(VariaçõesDeMarketing[],ROW()-ROW(VariaçõesDeMarketing[[#Headers],[Jan]]),1),INDEX(PlanejamentoDeMarketing[],,1),0),MATCH(VariaçõesDeMarketing[[#Headers],[Jan]],PlanejamentoDeMarketing[#Headers],0))-INDEX(MarketingReal[],MATCH(INDEX(VariaçõesDeMarketing[],ROW()-ROW(VariaçõesDeMarketing[[#Headers],[Jan]]),1),INDEX(PlanejamentoDeMarketing[],,1),0),MATCH(VariaçõesDeMarketing[[#Headers],[Jan]],MarketingReal[#Headers],0)) -> R$ 100.00 | D25: =INDEX(PlanejamentoDeMarketing[],MATCH(INDEX(VariaçõesDeMarketing[],ROW()-ROW(VariaçõesDeMarketing[[#Headers],[Fev]]),1),INDEX(PlanejamentoDeMarketing[],,1),0),MATCH(VariaçõesDeMarketing[[#Headers],[Fev]],PlanejamentoDeMarketing[#Headers],0))-INDEX(MarketingReal[],MATCH(INDEX(VariaçõesDeMarketing[],ROW()-ROW(VariaçõesDeMarketing[[#Headers],[Fev]]),1),INDEX(PlanejamentoDeMarketing[],,1),0),MATCH(VariaçõesDeMarketing[[#Headers],[Fev]],MarketingReal[#Headers],0)) -> -R$ 300.00 | E25: =INDEX(PlanejamentoDeMarketing[],MATCH(INDEX(VariaçõesDeMarketing[],ROW()-ROW(VariaçõesDeMarketing[[#Headers],[Mar]]),1),INDEX(PlanejamentoDeMarketing[],,1),0),MATCH(VariaçõesDeMarketing[[#Headers],[Mar]],PlanejamentoDeMarketing[#Headers],0))-INDEX(MarketingReal[],MATCH(INDEX(VariaçõesDeMarketing[],ROW()-ROW(VariaçõesDeMarketing[[#Headers],[Mar]]),1),INDEX(PlanejamentoDeMarketing[],,1),0),MATCH(VariaçõesDeMarketing[[#Headers],[Mar]],MarketingReal[#Headers],0)) -> R$ 100.00 | F25: =INDEX(PlanejamentoDeMarketing[],MATCH(INDEX(VariaçõesDeMarketing[],ROW()-ROW(VariaçõesDeMarketing[[#Headers],[Abr]]),1),INDEX(PlanejamentoDeMarketing[],,1),0),MATCH(VariaçõesDeMarketing[[#Headers],[Abr]],PlanejamentoDeMarketing[#Headers],0))-INDEX(MarketingReal[],MATCH(INDEX(VariaçõesDeMarketing[],ROW()-ROW(VariaçõesDeMarketing[[#Headers],[Abr]]),1),INDEX(PlanejamentoDeMarketing[],,1),0),MATCH(VariaçõesDeMarketing[[#Headers],[Abr]],MarketingReal[#Headers],0)) -> R$ 100.00 | G25: =INDEX(PlanejamentoDeMarketing[],MATCH(INDEX(VariaçõesDeMarketing[],ROW()-ROW(VariaçõesDeMarketing[[#Headers],[Maio]]),1),INDEX(PlanejamentoDeMarketing[],,1),0),MATCH(VariaçõesDeMarketing[[#Headers],[Maio]],PlanejamentoDeMarketing[#Headers],0))-INDEX(MarketingReal[],MATCH(INDEX(VariaçõesDeMarketing[],ROW()-ROW(VariaçõesDeMarketing[[#Headers],[Maio]]),1),INDEX(PlanejamentoDeMarketing[],,1),0),MATCH(VariaçõesDeMarketing[[#Headers],[Maio]],MarketingReal[#Headers],0)) -> -R$ 400.00 | H25: =INDEX(PlanejamentoDeMarketing[],MATCH(INDEX(VariaçõesDeMarketing[],ROW()-ROW(VariaçõesDeMarketing[[#Headers],[Jun]]),1),INDEX(PlanejamentoDeMarketing[],,1),0),MATCH(VariaçõesDeMarketing[[#Headers],[Jun]],PlanejamentoDeMarketing[#Headers],0))-INDEX(MarketingReal[],MATCH(INDEX(VariaçõesDeMarketing[],ROW()-ROW(VariaçõesDeMarketing[[#Headers],[Jun]]),1),INDEX(PlanejamentoDeMarketing[],,1),0),MATCH(VariaçõesDeMarketing[[#Headers],[Jun]],MarketingReal[#Headers],0)) -> R$ 20.00 | I25: =INDEX(PlanejamentoDeMarketing[],MATCH(INDEX(VariaçõesDeMarketing[],ROW()-ROW(VariaçõesDeMarketing[[#Headers],[Jul]]),1),INDEX(PlanejamentoDeMarketing[],,1),0),MATCH(VariaçõesDeMarketing[[#Headers],[Jul]],PlanejamentoDeMarketing[#Headers],0))-INDEX(MarketingReal[],MATCH(INDEX(VariaçõesDeMarketing[],ROW()-ROW(VariaçõesDeMarketing[[#Headers],[Jul]]),1),INDEX(PlanejamentoDeMarketing[],,1),0),MATCH(VariaçõesDeMarketing[[#Headers],[Jul]],MarketingReal[#Headers],0)) -> R$ 200.00 | J25: =INDEX(PlanejamentoDeMarketing[],MATCH(INDEX(VariaçõesDeMarketing[],ROW()-ROW(VariaçõesDeMarketing[[#Headers],[Ago]]),1),INDEX(PlanejamentoDeMarketing[],,1),0),MATCH(VariaçõesDeMarketing[[#Headers],[Ago]],PlanejamentoDeMarketing[#Headers],0))-INDEX(MarketingReal[],MATCH(INDEX(VariaçõesDeMarketing[],ROW()-ROW(VariaçõesDeMarketing[[#Headers],[Ago]]),1),INDEX(PlanejamentoDeMarketing[],,1),0),MATCH(VariaçõesDeMarketing[[#Headers],[Ago]],MarketingReal[#Headers],0)) -> R$ 200.00 | K25: =INDEX(PlanejamentoDeMarketing[],MATCH(INDEX(VariaçõesDeMarketing[],ROW()-ROW(VariaçõesDeMarketing[[#Headers],[Set]]),1),INDEX(PlanejamentoDeMarketing[],,1),0),MATCH(VariaçõesDeMarketing[[#Headers],[Set]],PlanejamentoDeMarketing[#Headers],0))-INDEX(MarketingReal[],MATCH(INDEX(VariaçõesDeMarketing[],ROW()-ROW(VariaçõesDeMarketing[[#Headers],[Set]]),1),INDEX(PlanejamentoDeMarketing[],,1),0),MATCH(VariaçõesDeMarketing[[#Headers],[Set]],MarketingReal[#Headers],0)) -> R$ 200.00 | L25: =INDEX(PlanejamentoDeMarketing[],MATCH(INDEX(VariaçõesDeMarketing[],ROW()-ROW(VariaçõesDeMarketing[[#Headers],[Out]]),1),INDEX(PlanejamentoDeMarketing[],,1),0),MATCH(VariaçõesDeMarketing[[#Headers],[Out]],PlanejamentoDeMarketing[#Headers],0))-INDEX(MarketingReal[],MATCH(INDEX(VariaçõesDeMarketing[],ROW()-ROW(VariaçõesDeMarketing[[#Headers],[Out]]),1),INDEX(PlanejamentoDeMarketing[],,1),0),MATCH(VariaçõesDeMarketing[[#Headers],[Out]],MarketingReal[#Headers],0)) -> R$ 200.00 | M25: =INDEX(PlanejamentoDeMarketing[],MATCH(INDEX(VariaçõesDeMarketing[],ROW()-ROW(VariaçõesDeMarketing[[#Headers],[Nov]]),1),INDEX(PlanejamentoDeMarketing[],,1),0),MATCH(VariaçõesDeMarketing[[#Headers],[Nov]],PlanejamentoDeMarketing[#Headers],0))-INDEX(MarketingReal[],MATCH(INDEX(VariaçõesDeMarketing[],ROW()-ROW(VariaçõesDeMarketing[[#Headers],[Nov]]),1),INDEX(PlanejamentoDeMarketing[],,1),0),MATCH(VariaçõesDeMarketing[[#Headers],[Nov]],MarketingReal[#Headers],0)) -> R$ 200.00 | N25: =INDEX(PlanejamentoDeMarketing[],MATCH(INDEX(VariaçõesDeMarketing[],ROW()-ROW(VariaçõesDeMarketing[[#Headers],[Dez]]),1),INDEX(PlanejamentoDeMarketing[],,1),0),MATCH(VariaçõesDeMarketing[[#Headers],[Dez]],PlanejamentoDeMarketing[#Headers],0))-INDEX(MarketingReal[],MATCH(INDEX(VariaçõesDeMarketing[],ROW()-ROW(VariaçõesDeMarketing[[#Headers],[Dez]]),1),INDEX(PlanejamentoDeMarketing[],,1),0),MATCH(VariaçõesDeMarketing[[#Headers],[Dez]],MarketingReal[#Headers],0)) -> R$ 200.00 | O25: =SUM(VariaçõesDeMarketing[[#This Row],[Jan]:[Dez]]) -> R$ 820.00
B26: Eventos de marketing | C26: =INDEX(PlanejamentoDeMarketing[],MATCH(INDEX(VariaçõesDeMarketing[],ROW()-ROW(VariaçõesDeMarketing[[#Headers],[Jan]]),1),INDEX(PlanejamentoDeMarketing[],,1),0),MATCH(VariaçõesDeMarketing[[#Headers],[Jan]],PlanejamentoDeMarketing[#Headers],0))-INDEX(MarketingReal[],MATCH(INDEX(VariaçõesDeMarketing[],ROW()-ROW(VariaçõesDeMarketing[[#Headers],[Jan]]),1),INDEX(PlanejamentoDeMarketing[],,1),0),MATCH(VariaçõesDeMarketing[[#Headers],[Jan]],MarketingReal[#Headers],0)) -> R$ 200.00 | D26: =INDEX(PlanejamentoDeMarketing[],MATCH(INDEX(VariaçõesDeMarketing[],ROW()-ROW(VariaçõesDeMarketing[[#Headers],[Fev]]),1),INDEX(PlanejamentoDeMarketing[],,1),0),MATCH(VariaçõesDeMarketing[[#Headers],[Fev]],PlanejamentoDeMarketing[#Headers],0))-INDEX(MarketingReal[],MATCH(INDEX(VariaçõesDeMarketing[],ROW()-ROW(VariaçõesDeMarketing[[#Headers],[Fev]]),1),INDEX(PlanejamentoDeMarketing[],,1),0),MATCH(VariaçõesDeMarketing[[#Headers],[Fev]],MarketingReal[#Headers],0)) -> -R$ 200.00 | E26: =INDEX(PlanejamentoDeMarketing[],MATCH(INDEX(VariaçõesDeMarketing[],ROW()-ROW(VariaçõesDeMarketing[[#Headers],[Mar]]),1),INDEX(PlanejamentoDeMarketing[],,1),0),MATCH(VariaçõesDeMarketing[[#Headers],[Mar]],PlanejamentoDeMarketing[#Headers],0))-INDEX(MarketingReal[],MATCH(INDEX(VariaçõesDeMarketing[],ROW()-ROW(VariaçõesDeMarketing[[#Headers],[Mar]]),1),INDEX(PlanejamentoDeMarketing[],,1),0),MATCH(VariaçõesDeMarketing[[#Headers],[Mar]],MarketingReal[#Headers],0)) -> -R$ 200.00 | F26: =INDEX(PlanejamentoDeMarketing[],MATCH(INDEX(VariaçõesDeMarketing[],ROW()-ROW(VariaçõesDeMarketing[[#Headers],[Abr]]),1),INDEX(PlanejamentoDeMarketing[],,1),0),MATCH(VariaçõesDeMarketing[[#Headers],[Abr]],PlanejamentoDeMarketing[#Headers],0))-INDEX(MarketingReal[],MATCH(INDEX(VariaçõesDeMarketing[],ROW()-ROW(VariaçõesDeMarketing[[#Headers],[Abr]]),1),INDEX(PlanejamentoDeMarketing[],,1),0),MATCH(VariaçõesDeMarketing[[#Headers],[Abr]],MarketingReal[#Headers],0)) -> R$ 300.00 | G26: =INDEX(PlanejamentoDeMarketing[],MATCH(INDEX(VariaçõesDeMarketing[],ROW()-ROW(VariaçõesDeMarketing[[#Headers],[Maio]]),1),INDEX(PlanejamentoDeMarketing[],,1),0),MATCH(VariaçõesDeMarketing[[#Headers],[Maio]],PlanejamentoDeMarketing[#Headers],0))-INDEX(MarketingReal[],MATCH(INDEX(VariaçõesDeMarketing[],ROW()-ROW(VariaçõesDeMarketing[[#Headers],[Maio]]),1),INDEX(PlanejamentoDeMarketing[],,1),0),MATCH(VariaçõesDeMarketing[[#Headers],[Maio]],MarketingReal[#Headers],0)) -> R$ 500.00 | H26: =INDEX(PlanejamentoDeMarketing[],MATCH(INDEX(VariaçõesDeMarketing[],ROW()-ROW(VariaçõesDeMarketing[[#Headers],[Jun]]),1),INDEX(PlanejamentoDeMarketing[],,1),0),MATCH(VariaçõesDeMarketing[[#Headers],[Jun]],PlanejamentoDeMarketing[#Headers],0))-INDEX(MarketingReal[],MATCH(INDEX(VariaçõesDeMarketing[],ROW()-ROW(VariaçõesDeMarketing[[#Headers],[Jun]]),1),INDEX(PlanejamentoDeMarketing[],,1),0),MATCH(VariaçõesDeMarketing[[#Headers],[Jun]],MarketingReal[#Headers],0)) -> -R$ 300.00 | I26: =INDEX(PlanejamentoDeMarketing[],MATCH(INDEX(VariaçõesDeMarketing[],ROW()-ROW(VariaçõesDeMarketing[[#Headers],[Jul]]),1),INDEX(PlanejamentoDeMarketing[],,1),0),MATCH(VariaçõesDeMarketing[[#Headers],[Jul]],PlanejamentoDeMarketing[#Headers],0))-INDEX(MarketingReal[],MATCH(INDEX(VariaçõesDeMarketing[],ROW()-ROW(VariaçõesDeMarketing[[#Headers],[Jul]]),1),INDEX(PlanejamentoDeMarketing[],,1),0),MATCH(VariaçõesDeMarketing[[#Headers],[Jul]],MarketingReal[#Headers],0)) -> R$ 2,000.00 | J26: =INDEX(PlanejamentoDeMarketing[],MATCH(INDEX(VariaçõesDeMarketing[],ROW()-ROW(VariaçõesDeMarketing[[#Headers],[Ago]]),1),INDEX(PlanejamentoDeMarketing[],,1),0),MATCH(VariaçõesDeMarketing[[#Headers],[Ago]],PlanejamentoDeMarketing[#Headers],0))-INDEX(MarketingReal[],MATCH(INDEX(VariaçõesDeMarketing[],ROW()-ROW(VariaçõesDeMarketing[[#Headers],[Ago]]),1),INDEX(PlanejamentoDeMarketing[],,1),0),MATCH(VariaçõesDeMarketing[[#Headers],[Ago]],MarketingReal[#Headers],0)) -> R$ 5,000.00 | K26: =INDEX(PlanejamentoDeMarketing[],MATCH(INDEX(VariaçõesDeMarketing[],ROW()-ROW(VariaçõesDeMarketing[[#Headers],[Set]]),1),INDEX(PlanejamentoDeMarketing[],,1),0),MATCH(VariaçõesDeMarketing[[#Headers],[Set]],PlanejamentoDeMarketing[#Headers],0))-INDEX(MarketingReal[],MATCH(INDEX(VariaçõesDeMarketing[],ROW()-ROW(VariaçõesDeMarketing[[#Headers],[Set]]),1),INDEX(PlanejamentoDeMarketing[],,1),0),MATCH(VariaçõesDeMarketing[[#Headers],[Set]],MarketingReal[#Headers],0)) -> R$ 2,000.00 | L26: =INDEX(PlanejamentoDeMarketing[],MATCH(INDEX(VariaçõesDeMarketing[],ROW()-ROW(VariaçõesDeMarketing[[#Headers],[Out]]),1),INDEX(PlanejamentoDeMarketing[],,1),0),MATCH(VariaçõesDeMarketing[[#Headers],[Out]],PlanejamentoDeMarketing[#Headers],0))-INDEX(MarketingReal[],MATCH(INDEX(VariaçõesDeMarketing[],ROW()-ROW(VariaçõesDeMarketing[[#Headers],[Out]]),1),INDEX(PlanejamentoDeMarketing[],,1),0),MATCH(VariaçõesDeMarketing[[#Headers],[Out]],MarketingReal[#Headers],0)) -> R$ 2,000.00 | M26: =INDEX(PlanejamentoDeMarketing[],MATCH(INDEX(VariaçõesDeMarketing[],ROW()-ROW(VariaçõesDeMarketing[[#Headers],[Nov]]),1),INDEX(PlanejamentoDeMarketing[],,1),0),MATCH(VariaçõesDeMarketing[[#Headers],[Nov]],PlanejamentoDeMarketing[#Headers],0))-INDEX(MarketingReal[],MATCH(INDEX(VariaçõesDeMarketing[],ROW()-ROW(VariaçõesDeMarketing[[#Headers],[Nov]]),1),INDEX(PlanejamentoDeMarketing[],,1),0),MATCH(VariaçõesDeMarketing[[#Headers],[Nov]],MarketingReal[#Headers],0)) -> R$ 2,000.00 | N26: =INDEX(PlanejamentoDeMarketing[],MATCH(INDEX(VariaçõesDeMarketing[],ROW()-ROW(VariaçõesDeMarketing[[#Headers],[Dez]]),1),INDEX(PlanejamentoDeMarketing[],,1),0),MATCH(VariaçõesDeMarketing[[#Headers],[Dez]],PlanejamentoDeMarketing[#Headers],0))-INDEX(MarketingReal[],MATCH(INDEX(VariaçõesDeMarketing[],ROW()-ROW(VariaçõesDeMarketing[[#Headers],[Dez]]),1),INDEX(PlanejamentoDeMarketing[],,1),0),MATCH(VariaçõesDeMarketing[[#Headers],[Dez]],MarketingReal[#Headers],0)) -> R$ 5,000.00 | O26: =SUM(VariaçõesDeMarketing[[#This Row],[Jan]:[Dez]]) -> R$ 18,300.00
B27: Despesas diversas | C27: =INDEX(PlanejamentoDeMarketing[],MATCH(INDEX(VariaçõesDeMarketing[],ROW()-ROW(VariaçõesDeMarketing[[#Headers],[Jan]]),1),INDEX(PlanejamentoDeMarketing[],,1),0),MATCH(VariaçõesDeMarketing[[#Headers],[Jan]],PlanejamentoDeMarketing[#Headers],0))-INDEX(MarketingReal[],MATCH(INDEX(VariaçõesDeMarketing[],ROW()-ROW(VariaçõesDeMarketing[[#Headers],[Jan]]),1),INDEX(PlanejamentoDeMarketing[],,1),0),MATCH(VariaçõesDeMarketing[[#Headers],[Jan]],MarketingReal[#Headers],0)) -> R$ 55.00 | D27: =INDEX(PlanejamentoDeMarketing[],MATCH(INDEX(VariaçõesDeMarketing[],ROW()-ROW(VariaçõesDeMarketing[[#Headers],[Fev]]),1),INDEX(PlanejamentoDeMarketing[],,1),0),MATCH(VariaçõesDeMarketing[[#Headers],[Fev]],PlanejamentoDeMarketing[#Headers],0))-INDEX(MarketingReal[],MATCH(INDEX(VariaçõesDeMarketing[],ROW()-ROW(VariaçõesDeMarketing[[#Headers],[Fev]]),1),INDEX(PlanejamentoDeMarketing[],,1),0),MATCH(VariaçõesDeMarketing[[#Headers],[Fev]],MarketingReal[#Headers],0)) -> R$ 44.00 | E27: =INDEX(PlanejamentoDeMarketing[],MATCH(INDEX(VariaçõesDeMarketing[],ROW()-ROW(VariaçõesDeMarketing[[#Headers],[Mar]]),1),INDEX(PlanejamentoDeMarketing[],,1),0),MATCH(VariaçõesDeMarketing[[#Headers],[Mar]],PlanejamentoDeMarketing[#Headers],0))-INDEX(MarketingReal[],MATCH(INDEX(VariaçõesDeMarketing[],ROW()-ROW(VariaçõesDeMarketing[[#Headers],[Mar]]),1),INDEX(PlanejamentoDeMarketing[],,1),0),MATCH(VariaçõesDeMarketing[[#Headers],[Mar]],MarketingReal[#Headers],0)) -> R$ 77.00 | F27: =INDEX(PlanejamentoDeMarketing[],MATCH(INDEX(VariaçõesDeMarketing[],ROW()-ROW(VariaçõesDeMarketing[[#Headers],[Abr]]),1),INDEX(PlanejamentoDeMarketing[],,1),0),MATCH(VariaçõesDeMarketing[[#Headers],[Abr]],PlanejamentoDeMarketing[#Headers],0))-INDEX(MarketingReal[],MATCH(INDEX(VariaçõesDeMarketing[],ROW()-ROW(VariaçõesDeMarketing[[#Headers],[Abr]]),1),INDEX(PlanejamentoDeMarketing[],,1),0),MATCH(VariaçõesDeMarketing[[#Headers],[Abr]],MarketingReal[#Headers],0)) -> -R$ 23.00 | G27: =INDEX(PlanejamentoDeMarketing[],MATCH(INDEX(VariaçõesDeMarketing[],ROW()-ROW(VariaçõesDeMarketing[[#Headers],[Maio]]),1),INDEX(PlanejamentoDeMarketing[],,1),0),MATCH(VariaçõesDeMarketing[[#Headers],[Maio]],PlanejamentoDeMarketing[#Headers],0))-INDEX(MarketingReal[],MATCH(INDEX(VariaçõesDeMarketing[],ROW()-ROW(VariaçõesDeMarketing[[#Headers],[Maio]]),1),INDEX(PlanejamentoDeMarketing[],,1),0),MATCH(VariaçõesDeMarketing[[#Headers],[Maio]],MarketingReal[#Headers],0)) -> R$ 13.00 | H27: =INDEX(PlanejamentoDeMarketing[],MATCH(INDEX(VariaçõesDeMarketing[],ROW()-ROW(VariaçõesDeMarketing[[#Headers],[Jun]]),1),INDEX(PlanejamentoDeMarketing[],,1),0),MATCH(VariaçõesDeMarketing[[#Headers],[Jun]],PlanejamentoDeMarketing[#Headers],0))-INDEX(MarketingReal[],MATCH(INDEX(VariaçõesDeMarketing[],ROW()-ROW(VariaçõesDeMarketing[[#Headers],[Jun]]),1),INDEX(PlanejamentoDeMarketing[],,1),0),MATCH(VariaçõesDeMarketing[[#Headers],[Jun]],MarketingReal[#Headers],0)) -> -R$ 45.00 | I27: =INDEX(PlanejamentoDeMarketing[],MATCH(INDEX(VariaçõesDeMarketing[],ROW()-ROW(VariaçõesDeMarketing[[#Headers],[Jul]]),1),INDEX(PlanejamentoDeMarketing[],,1),0),MATCH(VariaçõesDeMarketing[[#Headers],[Jul]],PlanejamentoDeMarketing[#Headers],0))-INDEX(MarketingReal[],MATCH(INDEX(VariaçõesDeMarketing[],ROW()-ROW(VariaçõesDeMarketing[[#Headers],[Jul]]),1),INDEX(PlanejamentoDeMarketing[],,1),0),MATCH(VariaçõesDeMarketing[[#Headers],[Jul]],MarketingReal[#Headers],0)) -> R$ 200.00 | J27: =INDEX(PlanejamentoDeMarketing[],MATCH(INDEX(VariaçõesDeMarketing[],ROW()-ROW(VariaçõesDeMarketing[[#Headers],[Ago]]),1),INDEX(PlanejamentoDeMarketing[],,1),0),MATCH(VariaçõesDeMarketing[[#Headers],[Ago]],PlanejamentoDeMarketing[#Headers],0))-INDEX(MarketingReal[],MATCH(INDEX(VariaçõesDeMarketing[],ROW()-ROW(VariaçõesDeMarketing[[#Headers],[Ago]]),1),INDEX(PlanejamentoDeMarketing[],,1),0),MATCH(VariaçõesDeMarketing[[#Headers],[Ago]],MarketingReal[#Headers],0)) -> R$ 200.00 | K27: =INDEX(PlanejamentoDeMarketing[],MATCH(INDEX(VariaçõesDeMarketing[],ROW()-ROW(VariaçõesDeMarketing[[#Headers],[Set]]),1),INDEX(PlanejamentoDeMarketing[],,1),0),MATCH(VariaçõesDeMarketing[[#Headers],[Set]],PlanejamentoDeMarketing[#Headers],0))-INDEX(MarketingReal[],MATCH(INDEX(VariaçõesDeMarketing[],ROW()-ROW(VariaçõesDeMarketing[[#Headers],[Set]]),1),INDEX(PlanejamentoDeMarketing[],,1),0),MATCH(VariaçõesDeMarketing[[#Headers],[Set]],MarketingReal[#Headers],0)) -> R$ 200.00 | L27: =INDEX(PlanejamentoDeMarketing[],MATCH(INDEX(VariaçõesDeMarketing[],ROW()-ROW(VariaçõesDeMarketing[[#Headers],[Out]]),1),INDEX(PlanejamentoDeMarketing[],,1),0),MATCH(VariaçõesDeMarketing[[#Headers],[Out]],PlanejamentoDeMarketing[#Headers],0))-INDEX(MarketingReal[],MATCH(INDEX(VariaçõesDeMarketing[],ROW()-ROW(VariaçõesDeMarketing[[#Headers],[Out]]),1),INDEX(PlanejamentoDeMarketing[],,1),0),MATCH(VariaçõesDeMarketing[[#Headers],[Out]],MarketingReal[#Headers],0)) -> R$ 200.00 | M27: =INDEX(PlanejamentoDeMarketing[],MATCH(INDEX(VariaçõesDeMarketing[],ROW()-ROW(VariaçõesDeMarketing[[#Headers],[Nov]]),1),INDEX(PlanejamentoDeMarketing[],,1),0),MATCH(VariaçõesDeMarketing[[#Headers],[Nov]],PlanejamentoDeMarketing[#Headers],0))-INDEX(MarketingReal[],MATCH(INDEX(VariaçõesDeMarketing[],ROW()-ROW(VariaçõesDeMarketing[[#Headers],[Nov]]),1),INDEX(PlanejamentoDeMarketing[],,1),0),MATCH(VariaçõesDeMarketing[[#Headers],[Nov]],MarketingReal[#Headers],0)) -> R$ 200.00 | N27: =INDEX(PlanejamentoDeMarketing[],MATCH(INDEX(VariaçõesDeMarketing[],ROW()-ROW(VariaçõesDeMarketing[[#Headers],[Dez]]),1),INDEX(PlanejamentoDeMarketing[],,1),0),MATCH(VariaçõesDeMarketing[[#Headers],[Dez]],PlanejamentoDeMarketing[#Headers],0))-INDEX(MarketingReal[],MATCH(INDEX(VariaçõesDeMarketing[],ROW()-ROW(VariaçõesDeMarketing[[#Headers],[Dez]]),1),INDEX(PlanejamentoDeMarketing[],,1),0),MATCH(VariaçõesDeMarketing[[#Headers],[Dez]],MarketingReal[#Headers],0)) -> R$ 200.00 | O27: =SUM(VariaçõesDeMarketing[[#This Row],[Jan]:[Dez]]) -> R$ 1,321.00
B28: Subtotal | C28: =SUBTOTAL(109,VariaçõesDeMarketing[Jan]) -> R$ 555.00 | D28: =SUBTOTAL(109,VariaçõesDeMarketing[Fev]) -> -R$ 456.00 | E28: =SUBTOTAL(109,VariaçõesDeMarketing[Mar]) -> -R$ 23.00 | F28: =SUBTOTAL(109,VariaçõesDeMarketing[Abr]) -> -R$ 123.00 | G28: =SUBTOTAL(109,VariaçõesDeMarketing[Maio]) -> R$ 113.00 | H28: =SUBTOTAL(109,VariaçõesDeMarketing[Jun]) -> -R$ 825.00 | I28: =SUBTOTAL(109,VariaçõesDeMarketing[Jul]) -> R$ 8,100.00 | J28: =SUBTOTAL(109,VariaçõesDeMarketing[Ago]) -> R$ 6,100.00 | K28: =SUBTOTAL(109,VariaçõesDeMarketing[Set]) -> R$ 3,100.00 | L28: =SUBTOTAL(109,VariaçõesDeMarketing[Out]) -> R$ 8,100.00 | M28: =SUBTOTAL(109,VariaçõesDeMarketing[Nov]) -> R$ 3,100.00 | N28: =SUBTOTAL(109,VariaçõesDeMarketing[Dez]) -> R$ 6,900.00 | O28: =SUBTOTAL(109,VariaçõesDeMarketing[ANO]) -> R$ 34,641.00
B30: Viagem/Treinamento | C30: Jan | D30: Fev | E30: Mar | F30: Abr | G30: Maio | H30: Jun | I30: Jul | J30: Ago | K30: Set | L30: Out | M30: Nov | N30: Dez | O30: ANO
B31: Sessões de treinamento | C31: =INDEX(PlanejamentoDeViagemETreinamento[],MATCH(INDEX(VariaçõesDeViagensETreinamentos[],ROW()-ROW(VariaçõesDeViagensETreinamentos[[#Headers],[Jan]]),1),INDEX(PlanejamentoDeViagemETreinamento[],,1),0),MATCH(VariaçõesDeViagensETreinamentos[[#Headers],[Jan]],PlanejamentoDeViagemETreinamento[#Headers],0))-INDEX(RealViagemETreinamento[],MATCH(INDEX(VariaçõesDeViagensETreinamentos[],ROW()-ROW(VariaçõesDeViagensETreinamentos[[#Headers],[Jan]]),1),INDEX(PlanejamentoDeViagemETreinamento[],,1),0),MATCH(VariaçõesDeViagensETreinamentos[[#Headers],[Jan]],RealViagemETreinamento[#Headers],0)) -> R$ 400.00 | D31: =INDEX(PlanejamentoDeViagemETreinamento[],MATCH(INDEX(VariaçõesDeViagensETreinamentos[],ROW()-ROW(VariaçõesDeViagensETreinamentos[[#Headers],[Fev]]),1),INDEX(PlanejamentoDeViagemETreinamento[],,1),0),MATCH(VariaçõesDeViagensETreinamentos[[#Headers],[Fev]],PlanejamentoDeViagemETreinamento[#Headers],0))-INDEX(RealViagemETreinamento[],MATCH(INDEX(VariaçõesDeViagensETreinamentos[],ROW()-ROW(VariaçõesDeViagensETreinamentos[[#Headers],[Fev]]),1),INDEX(PlanejamentoDeViagemETreinamento[],,1),0),MATCH(VariaçõesDeViagensETreinamentos[[#Headers],[Fev]],RealViagemETreinamento[#Headers],0)) -> -R$ 400.00 | E31: =INDEX(PlanejamentoDeViagemETreinamento[],MATCH(INDEX(VariaçõesDeViagensETreinamentos[],ROW()-ROW(VariaçõesDeViagensETreinamentos[[#Headers],[Mar]]),1),INDEX(PlanejamentoDeViagemETreinamento[],,1),0),MATCH(VariaçõesDeViagensETreinamentos[[#Headers],[Mar]],PlanejamentoDeViagemETreinamento[#Headers],0))-INDEX(RealViagemETreinamento[],MATCH(INDEX(VariaçõesDeViagensETreinamentos[],ROW()-ROW(VariaçõesDeViagensETreinamentos[[#Headers],[Mar]]),1),INDEX(PlanejamentoDeViagemETreinamento[],,1),0),MATCH(VariaçõesDeViagensETreinamentos[[#Headers],[Mar]],RealViagemETreinamento[#Headers],0)) -> R$ 600.00 | F31: =INDEX(PlanejamentoDeViagemETreinamento[],MATCH(INDEX(VariaçõesDeViagensETreinamentos[],ROW()-ROW(VariaçõesDeViagensETreinamentos[[#Headers],[Abr]]),1),INDEX(PlanejamentoDeViagemETreinamento[],,1),0),MATCH(VariaçõesDeViagensETreinamentos[[#Headers],[Abr]],PlanejamentoDeViagemETreinamento[#Headers],0))-INDEX(RealViagemETreinamento[],MATCH(INDEX(VariaçõesDeViagensETreinamentos[],ROW()-ROW(VariaçõesDeViagensETreinamentos[[#Headers],[Abr]]),1),INDEX(PlanejamentoDeViagemETreinamento[],,1),0),MATCH(VariaçõesDeViagensETreinamentos[[#Headers],[Abr]],RealViagemETreinamento[#Headers],0)) -> R$ 400.00 | G31: =INDEX(PlanejamentoDeViagemETreinamento[],MATCH(INDEX(VariaçõesDeViagensETreinamentos[],ROW()-ROW(VariaçõesDeViagensETreinamentos[[#Headers],[Maio]]),1),INDEX(PlanejamentoDeViagemETreinamento[],,1),0),MATCH(VariaçõesDeViagensETreinamentos[[#Headers],[Maio]],PlanejamentoDeViagemETreinamento[#Headers],0))-INDEX(RealViagemETreinamento[],MATCH(INDEX(VariaçõesDeViagensETreinamentos[],ROW()-ROW(VariaçõesDeViagensETreinamentos[[#Headers],[Maio]]),1),INDEX(PlanejamentoDeViagemETreinamento[],,1),0),MATCH(VariaçõesDeViagensETreinamentos[[#Headers],[Maio]],RealViagemETreinamento[#Headers],0)) -> R$ 800.00 | H31: =INDEX(PlanejamentoDeViagemETreinamento[],MATCH(INDEX(VariaçõesDeViagensETreinamentos[],ROW()-ROW(VariaçõesDeViagensETreinamentos[[#Headers],[Jun]]),1),INDEX(PlanejamentoDeViagemETreinamento[],,1),0),MATCH(VariaçõesDeViagensETreinamentos[[#Headers],[Jun]],PlanejamentoDeViagemETreinamento[#Headers],0))-INDEX(RealViagemETreinamento[],MATCH(INDEX(VariaçõesDeViagensETreinamentos[],ROW()-ROW(VariaçõesDeViagensETreinamentos[[#Headers],[Jun]]),1),INDEX(PlanejamentoDeViagemETreinamento[],,1),0),MATCH(VariaçõesDeViagensETreinamentos[[#Headers],[Jun]],RealViagemETreinamento[#Headers],0)) -> -R$ 800.00 | I31: =INDEX(PlanejamentoDeViagemETreinamento[],MATCH(INDEX(VariaçõesDeViagensETreinamentos[],ROW()-ROW(VariaçõesDeViagensETreinamentos[[#Headers],[Jul]]),1),INDEX(PlanejamentoDeViagemETreinamento[],,1),0),MATCH(VariaçõesDeViagensETreinamentos[[#Headers],[Jul]],PlanejamentoDeViagemETreinamento[#Headers],0))-INDEX(RealViagemETreinamento[],MATCH(INDEX(VariaçõesDeViagensETreinamentos[],ROW()-ROW(VariaçõesDeViagensETreinamentos[[#Headers],[Jul]]),1),INDEX(PlanejamentoDeViagemETreinamento[],,1),0),MATCH(VariaçõesDeViagensETreinamentos[[#Headers],[Jul]],RealViagemETreinamento[#Headers],0)) -> R$ 2,000.00 | J31: =INDEX(PlanejamentoDeViagemETreinamento[],MATCH(INDEX(VariaçõesDeViagensETreinamentos[],ROW()-ROW(VariaçõesDeViagensETreinamentos[[#Headers],[Ago]]),1),INDEX(PlanejamentoDeViagemETreinamento[],,1),0),MATCH(VariaçõesDeViagensETreinamentos[[#Headers],[Ago]],PlanejamentoDeViagemETreinamento[#Headers],0))-INDEX(RealViagemETreinamento[],MATCH(INDEX(VariaçõesDeViagensETreinamentos[],ROW()-ROW(VariaçõesDeViagensETreinamentos[[#Headers],[Ago]]),1),INDEX(PlanejamentoDeViagemETreinamento[],,1),0),MATCH(VariaçõesDeViagensETreinamentos[[#Headers],[Ago]],RealViagemETreinamento[#Headers],0)) -> R$ 2,000.00 | K31: =INDEX(PlanejamentoDeViagemETreinamento[],MATCH(INDEX(VariaçõesDeViagensETreinamentos[],ROW()-ROW(VariaçõesDeViagensETreinamentos[[#Headers],[Set]]),1),INDEX(PlanejamentoDeViagemETreinamento[],,1),0),MATCH(VariaçõesDeViagensETreinamentos[[#Headers],[Set]],PlanejamentoDeViagemETreinamento[#Headers],0))-INDEX(RealViagemETreinamento[],MATCH(INDEX(VariaçõesDeViagensETreinamentos[],ROW()-ROW(VariaçõesDeViagensETreinamentos[[#Headers],[Set]]),1),INDEX(PlanejamentoDeViagemETreinamento[],,1),0),MATCH(VariaçõesDeViagensETreinamentos[[#Headers],[Set]],RealViagemETreinamento[#Headers],0)) -> R$ 2,000.00 | L31: =INDEX(PlanejamentoDeViagemETreinamento[],MATCH(INDEX(VariaçõesDeViagensETreinamentos[],ROW()-ROW(VariaçõesDeViagensETreinamentos[[#Headers],[Out]]),1),INDEX(PlanejamentoDeViagemETreinamento[],,1),0),MATCH(VariaçõesDeViagensETreinamentos[[#Headers],[Out]],PlanejamentoDeViagemETreinamento[#Headers],0))-INDEX(RealViagemETreinamento[],MATCH(INDEX(VariaçõesDeViagensETreinamentos[],ROW()-ROW(VariaçõesDeViagensETreinamentos[[#Headers],[Out]]),1),INDEX(PlanejamentoDeViagemETreinamento[],,1),0),MATCH(VariaçõesDeViagensETreinamentos[[#Headers],[Out]],RealViagemETreinamento[#Headers],0)) -> R$ 2,000.00 | M31: =INDEX(PlanejamentoDeViagemETreinamento[],MATCH(INDEX(VariaçõesDeViagensETreinamentos[],ROW()-ROW(VariaçõesDeViagensETreinamentos[[#Headers],[Nov]]),1),INDEX(PlanejamentoDeViagemETreinamento[],,1),0),MATCH(VariaçõesDeViagensETreinamentos[[#Headers],[Nov]],PlanejamentoDeViagemETreinamento[#Headers],0))-INDEX(RealViagemETreinamento[],MATCH(INDEX(VariaçõesDeViagensETreinamentos[],ROW()-ROW(VariaçõesDeViagensETreinamentos[[#Headers],[Nov]]),1),INDEX(PlanejamentoDeViagemETreinamento[],,1),0),MATCH(VariaçõesDeViagensETreinamentos[[#Headers],[Nov]],RealViagemETreinamento[#Headers],0)) -> R$ 2,000.00 | N31: =INDEX(PlanejamentoDeViagemETreinamento[],MATCH(INDEX(VariaçõesDeViagensETreinamentos[],ROW()-ROW(VariaçõesDeViagensETreinamentos[[#Headers],[Dez]]),1),INDEX(PlanejamentoDeViagemETreinamento[],,1),0),MATCH(VariaçõesDeViagensETreinamentos[[#Headers],[Dez]],PlanejamentoDeViagemETreinamento[#Headers],0))-INDEX(RealViagemETreinamento[],MATCH(INDEX(VariaçõesDeViagensETreinamentos[],ROW()-ROW(VariaçõesDeViagensETreinamentos[[#Headers],[Dez]]),1),INDEX(PlanejamentoDeViagemETreinamento[],,1),0),MATCH(VariaçõesDeViagensETreinamentos[[#Headers],[Dez]],RealViagemETreinamento[#Headers],0)) -> R$ 2,000.00 | O31: =SUM(VariaçõesDeViagensETreinamentos[[#This Row],[Jan]:[Dez]]) -> R$ 13,000.00
B32: Custos com viagens para treinamento | C32: =INDEX(PlanejamentoDeViagemETreinamento[],MATCH(INDEX(VariaçõesDeViagensETreinamentos[],ROW()-ROW(VariaçõesDeViagensETreinamentos[[#Headers],[Jan]]),1),INDEX(PlanejamentoDeViagemETreinamento[],,1),0),MATCH(VariaçõesDeViagensETreinamentos[[#Headers],[Jan]],PlanejamentoDeViagemETreinamento[#Headers],0))-INDEX(RealViagemETreinamento[],MATCH(INDEX(VariaçõesDeViagensETreinamentos[],ROW()-ROW(VariaçõesDeViagensETreinamentos[[#Headers],[Jan]]),1),INDEX(PlanejamentoDeViagemETreinamento[],,1),0),MATCH(VariaçõesDeViagensETreinamentos[[#Headers],[Jan]],RealViagemETreinamento[#Headers],0)) -> R$ 800.00 | D32: =INDEX(PlanejamentoDeViagemETreinamento[],MATCH(INDEX(VariaçõesDeViagensETreinamentos[],ROW()-ROW(VariaçõesDeViagensETreinamentos[[#Headers],[Fev]]),1),INDEX(PlanejamentoDeViagemETreinamento[],,1),0),MATCH(VariaçõesDeViagensETreinamentos[[#Headers],[Fev]],PlanejamentoDeViagemETreinamento[#Headers],0))-INDEX(RealViagemETreinamento[],MATCH(INDEX(VariaçõesDeViagensETreinamentos[],ROW()-ROW(VariaçõesDeViagensETreinamentos[[#Headers],[Fev]]),1),INDEX(PlanejamentoDeViagemETreinamento[],,1),0),MATCH(VariaçõesDeViagensETreinamentos[[#Headers],[Fev]],RealViagemETreinamento[#Headers],0)) -> -R$ 200.00 | E32: =INDEX(PlanejamentoDeViagemETreinamento[],MATCH(INDEX(VariaçõesDeViagensETreinamentos[],ROW()-ROW(VariaçõesDeViagensETreinamentos[[#Headers],[Mar]]),1),INDEX(PlanejamentoDeViagemETreinamento[],,1),0),MATCH(VariaçõesDeViagensETreinamentos[[#Headers],[Mar]],PlanejamentoDeViagemETreinamento[#Headers],0))-INDEX(RealViagemETreinamento[],MATCH(INDEX(VariaçõesDeViagensETreinamentos[],ROW()-ROW(VariaçõesDeViagensETreinamentos[[#Headers],[Mar]]),1),INDEX(PlanejamentoDeViagemETreinamento[],,1),0),MATCH(VariaçõesDeViagensETreinamentos[[#Headers],[Mar]],RealViagemETreinamento[#Headers],0)) -> R$ 600.00 | F32: =INDEX(PlanejamentoDeViagemETreinamento[],MATCH(INDEX(VariaçõesDeViagensETreinamentos[],ROW()-ROW(VariaçõesDeViagensETreinamentos[[#Headers],[Abr]]),1),INDEX(PlanejamentoDeViagemETreinamento[],,1),0),MATCH(VariaçõesDeViagensETreinamentos[[#Headers],[Abr]],PlanejamentoDeViagemETreinamento[#Headers],0))-INDEX(RealViagemETreinamento[],MATCH(INDEX(VariaçõesDeViagensETreinamentos[],ROW()-ROW(VariaçõesDeViagensETreinamentos[[#Headers],[Abr]]),1),INDEX(PlanejamentoDeViagemETreinamento[],,1),0),MATCH(VariaçõesDeViagensETreinamentos[[#Headers],[Abr]],RealViagemETreinamento[#Headers],0)) -> R$ 800.00 | G32: =INDEX(PlanejamentoDeViagemETreinamento[],MATCH(INDEX(VariaçõesDeViagensETreinamentos[],ROW()-ROW(VariaçõesDeViagensETreinamentos[[#Headers],[Maio]]),1),INDEX(PlanejamentoDeViagemETreinamento[],,1),0),MATCH(VariaçõesDeViagensETreinamentos[[#Headers],[Maio]],PlanejamentoDeViagemETreinamento[#Headers],0))-INDEX(RealViagemETreinamento[],MATCH(INDEX(VariaçõesDeViagensETreinamentos[],ROW()-ROW(VariaçõesDeViagensETreinamentos[[#Headers],[Maio]]),1),INDEX(PlanejamentoDeViagemETreinamento[],,1),0),MATCH(VariaçõesDeViagensETreinamentos[[#Headers],[Maio]],RealViagemETreinamento[#Headers],0)) -> R$ 1,200.00 | H32: =INDEX(PlanejamentoDeViagemETreinamento[],MATCH(INDEX(VariaçõesDeViagensETreinamentos[],ROW()-ROW(VariaçõesDeViagensETreinamentos[[#Headers],[Jun]]),1),INDEX(PlanejamentoDeViagemETreinamento[],,1),0),MATCH(VariaçõesDeViagensETreinamentos[[#Headers],[Jun]],PlanejamentoDeViagemETreinamento[#Headers],0))-INDEX(RealViagemETreinamento[],MATCH(INDEX(VariaçõesDeViagensETreinamentos[],ROW()-ROW(VariaçõesDeViagensETreinamentos[[#Headers],[Jun]]),1),INDEX(PlanejamentoDeViagemETreinamento[],,1),0),MATCH(VariaçõesDeViagensETreinamentos[[#Headers],[Jun]],RealViagemETreinamento[#Headers],0)) -> -R$ 1,500.00 | I32: =INDEX(PlanejamentoDeViagemETreinamento[],MATCH(INDEX(VariaçõesDeViagensETreinamentos[],ROW()-ROW(VariaçõesDeViagensETreinamentos[[#Headers],[Jul]]),1),INDEX(PlanejamentoDeViagemETreinamento[],,1),0),MATCH(VariaçõesDeViagensETreinamentos[[#Headers],[Jul]],PlanejamentoDeViagemETreinamento[#Headers],0))-INDEX(RealViagemETreinamento[],MATCH(INDEX(VariaçõesDeViagensETreinamentos[],ROW()-ROW(VariaçõesDeViagensETreinamentos[[#Headers],[Jul]]),1),INDEX(PlanejamentoDeViagemETreinamento[],,1),0),MATCH(VariaçõesDeViagensETreinamentos[[#Headers],[Jul]],RealViagemETreinamento[#Headers],0)) -> R$ 2,000.00 | J32: =INDEX(PlanejamentoDeViagemETreinamento[],MATCH(INDEX(VariaçõesDeViagensETreinamentos[],ROW()-ROW(VariaçõesDeViagensETreinamentos[[#Headers],[Ago]]),1),INDEX(PlanejamentoDeViagemETreinamento[],,1),0),MATCH(VariaçõesDeViagensETreinamentos[[#Headers],[Ago]],PlanejamentoDeViagemETreinamento[#Headers],0))-INDEX(RealViagemETreinamento[],MATCH(INDEX(VariaçõesDeViagensETreinamentos[],ROW()-ROW(VariaçõesDeViagensETreinamentos[[#Headers],[Ago]]),1),INDEX(PlanejamentoDeViagemETreinamento[],,1),0),MATCH(VariaçõesDeViagensETreinamentos[[#Headers],[Ago]],RealViagemETreinamento[#Headers],0)) -> R$ 2,000.00 | K32: =INDEX(PlanejamentoDeViagemETreinamento[],MATCH(INDEX(VariaçõesDeViagensETreinamentos[],ROW()-ROW(VariaçõesDeViagensETreinamentos[[#Headers],[Set]]),1),INDEX(PlanejamentoDeViagemETreinamento[],,1),0),MATCH(VariaçõesDeViagensETreinamentos[[#Headers],[Set]],PlanejamentoDeViagemETreinamento[#Headers],0))-INDEX(RealViagemETreinamento[],MATCH(INDEX(VariaçõesDeViagensETreinamentos[],ROW()-ROW(VariaçõesDeViagensETreinamentos[[#Headers],[Set]]),1),INDEX(PlanejamentoDeViagemETreinamento[],,1),0),MATCH(VariaçõesDeViagensETreinamentos[[#Headers],[Set]],RealViagemETreinamento[#Headers],0)) -> R$ 2,000.00 | L32: =INDEX(PlanejamentoDeViagemETreinamento[],MATCH(INDEX(VariaçõesDeViagensETreinamentos[],ROW()-ROW(VariaçõesDeViagensETreinamentos[[#Headers],[Out]]),1),INDEX(PlanejamentoDeViagemETreinamento[],,1),0),MATCH(VariaçõesDeViagensETreinamentos[[#Headers],[Out]],PlanejamentoDeViagemETreinamento[#Headers],0))-INDEX(RealViagemETreinamento[],MATCH(INDEX(VariaçõesDeViagensETreinamentos[],ROW()-ROW(VariaçõesDeViagensETreinamentos[[#Headers],[Out]]),1),INDEX(PlanejamentoDeViagemETreinamento[],,1),0),MATCH(VariaçõesDeViagensETreinamentos[[#Headers],[Out]],RealViagemETreinamento[#Headers],0)) -> R$ 2,000.00 | M32: =INDEX(PlanejamentoDeViagemETreinamento[],MATCH(INDEX(VariaçõesDeViagensETreinamentos[],ROW()-ROW(VariaçõesDeViagensETreinamentos[[#Headers],[Nov]]),1),INDEX(PlanejamentoDeViagemETreinamento[],,1),0),MATCH(VariaçõesDeViagensETreinamentos[[#Headers],[Nov]],PlanejamentoDeViagemETreinamento[#Headers],0))-INDEX(RealViagemETreinamento[],MATCH(INDEX(VariaçõesDeViagensETreinamentos[],ROW()-ROW(VariaçõesDeViagensETreinamentos[[#Headers],[Nov]]),1),INDEX(PlanejamentoDeViagemETreinamento[],,1),0),MATCH(VariaçõesDeViagensETreinamentos[[#Headers],[Nov]],RealViagemETreinamento[#Headers],0)) -> R$ 2,000.00 | N32: =INDEX(PlanejamentoDeViagemETreinamento[],MATCH(INDEX(VariaçõesDeViagensETreinamentos[],ROW()-ROW(VariaçõesDeViagensETreinamentos[[#Headers],[Dez]]),1),INDEX(PlanejamentoDeViagemETreinamento[],,1),0),MATCH(VariaçõesDeViagensETreinamentos[[#Headers],[Dez]],PlanejamentoDeViagemETreinamento[#Headers],0))-INDEX(RealViagemETreinamento[],MATCH(INDEX(VariaçõesDeViagensETreinamentos[],ROW()-ROW(VariaçõesDeViagensETreinamentos[[#Headers],[Dez]]),1),INDEX(PlanejamentoDeViagemETreinamento[],,1),0),MATCH(VariaçõesDeViagensETreinamentos[[#Headers],[Dez]],RealViagemETreinamento[#Headers],0)) -> R$ 2,000.00 | O32: =SUM(VariaçõesDeViagensETreinamentos[[#This Row],[Jan]:[Dez]]) -> R$ 13,700.00
B33: Subtotal | C33: =SUBTOTAL(109,VariaçõesDeViagensETreinamentos[Jan]) -> R$ 1,200.00 | D33: =SUBTOTAL(109,VariaçõesDeViagensETreinamentos[Fev]) -> -R$ 600.00 | E33: =SUBTOTAL(109,VariaçõesDeViagensETreinamentos[Mar]) -> R$ 1,200.00 | F33: =SUBTOTAL(109,VariaçõesDeViagensETreinamentos[Abr]) -> R$ 1,200.00 | G33: =SUBTOTAL(109,VariaçõesDeViagensETreinamentos[Maio]) -> R$ 2,000.00 | H33: =SUBTOTAL(109,VariaçõesDeViagensETreinamentos[Jun]) -> -R$ 2,300.00 | I33: =SUBTOTAL(109,VariaçõesDeViagensETreinamentos[Jul]) -> R$ 4,000.00 | J33: =SUBTOTAL(109,VariaçõesDeViagensETreinamentos[Ago]) -> R$ 4,000.00 | K33: =SUBTOTAL(109,VariaçõesDeViagensETreinamentos[Set]) -> R$ 4,000.00 | L33: =SUBTOTAL(109,VariaçõesDeViagensETreinamentos[Out]) -> R$ 4,000.00 | M33: =SUBTOTAL(109,VariaçõesDeViagensETreinamentos[Nov]) -> R$ 4,000.00 | N33: =SUBTOTAL(109,VariaçõesDeViagensETreinamentos[Dez]) -> R$ 4,000.00 | O33: =SUBTOTAL(109,VariaçõesDeViagensETreinamentos[ANO]) -> R$ 26,700.00
B35: TOTAIS | C35: Jan | D35: Fev | E35: Mar | F35: Abr | G35: Mai | H35: Jun | I35: Jul | J35: Ago | K35: Set | L35: Out | M35: Nov | N35: Dez | O35: Ano
B36: Despesas mensais reais | C36: =VariaçõesDeViagensETreinamentos[[#Totals],[Jan]]+VariaçõesDeMarketing[[#Totals],[Jan]]+VariaçõesDoEscritório[[#Totals],[Jan]]+VariaçõesDeFuncionários[[#Totals],[Jan]] -> R$ 1,738.00 | D36: =VariaçõesDeViagensETreinamentos[[#Totals],[Fev]]+VariaçõesDeMarketing[[#Totals],[Fev]]+VariaçõesDoEscritório[[#Totals],[Fev]]+VariaçõesDeFuncionários[[#Totals],[Fev]] -> -R$ 984.00 | E36: =VariaçõesDeViagensETreinamentos[[#Totals],[Mar]]+VariaçõesDeMarketing[[#Totals],[Mar]]+VariaçõesDoEscritório[[#Totals],[Mar]]+VariaçõesDeFuncionários[[#Totals],[Mar]] -> R$ 1,255.00 | F36: =VariaçõesDeViagensETreinamentos[[#Totals],[Abr]]+VariaçõesDeMarketing[[#Totals],[Abr]]+VariaçõesDoEscritório[[#Totals],[Abr]]+VariaçõesDeFuncionários[[#Totals],[Abr]] -> R$ 301.00 | G36: =VariaçõesDeViagensETreinamentos[[#Totals],[Maio]]+VariaçõesDeMarketing[[#Totals],[Maio]]+VariaçõesDoEscritório[[#Totals],[Maio]]+VariaçõesDeFuncionários[[#Totals],[Maio]] -> R$ 1,440.00 | H36: =VariaçõesDeViagensETreinamentos[[#Totals],[Jun]]+VariaçõesDeMarketing[[#Totals],[Jun]]+VariaçõesDoEscritório[[#Totals],[Jun]]+VariaçõesDeFuncionários[[#Totals],[Jun]] -> -R$ 3,744.00 | I36: =VariaçõesDeViagensETreinamentos[[#Totals],[Jul]]+VariaçõesDeMarketing[[#Totals],[Jul]]+VariaçõesDoEscritório[[#Totals],[Jul]]+VariaçõesDeFuncionários[[#Totals],[Jul]] -> R$ 134,695.00 | J36: =VariaçõesDeViagensETreinamentos[[#Totals],[Ago]]+VariaçõesDeMarketing[[#Totals],[Ago]]+VariaçõesDoEscritório[[#Totals],[Ago]]+VariaçõesDeFuncionários[[#Totals],[Ago]] -> R$ 138,918.00 | K36: =VariaçõesDeViagensETreinamentos[[#Totals],[Set]]+VariaçõesDeMarketing[[#Totals],[Set]]+VariaçõesDoEscritório[[#Totals],[Set]]+VariaçõesDeFuncionários[[#Totals],[Set]] -> R$ 135,918.00 | L36: =VariaçõesDeViagensETreinamentos[[#Totals],[Out]]+VariaçõesDeMarketing[[#Totals],[Out]]+VariaçõesDoEscritório[[#Totals],[Out]]+VariaçõesDeFuncionários[[#Totals],[Out]] -> R$ 140,918.00 | M36: =VariaçõesDeViagensETreinamentos[[#Totals],[Nov]]+VariaçõesDeMarketing[[#Totals],[Nov]]+VariaçõesDoEscritório[[#Totals],[Nov]]+VariaçõesDeFuncionários[[#Totals],[Nov]] -> R$ 136,218.00 | N36: =VariaçõesDeViagensETreinamentos[[#Totals],[Dez]]+VariaçõesDeMarketing[[#Totals],[Dez]]+VariaçõesDoEscritório[[#Totals],[Dez]]+VariaçõesDeFuncionários[[#Totals],[Dez]] -> R$ 140,018.00 | O36: =VariaçõesDeViagensETreinamentos[[#Totals],[ANO]]+VariaçõesDeMarketing[[#Totals],[ANO]]+VariaçõesDoEscritório[[#Totals],[ANO]]+VariaçõesDeFuncionários[[#Totals],[ANO]] -> R$ 826,691.00
B37: TOTAL Despesas reais | C37: =SUM($C$36:C36) -> R$ 1,738.00 | D37: =SUM($C$36:D36) -> R$ 754.00 | E37: =SUM($C$36:E36) -> R$ 2,009.00 | F37: =SUM($C$36:F36) -> R$ 2,310.00 | G37: =SUM($C$36:G36) -> R$ 3,750.00 | H37: =SUM($C$36:H36) -> R$ 6.00 | I37: =SUM($C$36:I36) -> R$ 134,701.00 | J37: =SUM($C$36:J36) -> R$ 273,619.00 | K37: =SUM($C$36:K36) -> R$ 409,537.00 | L37: =SUM($C$36:L36) -> R$ 550,455.00 | M37: =SUM($C$36:M36) -> R$ 686,673.00 | N37: =SUM($C$36:N36) -> R$ 826,691.00

Sheet ANÁLISE DE DESPESAS
B2: ='DESPESAS PLANEJADAS'!B2:D3 -> Nome da Empresa
E3: =título_da_planilha -> Estimativas detalhadas de despesas
B5: Categoria de Despesas | C5: Despesas Planejadas | D5: Despesas reais | E5: Variações de Despesas | F5: Porcentagem da Variação
B6: Custos com Funcionários | C6: =PlanejamentoDeFuncionário[[#Totals],[ANO]] -> R$ 1,355,090.00 | D6: =FuncionárioReal[[#Totals],[ANO]] -> R$ 659,130.00 | E6: =C6-D6 -> R$ 695,960.00 | F6: =E6/C6 -> 51%
B7: ='DESPESAS PLANEJADAS'!B10 -> Custos do escritório | C7: =PlanejamentoDeEscritório[[#Totals],[ANO]] -> R$ 138,740.00 | D7: =EscritórioReal[[#Totals],[ANO]] -> R$ 69,350.00 | E7: =C7-D7 -> R$ 69,390.00 | F7: =E7/C7 -> 50%
B8: ='DESPESAS PLANEJADAS'!B21 -> Custos de marketing | C8: =PlanejamentoDeMarketing[[#Totals],[ANO]] -> R$ 67,800.00 | D8: =MarketingReal[[#Totals],[ANO]] -> R$ 33,159.00 | E8: =C8-D8 -> R$ 34,641.00 | F8: =E8/C8 -> 51%
B9: ='DESPESAS PLANEJADAS'!B30 -> Viagem/Treinamento | C9: =PlanejamentoDeViagemETreinamento[[#Totals],[ANO]] -> R$ 48,000.00 | D9: =RealViagemETreinamento[[#Totals],[ANO]] -> R$ 21,300.00 | E9: =C9-D9 -> R$ 26,700.00 | F9: =E9/C9 -> 56%
B10: ='DESPESAS PLANEJADAS'!B35 -> TOTAIS | C10: ='DESPESAS PLANEJADAS'!O36 -> R$ 1,609,630.00 | D10: ='DESPESAS REAIS'!O36 -> R$ 782,939.00 | E10: =C10-D10 -> R$ 826,691.00 | F10: =E10/C10 -> 51%
